Workbook

Sheet Open
A1: CUBEIT $2000 added
A3: Futurity | B3: Der | C3: HS | D3: Age Inct. | E3: Open C/O | F3: YOU | G3: Draw | H3: Rider Name | I3: Horse Name | J3: Pen | K3: Time | L3: Final Time | M3: Placing | N3: Money Earned | P3: D Placing | R3: Split
G4: 37 | H4: Kelly Bruner | I4: Tuffernell | K4: 15.516 | M4: 1D 1st | N4: 1080 | P4: 1D | Q4: 15.516
C5: X | G5: 83 | H5: Shelley Holman | I5: Red Hot N Burnin | K5: 15.535 | M5: 1D 2nd | N5: 900 | P5: 2D | Q5: =SUM(Q4+0.5) -> 16.016 | R5: 0.5
G6: 1 | H6: Kassidy Dennison | I6: Sr Epic CEO | K6: 15.619 | M6: 1D 3rd | N6: 765 | P6: 3D | Q6: =SUM(Q4+1) -> 16.516 | R6: 0.5
A7: X | C7: X | D7: A | G7: 52 | H7: Kylee Scribner | I7: Firewater Cartel | K7: 15.623 | M7: 1D 4th | N7: 585 | P7: 4D | Q7: =SUM(Q4+1.5) -> 17.016 | R7: 0.5
D8: A | G8: 21 | H8: Laine Whitmire | I8: Bullseye Bullion | K8: 15.736 | M8: 1D 5th | N8: 450 | P8: 5D | Q8: =SUM(Q4+2) -> 17.516 | R8: 0.5
G9: 239 | H9: Megan Swint | I9: Kickstart Ta Fame | K9: 15.77 | M9: 1D 6th | N9: 315
D10: S | G10: 153 | H10: Tammy Rokus | I10: Mitey Confederate | K10: 15.781 | M10: 1D 7th | N10: 225 | P10: # Entered
C11: X | D11: A | G11: 182 | H11: Jimmie Smith | I11: Lever Action | K11: 15.782 | M11: 1D 8th | N11: 180 | P11: =COUNTA(H4:H535) -> 330
A12: X | G12: 77 | H12: Stevi Hillman | I12: DTF Texas Moon | K12: 15.83
G13: 72 | H13: Amberleigh Moore | I13: CP Dark Moon | K13: 15.853 | P13: # Ran
G14: 26 | H14: Camelia Jenkins | K14: 15.866 | P14: =COUNTA(K4:K535) -> 330
C15: X | G15: 237 | H15: Cranna Roberts | I15: Ronnie | K15: 15.869
B16: X | D16: A | G16: 35 | H16: Stephanie Fryar | I16: Some Streakin French | K16: 15.886 | P16: # Left
D17: A | G17: 254 | H17: Jeanie McKee | I17: Streak Of Pleasure | K17: 15.886 | P17: =$P$11-$P$14 -> 0
G18: 118 | H18: Brooke Alsup | I18: Chickadees Hayday | K18: 15.905
D19: A | G19: 165 | H19: Kristin Shoppa | I19: JW Freeze Frame | K19: 15.916
D20: A | G20: 277 | H20: Ashley Alligood | I20: RB BullysIndian Outlaw | K20: 15.943
G21: 19 | H21: Mary Shae Hays | I21: Streakin French MD | K21: 15.955
B22: X | C22: X | D22: A | G22: 234 | H22: Kelsey Hayden | I22: Buhbye | K22: 15.963
G23: 317 | H23: Lane Hadley | I23: Tommy | K23: 15.964
G24: 80 | H24: Stevie Perkins | I24: Django | K24: 15.975
G25: 65 | H25: Camelia Jenkins | K25: 16
G26: 301 | H26: Brittney Barnett | I26: Chicks Keen O Poco Poo | K26: 16.001
G27: 135 | H27: Andrea Sewell | I27: Abbysolutly Blitzed | K27: 16.003
G28: 312 | H28: Erin Reich | I28: Sallee | K28: 16.028 | M28: 2D 1st | N28: 900
D29: A | G29: 192 | H29: Kelsey Hayden | I29: Skippa Ice Breaker | K29: 16.029 | M29: 2D 2nd | N29: 750
G30: 74 | H30: Kelly Bruner | I30: LLP Shadrach | K30: 16.031 | M30: 2D 3rd | N30: 637.5
B31: X | G31: =SUM(G30+1) -> 75 | H31: Shelley Holman | I31: Wood B Fun | K31: 16.036 | M31: 2D 4th | N31: 487.5
B32: X | D32: A | G32: 206 | H32: Kara Large | I32: RSL FirstroyalEddie | K32: 16.05 | M32: 2D 5th | N32: 375
G33: 261 | H33: Megan Swint | I33: Krimes Sugar King | K33: 16.053 | M33: 2D 6th | N33: 262.5
G34: 97 | H34: Rylee Leach | I34: NMD ChestersLilBunny | K34: 16.063 | M34: 2D 7th | N34: 187.5
C35: X | D35: A | G35: 145 | H35: Jimmie Smith | I35: Marthas Bullion | K35: 16.072 | M35: 2D 8th | N35: 150
G36: 8 | H36: Sarah Rau | I36: Her Perks R On Fire | K36: 16.076
G37: 14 | H37: Maci Berry | I37: Shezamaximunbugleo | K37: 16.117
G38: 4 | H38: Lacy Billingsley | I38: lvn watchmeneighneigh | K38: 16.119
G39: 321 | H39: Megan Swint | I39: Oh No Frosty | K39: 16.119
G40: 322 | H40: Kristy Maxwell | I40: KC Judge On Fire | K40: 16.119
G41: 306 | H41: Sydney Harris | I41: Get Down Playboy | K41: 16.122
G42: 133 | H42: Jessica Beauvais | I42: Eyes Okey Dokey | K42: 16.146
D43: A | G43: 242 | H43: Phillip Kenyon | I43: Tillies Hayday | K43: 16.149
G44: 137 | H44: Kortney Fisher | I44: Stolin French Kisses | K44: 16.154
G45: =SUM(G44+1) -> 138 | H45: Kathy Warren | I45: Promise Me Sunshine | K45: 16.156
G46: 292 | H46: Sommer Strain | I46: Harems Scamp 229 | K46: 16.166
E47: X | F47: X | G47: 245 | H47: Micah Wallace | I47: Zima | K47: 16.168
D48: A | G48: 11 | H48: Bianca Dos Santos | I48: One Famous Streaker | K48: 16.17
G49: 283 | H49: Wenda Johnson | I49: Dreams First Flash | K49: 16.177
C50: X | D50: A | G50: 172 | H50: Lauren Whitmire | I50: Fame Rox | K50: 16.187
B51: X | G51: 252 | H51: Kassidy McKee | I51: Real EZ Fame | K51: 16.187
G52: 9 | H52: Lacy Schoenthal | I52: Max | K52: 16.188
G53: 258 | H53: Riley Chown | I53: Slate | K53: 16.19
D54: S | G54: 148 | H54: Jenny Zant | I54: Raise Me Ta Fame | K54: 16.191
E55: X | F55: X | G55: 307 | H55: Savannah Dore | I55: SR Jess So Special | K55: 16.193
A56: X | C56: X | D56: A | G56: 302 | H56: Jennifer Kalafatic | I56: Rockin The Guns | K56: 16.2
D57: A | G57: 31 | H57: Tami Semas | I57: Guys Drama Queen | K57: 16.205
G58: 183 | H58: Lauren Howe | I58: A Hero Spotted | K58: 16.211
G59: 253 | H59: Denny Ralls | I59: SV Southern Comfort | K59: 16.212
A60: X | D60: S | G60: 143 | H60: Jolene Jones | I60: Peppys Streakof Fame | K60: 16.228
G61: 208 | H61: Jennifer Cook | I61: MeanCheerleader | K61: 16.23
G62: 173 | H62: Judy Melvin | I62: Famous Kid Rock | K62: 16.235
G63: 40 | H63: Meridith Davis | I63: Blushing Fame | K63: 16.249
G64: 136 | H64: Karlee Kalberer | I64: Turbo Streaker | K64: 16.263
D65: S | G65: 84 | H65: Lisa Wernli | I65: Flashs Fine Effort | K65: 16.266
G66: 191 | H66: Kiley Dalchow | I66: Vegus First Snow | K66: 16.273
D67: S | G67: 44 | H67: Laura Creel | I67: Frenchmans Docs RX | K67: 16.28
G68: 279 | H68: Kinzer Simmons | I68: Jetta | K68: 16.289
D69: A | G69: 95 | H69: Sarah Rau | I69: Cinnamon On Top | K69: 16.293
B70: X | D70: A | G70: 273 | H70: Phillip Kenyon | I70: MakeitaMojito | K70: 16.295
D71: A | G71: 323 | H71: Jennifer Abbott | I71: Wendell Jackson | K71: 16.3
D72: A | G72: 23 | H72: Tawnie Vanderlans | I72: TS Return N Hayday | K72: 16.301
G73: 244 | H73: Misty Peek | I73: Amos | K73: 16.304
D74: A | G74: 150 | H74: Mindy Holloway | I74: Sweetmovinfirewater | K74: 16.31
D75: A | G75: 180 | H75: Mechelle Tyler | I75: Kissesforcaris | K75: 16.343
A76: X | G76: 45 | H76: Dawn Link | I76: Dominnator | K76: 16.351
G77: 151 | H77: Jo Fisher | I77: Fancy | K77: 16.38
G78: 86 | H78: Terri Ford | I78: Injun Needs Cash | K78: 16.382
G79: 58 | H79: Mary Shae Hays | I79: Streaks French Flit | K79: 16.384
D80: A | G80: 162 | H80: Jessie King | I80: Sophie SO Sweet | K80: 16.397
G81: 314 | H81: Adeline Navala | I81: Showinoffintheknud | K81: 16.4
D82: A | G82: 142 | H82: Teneille Angland | I82: KN Famous Ever After | K82: 16.403
G83: 146 | H83: Shannon Pearson | I83: Reds Roany Pony | K83: 16.406
G84: 94 | H84: Brooke Sully | I84: EZ Shake EM | K84: 16.41
G85: 218 | H85: Taryn Parsonage | I85: Jo Fame | K85: 16.411
D86: A | G86: 73 | H86: Stephanie Fryar | I86: The Red Maserati | K86: 16.415
G87: 214 | H87: Kevin Springer | I87: Miss Little Honey | K87: 16.417
A88: X | G88: 99 | H88: Hallie Hanssen | I88: Jesswatchmestreak | K88: 16.439
G89: 16 | H89: Kyra Boling | I89: Teninas Hayday | K89: 16.441
G90: 176 | H90: Andrea Sewell | I90: Uptown Fame | K90: 16.444
D91: S | G91: 140 | H91: Debbie Richardson | I91: VF Going Big Time | K91: 16.452
G92: 50 | H92: Connie Randolf | I92: Hot Rod Kitty Catt | K92: 16.455
G93: 48 | H93: Lacy Billingsley | I93: Dirty Dizco Diane 37 | K93: 16.463
G94: =SUM(G93+1) -> 49 | H94: Geneva Roberton | I94: Kick Some Dust Up | K94: 16.477
G95: 200 | H95: Benjamin Beall | I95: VF I Will B Famous | K95: 16.481
D96: S | G96: 138 | H96: Starla Fitzgerald | I96: Famous Gem | K96: 16.496
E97: X | F97: X | G97: 290 | H97: Leddy Hill | I97: Cashs Lil Dollie | K97: 16.517 | M97: 3D 1st | N97: 720
G98: 291 | H98: Chenessa McGraw | I98: The Flit To Kill For | K98: 16.526 | M98: 3D 2nd | N98: 600
G99: 350 | H99: Savannah Dore | I99: Faith | K99: 16.527 | M99: 3D 3rd | N99: 510
D100: S | G100: 159 | H100: Mary Carter | I100: Bully Bully Fame | K100: 16.546 | M100: 3D 4th | N100: 390
G101: 305 | H101: Blythe Beshears | I101: Lion To The Guys | K101: 16.553 | M101: 3D 5th | N101: 300
G102: 267 | H102: Jordan Swan | I102: Storms A Shakin | K102: 16.556 | M102: 3D 6th | N102: 210
D103: A | G103: 115 | H103: Jennifer Cullen | I103: HLC Pretty Lil Sugar | K103: 16.56 | M103: 3D 7th | N103: 150
G104: 204 | H104: Nisa Berry | I104: Luv That Cool Corona | K104: 16.567 | M104: 3D 8th | N104: 120
G105: 293 | H105: Sage Tomeu | I105: Stella | K105: 16.569
G106: 268 | H106: Sara Reed | I106: Rattle Me Too | K106: 16.575
G107: =SUM(G106+1) -> 269 | H107: Irene Feaser | I107: Cant Bye Fame | K107: 16.578
D108: S | G108: 78 | H108: Jo Kirby | I108: Heavenly Joak | K108: 16.58
G109: 276 | H109: Shelby Curry | I109: Katie | K109: 16.598
D110: S | G110: 90 | H110: Johnell Ray | I110: Smooth Your Jets | K110: 16.602
G111: 105 | H111: Lee Baron | I111: Xtra Splash N Go | K111: 16.603
G112: 122 | H112: Stevie Perkins | I112: A Fun Frenchman | K112: 16.614
G113: 316 | H113: Sydnee Carter | I113: Frenchmans Royal | K113: 16.617
E114: X | F114: X | G114: 233 | H114: Savannah Dore | I114: The Great Gatsby | K114: 16.622
G115: 222 | H115: Alleigh Harper | I115: HW Hesa Blurr | K115: 16.622
A116: X | D116: A | G116: 149 | H116: Stephanie Fryar | I116: Cant Stop The Feeling | K116: 16.64
G117: 181 | H117: Dawn Fryar | I117: Special Bid Of Frost | K117: 16.647
G118: 249 | H118: Brittney Barnett | I118: Frostys Sugar Peppy | K118: 16.648
D119: A | G119: 79 | H119: Laine Whitmire | I119: Ms Carrie Lou | K119: 16.656
G120: 331 | H120: Carlee Otero | I120: Citron | K120: 16.658
G121: 139 | H121: Bailey Yaussi | I121: Flippin Terrific | K121: 16.66
G122: 171 | H122: Shaun Sandoval | I122: Machine Gun Kelli | K122: 16.661
D123: S | G123: 185 | H123: Terry Vogel | I123: BB Boogyingfrenchman | K123: 16.664
G124: 167 | H124: Shea Durfey | I124: Betty | K124: 16.664
G125: 17 | H125: Casey Hammons | I125: BH Trip Ta Fame | K125: 16.673
G126: 116 | H126: Christi Durfey | I126: Jess Blazin Otoe | K126: 16.674
D127: A | G127: 27 | H127: Sydney Swatsell | I127: Smalls | K127: 16.697
D128: A | G128: 174 | H128: Tiffany Durham | I128: Dual Reys Win Money | K128: 16.7
G129: 246 | H129: Kinzer Simmons | I129: Skeeter | K129: 16.704
D130: A | G130: 69 | H130: Sydney Swatsell | I130: Feature Me Firin | K130: 16.714
G131: 298 | H131: Megan Swint | I131: Special Dances | K131: 16.718
D132: A | G132: 318 | H132: Madison Wright | I132: Manchita | K132: 16.722
G133: 112 | H133: Kristen Dorman | I133: Easy | K133: 16.724
G134: 188 | H134: Felesha Smith | I134: Chicks Shawnee Bug | K134: 16.731
D135: A | G135: 215 | H135: Caitlyn Schievink | I135: KN Mojita Over Rocks | K135: 16.732
D136: S | G136: 131 | H136: Mary McLiney | I136: Banking Ta Fame | K136: 16.74
D137: A | G137: 93 | H137: Daisy Baird | I137: Teninas Smart Cookie | K137: 16.756
G138: 308 | H138: Makala Pierce | I138: Melman | K138: 16.766
A139: X | D139: S | G139: 243 | H139: Julie Knox | I139: Talented Streaker | K139: 16.785
E140: X | F140: X | G140: 266 | H140: Stormi Branch | I140: Demon | K140: 16.789
D141: A | G141: 163 | H141: Lindsey Stevens | I141: JM I Got Faith | K141: 16.791
G142: 46 | H142: Lacy Matthews | I142: Shilohs Perky Pistol | K142: 16.792
D143: S | G143: 127 | H143: Lisa Wernli | I143: Babe On the Run | K143: 16.8
G144: 262 | H144: Gretchen Goedeken | I144: Fine Whatever | K144: 16.811
G145: 297 | H145: Mike Lackey | I145: Eazy Bling Bling | K145: 16.822
G146: 190 | H146: Kendra Feaser | I146: She Run For Cash | K146: 16.827
D147: S | G147: 221 | H147: Terry Vogel | I147: Dinky Jets Famous Jr | K147: 16.83
D148: A | G148: 170 | H148: Alleigh Harper | I148: Rockette Aflame | K148: 16.836
G149: 2 | H149: Wyatt Paul | I149: Hurricane Harvey | K149: 16.842
G150: 55 | H150: Nisa Berry | I150: NB Keep N Time | K150: 16.857
G151: 184 | H151: Taryn Parsonage | I151: Quick Ta CASh In | K151: 16.857
G152: 212 | H152: Matt Bancroft | I152: Toms Texas Cash | K152: 16.861
A153: X | D153: A | G153: 47 | H153: Sarah Rau | I153: MV Famous Margarita | K153: 16.881
G154: 194 | H154: Liz Gundersen | I154: Spinning Cookies | K154: 16.895
G155: 24 | H155: Kristi Tuinei | I155: Zippys Cash Ta Fame | K155: 16.9
G156: 34 | H156: Shannon Black | I156: Mr Rambo Remedy | K156: 16.903
G157: 230 | H157: Felesha Smith | I157: Frostbidden Leo | K157: 16.907
D158: A | G158: 64 | H158: Lorinda Van Newkirk | I158: Rare Shake CEO | K158: 16.908
G159: 147 | H159: Jessica Mohr | I159: KN Chattin Bout Fame | K159: 16.908
G160: 60 | H160: Kortney Fisher | I160: Tres For Me | K160: 16.915
G161: 28 | H161: Andrea Cline | I161: The Fame Is Serious | K161: 16.919
G162: 160 | H162: Gretchen Goedeken | I162: Pretty Bay Pony | K162: 16.932
A163: X | D163: A | G163: 13 | H163: Tiffany Durham | I163: Midge Ridge | K163: 16.941
G164: 228 | H164: Meredith Telford | I164: Whos Winning | K164: 16.947
G165: 179 | H165: Jo FIsher | I165: Rockette | K165: 16.953
G166: 270 | H166: Kendall Jordan | I166: Fern | K166: 16.98
G167: 123 | H167: Delaney Siebert | I167: Streakin N Blazin | K167: 16.983
D168: S | G168: 114 | H168: Patti Reardon | I168: HeCome Dun | K168: 16.991
G169: 33 | H169: Anna Barker | I169: TK Fire N Fame | K169: 16.994
G170: 30 | H170: Amberleigh Moore | I170: Blue Duck Down | K170: 17.008
D171: S | G171: 70 | H171: Jolene Jones | I171: Capone | K171: 17.021 | M171: 4D 1st | N171: 540
E172: X | F172: X | G172: 224 | H172: Avery Childers | I172: Circle Y Doc | K172: 17.042 | M172: 4D 2nd | N172: 450
G173: 281 | H173: Brinley Howard | I173: Reds Western Flit | K173: 17.052 | M173: 4D 3rd | N173: 383
D174: S | G174: 29 | H174: Veronica Williams | I174: Tri War Leo | K174: 17.058 | M174: 4D 4th | N174: 292.5
G175: 196 | H175: Lolita Long | I175: Streakin Summer Bugs | K175: 17.067 | M175: 4D 5th | N175: 225
G176: 189 | H176: Roberta Chott | I176: Guys Hot Frost | K176: 17.074 | M176: 4D 6th | N176: 157.5
G177: 272 | H177: Brittney Barnett | I177: Frenchmans Pick | K177: 17.085 | M177: 4D 7th | N177: 113
D178: A | G178: 62 | H178: Tiffany Durham | I178: Dashin Luke Perry | K178: 17.098 | M178: 4D 8th | N178: 90
G179: 59 | H179: Heavenli Scribner | I179: JSH Lucky Bottom Roy | K179: 17.102
D180: S | G180: 161 | H180: Dee Dee Jordan | I180: Lil Yella Draw | K180: 17.129
G181: 71 | H181: Olivia Largent | K181: 17.144
G182: 210 | H182: Judy Melvin | I182: Flits Ruby Shine | K182: 17.152
G183: 287 | H183: McKenzie Morgan | I183: Streak | K183: 17.153
D184: S | G184: 38 | H184: Trina Murray | I184: Fuel For Dash | K184: 17.163
G185: 144 | H185: Camelia Jenkins | K185: 17.163
G186: 20 | H186: Anisa Coates | I186: Blazin Nike | K186: 17.17
G187: 10 | H187: Lisa Corey | I187: Beda Dream | K187: 17.181
G188: 211 | H188: Gretchen Goedeken | I188: Spots in my Dreams | K188: 17.198
E189: x | F189: x | G189: 36 | H189: Taylor Hice | I189: Mack Daddy | K189: 17.218
G190: 51 | H190: Kyle Etchart | I190: Panfis Corona | K190: 17.219
G191: 108 | H191: Shantell Hayes | I191: Cougar | K191: 17.22
G192: 41 | H192: Mandi Cleveland | I192: Rare Corona Gone | K192: 17.231
G193: 284 | H193: Sherry Alligood | I193: Peppy Cherokee King | K193: 17.245
D194: A | G194: 7 | H194: Jesse Budd | I194: Flicker Nic | K194: 17.262
G195: 278 | H195: Carole Lynn Newsome | I195: SA Docs Dual Ruby | K195: 17.272
G196: 320 | H196: Allie Zant | I196: DB Sweet N Smooth | K196: 17.277
G197: 168 | H197: Nisa Berry | I197: Woodya Luk At Me Now | K197: 17.285
G198: 102 | H198: Whitney Fisher | I198: BB French N Easy | K198: 17.291
D199: S | G199: 213 | H199: Lee Vogel | I199: Super Frosted Bug | K199: 17.313
E200: X | F200: X | G200: 109 | H200: Hadley Durfey | I200: One Smooth Kelly | K200: 17.316
D201: A | G201: 303 | H201: Nicole Buell | I201: Dirty Money | K201: 17.338
... 334 more rows

Sheet Senior
A1: Futurity | B1: Der | C1: Senior | D1: BBR | E1: Draw | F1: Rider Name | G1: Horse Name | H1: Time | I1: Final Time | J1: Placing | K1: Money Earned
E2: 1 | F2: Tammy Rokus | G2: Mitey Confederate | I2: 15.781 | J2: 1D 1st | K2: 121.8
E3: 2 | F3: Jenny Zant | G3: Raise Me Ta Fame | I3: 16.191 | J3: 1D 2nd | K3: 81.2
E4: 3 | F4: Jolene Jones | G4: Peppys Streakof Fame | I4: 16.228
E5: 4 | F5: Lisa Wernli | G5: Flashs Fine Effort | I5: 16.266
E6: 5 | F6: Laura Creel | G6: Frenchmans Docs RX | I6: 16.28
E7: 6 | F7: Debbie Richardson | G7: VF Going Big Time | I7: 16.452 | J7: 2D 1st | K7: 104.4
E8: 7 | F8: Starla Fitzgerald | G8: Famous Gem | I8: 16.496 | J8: 2D 2nd | K8: 69.6
E9: 8 | F9: Mary Carter | G9: Bully Bully Fame | I9: 16.546
E10: 9 | F10: Jo Kirby | G10: Heavenly Joak | I10: 16.58
E11: 10 | F11: Johnell Ray | G11: Smooth Your Jets | I11: 16.602
E12: 11 | F12: Terry Vogel | G12: BB Boogyingfrenchman | I12: 16.664
E13: 12 | F13: Mary McLiney | G13: Banking Ta Fame | I13: 16.74
E14: 13 | F14: Julie Knox | G14: Talented Streaker | I14: 16.785 | J14: 3D 1st | K14: 69.6
E15: 14 | F15: Lisa Wernli | G15: Babe On the Run | I15: 16.8 | J15: 3D 2nd | K15: 46.4
E16: 15 | F16: Terry Vogel | G16: Dinky Jets Famous Jr | I16: 16.83
E17: 16 | F17: Patti Reardon | G17: HeCome Dun | I17: 16.991
E18: 17 | F18: Jolene Jones | G18: Capone | I18: 17.021
E19: 18 | F19: Veronica Williams | G19: Tri War Leo | I19: 17.058
E20: 19 | F20: Dee Dee Jordan | G20: Lil Yella Draw | I20: 17.129
E21: 20 | F21: Trina Murray | G21: Fuel For Dash | I21: 17.163
E22: 21 | F22: Lee Vogel | G22: Super Frosted Bug | I22: 17.313 | J22: 4D 1st | K22: 52.2
E23: 22 | F23: Kathy Cribbs | G23: playboy Arrow | I23: 17.341 | J23: 4D 2nd | K23: 34.8
E24: 23 | F24: Terry Vogel | G24: Imablueyedblondbitz | I24: 17.51
E25: 24 | F25: Trina Murray | G25: JL Fourtafame | I25: 17.779
E26: 25 | F26: Marj Dahle | I26: 18.449
E27: 26 | F27: Martha Jordan | G27: MV Fury Of The Fame | I27: nt15.879
E28: 27 | F28: Debbie Richardson | G28: Jessd Streakin Again | I28: nt16.649
E29: 28 | F29: Tammy Rokus | G29: Rugged Frenchman | I29: nt17.125
E30: 29 | F30: Debra Cooper | G30: Hugginanativepepto | I30: nt18.036
E31: 30
E32: 31
E33: 32
E34: 33
E35: 34
E36: 35
E37: 36
E38: 37
E39: 38
E40: 39
E41: 40
E42: 41
E43: 42
E44: 43
E45: 44
E46: 45
E47: 46
E48: 47
E49: 48
E50: 49
E51: 50
E52: 51
E53: 52
E54: 53
E55: 54
E56: 55
E57: 56
E58: 57
E59: 58
E60: 59
E61: 60
E62: 61
E63: 62
E64: 63
E65: 64
E66: 65
E67: 66
E68: 67
E69: 68
E70: 69
E71: 70
E72: 71
E73: 72
E74: 73
E75: 74
E76: 75
E77: 76
E78: 77
E79: 78
E80: 79
E81: 80
E82: 81
E83: 82
E84: 83
E85: 84
E86: 85
E87: 86
E88: 87
E89: 88
E90: 89
E91: 90
E92: 91
E93: 92
E94: 93
E95: 94
E96: 95
E97: 96
E98: 97
E99: 98
E100: 99
E101: 100
E102: 101
E103: 102
E104: 103
E105: 104
E106: 105
E107: 106
E108: 107
E109: 108
E110: 109
E111: 110
E112: 111
E113: 112
E114: 113
E115: 114
E116: 115 | I116: =IF(OR(#REF!=5,#REF!=10,#REF!= 15,#REF!= "BP",#REF!="SCR"),"NT",H116) -> 
E117: 116 | I117: =IF(OR(#REF!=5,#REF!=10,#REF!= 15,#REF!= "BP",#REF!="SCR"),"NT",H117) -> 
E118: 117 | I118: =IF(OR(#REF!=5,#REF!=10,#REF!= 15,#REF!= "BP",#REF!="SCR"),"NT",H118) -> 
E119: 118 | I119: =IF(OR(#REF!=5,#REF!=10,#REF!= 15,#REF!= "BP",#REF!="SCR"),"NT",H119) -> 
E120: 119 | I120: =IF(OR(#REF!=5,#REF!=10,#REF!= 15,#REF!= "BP",#REF!="SCR"),"NT",H120) -> 
E121: 120 | I121: =IF(OR(#REF!=5,#REF!=10,#REF!= 15,#REF!= "BP",#REF!="SCR"),"NT",H121) -> 
E122: 121 | I122: =IF(OR(#REF!=5,#REF!=10,#REF!= 15,#REF!= "BP",#REF!="SCR"),"NT",H122) -> 
E123: 122 | I123: =IF(OR(#REF!=5,#REF!=10,#REF!= 15,#REF!= "BP",#REF!="SCR"),"NT",H123) -> 
E124: 123 | I124: =IF(OR(#REF!=5,#REF!=10,#REF!= 15,#REF!= "BP",#REF!="SCR"),"NT",H124) -> 
E125: 124 | I125: =IF(OR(#REF!=5,#REF!=10,#REF!= 15,#REF!= "BP",#REF!="SCR"),"NT",H125) -> 
E126: 125 | I126: =IF(OR(#REF!=5,#REF!=10,#REF!= 15,#REF!= "BP",#REF!="SCR"),"NT",H126) -> 
E127: 126 | I127: =IF(OR(#REF!=5,#REF!=10,#REF!= 15,#REF!= "BP",#REF!="SCR"),"NT",H127) -> 
E128: 127 | I128: =IF(OR(#REF!=5,#REF!=10,#REF!= 15,#REF!= "BP",#REF!="SCR"),"NT",H128) -> 
E129: 128 | I129: =IF(OR(#REF!=5,#REF!=10,#REF!= 15,#REF!= "BP",#REF!="SCR"),"NT",H129) -> 
E130: 129 | I130: =IF(OR(#REF!=5,#REF!=10,#REF!= 15,#REF!= "BP",#REF!="SCR"),"NT",H130) -> 
E131: 130 | I131: =IF(OR(#REF!=5,#REF!=10,#REF!= 15,#REF!= "BP",#REF!="SCR"),"NT",H131) -> 
E132: 131 | I132: =IF(OR(#REF!=5,#REF!=10,#REF!= 15,#REF!= "BP",#REF!="SCR"),"NT",H132) -> 
E133: 132 | I133: =IF(OR(#REF!=5,#REF!=10,#REF!= 15,#REF!= "BP",#REF!="SCR"),"NT",H133) -> 
E134: 133 | I134: =IF(OR(#REF!=5,#REF!=10,#REF!= 15,#REF!= "BP",#REF!="SCR"),"NT",H134) -> 
E135: 134 | I135: =IF(OR(#REF!=5,#REF!=10,#REF!= 15,#REF!= "BP",#REF!="SCR"),"NT",H135) -> 
E136: 135 | I136: =IF(OR(#REF!=5,#REF!=10,#REF!= 15,#REF!= "BP",#REF!="SCR"),"NT",H136) -> 
E137: 136 | I137: =IF(OR(#REF!=5,#REF!=10,#REF!= 15,#REF!= "BP",#REF!="SCR"),"NT",H137) -> 
E138: 137 | I138: =IF(OR(#REF!=5,#REF!=10,#REF!= 15,#REF!= "BP",#REF!="SCR"),"NT",H138) -> 
E139: 138 | I139: =IF(OR(#REF!=5,#REF!=10,#REF!= 15,#REF!= "BP",#REF!="SCR"),"NT",H139) -> 
E140: 139 | I140: =IF(OR(#REF!=5,#REF!=10,#REF!= 15,#REF!= "BP",#REF!="SCR"),"NT",H140) -> 
E141: 140 | I141: =IF(OR(#REF!=5,#REF!=10,#REF!= 15,#REF!= "BP",#REF!="SCR"),"NT",H141) -> 
E142: 141 | I142: =IF(OR(#REF!=5,#REF!=10,#REF!= 15,#REF!= "BP",#REF!="SCR"),"NT",H142) -> 
E143: 142 | I143: =IF(OR(#REF!=5,#REF!=10,#REF!= 15,#REF!= "BP",#REF!="SCR"),"NT",H143) -> 
E144: 143 | I144: =IF(OR(#REF!=5,#REF!=10,#REF!= 15,#REF!= "BP",#REF!="SCR"),"NT",H144) -> 
E145: 144 | I145: =IF(OR(#REF!=5,#REF!=10,#REF!= 15,#REF!= "BP",#REF!="SCR"),"NT",H145) -> 
E146: 145 | I146: =IF(OR(#REF!=5,#REF!=10,#REF!= 15,#REF!= "BP",#REF!="SCR"),"NT",H146) -> 
E147: 146 | I147: =IF(OR(#REF!=5,#REF!=10,#REF!= 15,#REF!= "BP",#REF!="SCR"),"NT",H147) -> 
E148: 147 | I148: =IF(OR(#REF!=5,#REF!=10,#REF!= 15,#REF!= "BP",#REF!="SCR"),"NT",H148) -> 
E149: 148 | I149: =IF(OR(#REF!=5,#REF!=10,#REF!= 15,#REF!= "BP",#REF!="SCR"),"NT",H149) -> 
E150: 149 | I150: =IF(OR(#REF!=5,#REF!=10,#REF!= 15,#REF!= "BP",#REF!="SCR"),"NT",H150) -> 
E151: 150 | I151: =IF(OR(#REF!=5,#REF!=10,#REF!= 15,#REF!= "BP",#REF!="SCR"),"NT",H151) -> 
E152: 151 | I152: =IF(OR(#REF!=5,#REF!=10,#REF!= 15,#REF!= "BP",#REF!="SCR"),"NT",H152) -> 
E153: 152 | I153: =IF(OR(#REF!=5,#REF!=10,#REF!= 15,#REF!= "BP",#REF!="SCR"),"NT",H153) -> 
E154: 153 | I154: =IF(OR(#REF!=5,#REF!=10,#REF!= 15,#REF!= "BP",#REF!="SCR"),"NT",H154) -> 
E155: 154 | I155: =IF(OR(#REF!=5,#REF!=10,#REF!= 15,#REF!= "BP",#REF!="SCR"),"NT",H155) -> 
E156: 155 | I156: =IF(OR(#REF!=5,#REF!=10,#REF!= 15,#REF!= "BP",#REF!="SCR"),"NT",H156) -> 
E157: 156 | I157: =IF(OR(#REF!=5,#REF!=10,#REF!= 15,#REF!= "BP",#REF!="SCR"),"NT",H157) -> 
E158: 157 | I158: =IF(OR(#REF!=5,#REF!=10,#REF!= 15,#REF!= "BP",#REF!="SCR"),"NT",H158) -> 
E159: 158 | I159: =IF(OR(#REF!=5,#REF!=10,#REF!= 15,#REF!= "BP",#REF!="SCR"),"NT",H159) -> 
E160: 159 | I160: =IF(OR(#REF!=5,#REF!=10,#REF!= 15,#REF!= "BP",#REF!="SCR"),"NT",H160) -> 
E161: 160 | I161: =IF(OR(#REF!=5,#REF!=10,#REF!= 15,#REF!= "BP",#REF!="SCR"),"NT",H161) -> 
E162: 161 | I162: =IF(OR(#REF!=5,#REF!=10,#REF!= 15,#REF!= "BP",#REF!="SCR"),"NT",H162) -> 
E163: 162 | I163: =IF(OR(#REF!=5,#REF!=10,#REF!= 15,#REF!= "BP",#REF!="SCR"),"NT",H163) -> 
E164: 163 | I164: =IF(OR(#REF!=5,#REF!=10,#REF!= 15,#REF!= "BP",#REF!="SCR"),"NT",H164) -> 
E165: 164 | I165: =IF(OR(#REF!=5,#REF!=10,#REF!= 15,#REF!= "BP",#REF!="SCR"),"NT",H165) -> 
E166: 165 | I166: =IF(OR(#REF!=5,#REF!=10,#REF!= 15,#REF!= "BP",#REF!="SCR"),"NT",H166) -> 
E167: 166 | I167: =IF(OR(#REF!=5,#REF!=10,#REF!= 15,#REF!= "BP",#REF!="SCR"),"NT",H167) -> 
E168: 167 | I168: =IF(OR(#REF!=5,#REF!=10,#REF!= 15,#REF!= "BP",#REF!="SCR"),"NT",H168) -> 
E169: 168 | I169: =IF(OR(#REF!=5,#REF!=10,#REF!= 15,#REF!= "BP",#REF!="SCR"),"NT",H169) -> 
E170: 169 | I170: =IF(OR(#REF!=5,#REF!=10,#REF!= 15,#REF!= "BP",#REF!="SCR"),"NT",H170) -> 
E171: 170 | I171: =IF(OR(#REF!=5,#REF!=10,#REF!= 15,#REF!= "BP",#REF!="SCR"),"NT",H171) -> 
E172: 171 | I172: =IF(OR(#REF!=5,#REF!=10,#REF!= 15,#REF!= "BP",#REF!="SCR"),"NT",H172) -> 
E173: 172 | I173: =IF(OR(#REF!=5,#REF!=10,#REF!= 15,#REF!= "BP",#REF!="SCR"),"NT",H173) -> 
E174: 173 | I174: =IF(OR(#REF!=5,#REF!=10,#REF!= 15,#REF!= "BP",#REF!="SCR"),"NT",H174) -> 
E175: 174 | I175: =IF(OR(#REF!=5,#REF!=10,#REF!= 15,#REF!= "BP",#REF!="SCR"),"NT",H175) -> 
E176: 175 | I176: =IF(OR(#REF!=5,#REF!=10,#REF!= 15,#REF!= "BP",#REF!="SCR"),"NT",H176) -> 
E177: 176 | I177: =IF(OR(#REF!=5,#REF!=10,#REF!= 15,#REF!= "BP",#REF!="SCR"),"NT",H177) -> 
E178: 177 | I178: =IF(OR(#REF!=5,#REF!=10,#REF!= 15,#REF!= "BP",#REF!="SCR"),"NT",H178) -> 
E179: 178 | I179: =IF(OR(#REF!=5,#REF!=10,#REF!= 15,#REF!= "BP",#REF!="SCR"),"NT",H179) -> 
E180: 179 | I180: =IF(OR(#REF!=5,#REF!=10,#REF!= 15,#REF!= "BP",#REF!="SCR"),"NT",H180) -> 
E181: 180 | I181: =IF(OR(#REF!=5,#REF!=10,#REF!= 15,#REF!= "BP",#REF!="SCR"),"NT",H181) -> 
E182: 181 | I182: =IF(OR(#REF!=5,#REF!=10,#REF!= 15,#REF!= "BP",#REF!="SCR"),"NT",H182) -> 
E183: 182 | I183: =IF(OR(#REF!=5,#REF!=10,#REF!= 15,#REF!= "BP",#REF!="SCR"),"NT",H183) -> 
E184: 183 | I184: =IF(OR(#REF!=5,#REF!=10,#REF!= 15,#REF!= "BP",#REF!="SCR"),"NT",H184) -> 
E185: 184 | I185: =IF(OR(#REF!=5,#REF!=10,#REF!= 15,#REF!= "BP",#REF!="SCR"),"NT",H185) -> 
E186: 185 | I186: =IF(OR(#REF!=5,#REF!=10,#REF!= 15,#REF!= "BP",#REF!="SCR"),"NT",H186) -> 
E187: 186 | I187: =IF(OR(#REF!=5,#REF!=10,#REF!= 15,#REF!= "BP",#REF!="SCR"),"NT",H187) -> 
E188: 187 | I188: =IF(OR(#REF!=5,#REF!=10,#REF!= 15,#REF!= "BP",#REF!="SCR"),"NT",H188) -> 
E189: 188 | I189: =IF(OR(#REF!=5,#REF!=10,#REF!= 15,#REF!= "BP",#REF!="SCR"),"NT",H189) -> 
E190: 189 | I190: =IF(OR(#REF!=5,#REF!=10,#REF!= 15,#REF!= "BP",#REF!="SCR"),"NT",H190) -> 
E191: 190 | I191: =IF(OR(#REF!=5,#REF!=10,#REF!= 15,#REF!= "BP",#REF!="SCR"),"NT",H191) -> 
E192: 191 | I192: =IF(OR(#REF!=5,#REF!=10,#REF!= 15,#REF!= "BP",#REF!="SCR"),"NT",H192) -> 
E193: 192 | I193: =IF(OR(#REF!=5,#REF!=10,#REF!= 15,#REF!= "BP",#REF!="SCR"),"NT",H193) -> 
E194: 193 | I194: =IF(OR(#REF!=5,#REF!=10,#REF!= 15,#REF!= "BP",#REF!="SCR"),"NT",H194) -> 
E195: 194 | I195: =IF(OR(#REF!=5,#REF!=10,#REF!= 15,#REF!= "BP",#REF!="SCR"),"NT",H195) -> 
E196: 195 | I196: =IF(OR(#REF!=5,#REF!=10,#REF!= 15,#REF!= "BP",#REF!="SCR"),"NT",H196) -> 
E197: 196 | I197: =IF(OR(#REF!=5,#REF!=10,#REF!= 15,#REF!= "BP",#REF!="SCR"),"NT",H197) -> 
E198: 197 | I198: =IF(OR(#REF!=5,#REF!=10,#REF!= 15,#REF!= "BP",#REF!="SCR"),"NT",H198) -> 
E199: 198 | I199: =IF(OR(#REF!=5,#REF!=10,#REF!= 15,#REF!= "BP",#REF!="SCR"),"NT",H199) -> 
E200: 199 | I200: =IF(OR(#REF!=5,#REF!=10,#REF!= 15,#REF!= "BP",#REF!="SCR"),"NT",H200) -> 
... 101 more rows

Sheet Adult
A1: Futurity | B1: Der | C1: Adult | D1: BBR | E1: Draw | F1: Rider Name | G1: Horse Name | H1: Pen | I1: Time | J1: Final Time | K1: Placing | L1: Money Earned
E2: 1 | F2: Kylee Scribner | G2: Firewater Cartel | I2: 15.623 | K2: 1D 1st | L2: 220.5
E3: 2 | F3: Laine Whitmire | G3: Bullseye Bullion | I3: 15.736 | K3: 1D 2nd | L3: 132.3
E4: 3 | F4: Jimmie Smith | G4: Lever Action | I4: 15.782 | K4: 1D 3rd | L4: 88.2
E5: 4 | F5: Stephanie Fryar | G5: Some Streakin French | I5: 15.886
E6: 5 | F6: Jeanie McKee | G6: Streak Of Pleasure | I6: 15.886
E7: 6 | F7: Kristin Shoppa | G7: JW Freeze Frame | I7: 15.916
E8: 7 | F8: Ashley Alligood | G8: RB BullysIndian Outlaw | I8: 15.943
E9: 8 | F9: Kelsey Hayden | G9: Buhbye | I9: 15.963
E10: 9 | F10: Kelsey Hayden | G10: Skippa Ice Breaker | I10: 16.029
E11: 10 | F11: Kara Large | G11: RSL FirstroyalEddie | I11: 16.05
E12: 11 | F12: Jimmie Smith | G12: Marthas Bullion | I12: 16.072
E13: 12 | F13: Phillip Kenyon | G13: Tillies Hayday | I13: 16.149 | K13: 2D 1st | L13: 189
E14: 13 | F14: Bianca Dos Santos | G14: One Famous Streaker | I14: 16.17 | K14: 2D 2nd | L14: 113.4
E15: 14 | F15: Lauren Whitmire | G15: Fame Rox | I15: 16.187 | K15: 2D 3rd | L15: 75.6
E16: 15 | F16: Jennifer Kalafatic | G16: Rockin The Guns | I16: 16.2
E17: 16 | F17: Tami Semas | G17: Guys Drama Queen | I17: 16.205
E18: 17 | F18: Sarah Rau | G18: Cinnamon On Top | I18: 16.293
E19: 18 | F19: Phillip Kenyon | G19: MakeitaMojito | I19: 16.295
E20: 19 | F20: Jennifer Abbott | G20: Wendell Jackson | I20: 16.3
E21: 20 | F21: Tawnie Vanderlans | G21: TS Return N Hayday | I21: 16.301
E22: 21 | F22: Mindy Holloway | G22: Sweetmovinfirewater | I22: 16.31
E23: 22 | F23: Mechelle Tyler | G23: Kissesforcaris | I23: 16.343
E24: 23 | F24: Jessie King | G24: Sophie SO Sweet | I24: 16.397
E25: 24 | F25: Teneille Angland | G25: KN Famous Ever After | I25: 16.403
E26: 25 | F26: Stephanie Fryar | G26: The Red Maserati | I26: 16.415
E27: 26 | F27: Jennifer Cullen | G27: HLC Pretty Lil Sugar | I27: 16.56
E28: 27 | F28: Stephanie Fryar | G28: Cant Stop The Feeling | I28: 16.64 | K28: 3D 1st | L28: 126
E29: 28 | F29: Laine Whitmire | G29: Ms Carrie Lou | I29: 16.656 | K29: 3D 2nd | L29: 75.6
E30: 29 | F30: Sydney Swatsell | G30: Smalls | I30: 16.697 | K30: 3D 3rd | L30: 50.4
E31: 30 | F31: Tiffany Durham | G31: Dual Reys Win Money | I31: 16.7
E32: 31 | F32: Sydney Swatsell | G32: Feature Me Firin | I32: 16.714
E33: 32 | F33: Madison Wright | G33: Manchita | I33: 16.722
E34: 33 | F34: Caitlyn Schievink | G34: KN Mojita Over Rocks | I34: 16.732
E35: 34 | F35: Daisy Baird | G35: Teninas Smart Cookie | I35: 16.756
E36: 35 | F36: Lindsey Stevens | G36: JM I Got Faith | I36: 16.791
E37: 36 | F37: Alleigh Harper | G37: Rockette Aflame | I37: 16.836
E38: 37 | F38: Sarah Rau | G38: MV Famous Margarita | I38: 16.881
E39: 38 | F39: Lorinda Van Newkirk | G39: Rare Shake CEO | I39: 16.908
E40: 39 | F40: Tiffany Durham | G40: Midge Ridge | I40: 16.941
E41: 40 | F41: Tiffany Durham | G41: Dashin Luke Perry | I41: 17.098
E42: 42 | F42: Jesse Budd | G42: Flicker Nic | I42: 17.262 | K42: 4D 1st | L42: 94.5
E43: 43 | F43: Nicole Buell | G43: Dirty Money | I43: 17.338 | K43: 4D 2nd | L43: 56.7
E44: 44 | F44: Rogena Richard | G44: Colt | I44: 17.356 | K44: 4D 3rd | L44: 37.8
E45: 45 | F45: Timberly Erickson | G45: Mines Fast | I45: 17.385
E46: 46 | F46: Jessica Crouch | G46: Vito | I46: 17.386
E47: 47 | F47: Tiffany Durham | G47: Colonels Kerosene | I47: 17.877
E48: 48 | F48: Jennifer Cullen | G48: Chasin Annies Fame | I48: 17.978
E49: 49 | F49: Randi Roberts | G49: Boom Slicka Boom | I49: 18.086
E50: 50 | F50: Kolleen Wilchenski | G50: Bugsy | I50: 18.687
E51: 51 | F51: Amber Wagner | G51: Nordis Dash | I51: 20.77
E52: 52 | F52: Kolleen Wilchenski | G52: Ima Mighty One | I52: broken
E53: 53 | F53: Jessica Crouch | G53: Vinny | I53: nt
E54: 54 | F54: Shelby Janssen | G54: Shes A Man Eater | I54: nt15.966
E55: 55 | F55: Jennifer Kalafatic | G55: CM Spotlight | I55: nt16.385
E56: 56 | F56: Lauren Whitmire | G56: Dash Down Anytime | I56: nt16.447
E57: 57 | F57: Stephanie Fryar | G57: Can I Get a Hallelujah | I57: nt16.502
E58: 58 | F58: Lindsey Stevens | G58: Miss America Fame | I58: nt16.621
E59: 59 | F59: Lauren Whitmire | G59: WR Famous Maverick | I59: nt16.774
E60: 60 | F60: Lauren Whitmire | G60: WR Famous Amigo | I60: nt16.801
E61: 61 | F61: Sarah Peters | G61: Rockin My Fame | I61: nt16.924
E62: 41 | F62: Katie Kapanick | G62: Pistol Packin Lark | I62: nt17.211
E63: 62 | F63: Serena Jenkins | G63: Top Money Dude | I63: nt19.030
E64: 63 | F64: Mindy Holloway | G64: Flame Flinging Rebel | I64: nt20.480 | J64: =IF(OR(H64=5,H64=10, H64=15, H64="BP",H64="SCR"),"NT",I64) -> nt20.480
E65: 64 | J65: =IF(OR(H65=5,H65=10, H65=15, H65="BP",H65="SCR"),"NT",I65) -> 0
E66: 65 | J66: =IF(OR(H66=5,H66=10, H66=15, H66="BP",H66="SCR"),"NT",I66) -> 0
E67: 66 | J67: =IF(OR(H67=5,H67=10, H67=15, H67="BP",H67="SCR"),"NT",I67) -> 0
E68: 67 | J68: =IF(OR(H68=5,H68=10, H68=15, H68="BP",H68="SCR"),"NT",I68) -> 0
E69: 68 | J69: =IF(OR(H69=5,H69=10, H69=15, H69="BP",H69="SCR"),"NT",I69) -> 0
E70: 69 | J70: =IF(OR(H70=5,H70=10, H70=15, H70="BP",H70="SCR"),"NT",I70) -> 0
E71: 70 | J71: =IF(OR(H71=5,H71=10, H71=15, H71="BP",H71="SCR"),"NT",I71) -> 0
E72: 71 | J72: =IF(OR(H72=5,H72=10, H72=15, H72="BP",H72="SCR"),"NT",I72) -> 0
E73: 72 | J73: =IF(OR(H73=5,H73=10, H73=15, H73="BP",H73="SCR"),"NT",I73) -> 0
E74: 73 | J74: =IF(OR(H74=5,H74=10, H74=15, H74="BP",H74="SCR"),"NT",I74) -> 0
E75: 74 | J75: =IF(OR(H75=5,H75=10, H75=15, H75="BP",H75="SCR"),"NT",I75) -> 0
E76: 75 | J76: =IF(OR(H76=5,H76=10, H76=15, H76="BP",H76="SCR"),"NT",I76) -> 0
E77: 76 | J77: =IF(OR(H77=5,H77=10, H77=15, H77="BP",H77="SCR"),"NT",I77) -> 0
E78: 77 | J78: =IF(OR(H78=5,H78=10, H78=15, H78="BP",H78="SCR"),"NT",I78) -> 0
E79: 78 | J79: =IF(OR(H79=5,H79=10, H79=15, H79="BP",H79="SCR"),"NT",I79) -> 0
E80: 79 | J80: =IF(OR(H80=5,H80=10, H80=15, H80="BP",H80="SCR"),"NT",I80) -> 0
E81: 80 | J81: =IF(OR(H81=5,H81=10, H81=15, H81="BP",H81="SCR"),"NT",I81) -> 0
E82: 81 | J82: =IF(OR(H82=5,H82=10, H82=15, H82="BP",H82="SCR"),"NT",I82) -> 0
E83: 82 | J83: =IF(OR(H83=5,H83=10, H83=15, H83="BP",H83="SCR"),"NT",I83) -> 0
E84: 83 | J84: =IF(OR(H84=5,H84=10, H84=15, H84="BP",H84="SCR"),"NT",I84) -> 0
E85: 84 | J85: =IF(OR(H85=5,H85=10, H85=15, H85="BP",H85="SCR"),"NT",I85) -> 0
E86: 85 | J86: =IF(OR(H86=5,H86=10, H86=15, H86="BP",H86="SCR"),"NT",I86) -> 0
E87: 86 | J87: =IF(OR(H87=5,H87=10, H87=15, H87="BP",H87="SCR"),"NT",I87) -> 0
E88: 87 | J88: =IF(OR(H88=5,H88=10, H88=15, H88="BP",H88="SCR"),"NT",I88) -> 0
E89: 88 | J89: =IF(OR(H89=5,H89=10, H89=15, H89="BP",H89="SCR"),"NT",I89) -> 0
E90: 89 | J90: =IF(OR(H90=5,H90=10, H90=15, H90="BP",H90="SCR"),"NT",I90) -> 0
E91: 90 | J91: =IF(OR(H91=5,H91=10, H91=15, H91="BP",H91="SCR"),"NT",I91) -> 0
E92: 91 | J92: =IF(OR(H92=5,H92=10, H92=15, H92="BP",H92="SCR"),"NT",I92) -> 0
E93: 92 | J93: =IF(OR(H93=5,H93=10, H93=15, H93="BP",H93="SCR"),"NT",I93) -> 0
E94: 93 | J94: =IF(OR(H94=5,H94=10, H94=15, H94="BP",H94="SCR"),"NT",I94) -> 0
E95: 94 | J95: =IF(OR(H95=5,H95=10, H95=15, H95="BP",H95="SCR"),"NT",I95) -> 0
E96: 95 | J96: =IF(OR(H96=5,H96=10, H96=15, H96="BP",H96="SCR"),"NT",I96) -> 0
E97: 96 | J97: =IF(OR(H97=5,H97=10, H97=15, H97="BP",H97="SCR"),"NT",I97) -> 0
E98: 97 | J98: =IF(OR(H98=5,H98=10, H98=15, H98="BP",H98="SCR"),"NT",I98) -> 0
E99: 98 | J99: =IF(OR(H99=5,H99=10, H99=15, H99="BP",H99="SCR"),"NT",I99) -> 0
E100: 99 | J100: =IF(OR(H100=5,H100=10, H100=15, H100="BP",H100="SCR"),"NT",I100) -> 0
E101: 100 | J101: =IF(OR(H101=5,H101=10, H101=15, H101="BP",H101="SCR"),"NT",I101) -> 0
E102: 101 | J102: =IF(OR(H102=5,H102=10, H102=15, H102="BP",H102="SCR"),"NT",I102) -> 0
E103: 102 | J103: =IF(OR(H103=5,H103=10, H103=15, H103="BP",H103="SCR"),"NT",I103) -> 0
E104: 103 | J104: =IF(OR(H104=5,H104=10, H104=15, H104="BP",H104="SCR"),"NT",I104) -> 0
E105: 104 | J105: =IF(OR(H105=5,H105=10, H105=15, H105="BP",H105="SCR"),"NT",I105) -> 0
E106: 105 | J106: =IF(OR(H106=5,H106=10, H106=15, H106="BP",H106="SCR"),"NT",I106) -> 0
E107: 106 | J107: =IF(OR(H107=5,H107=10, H107=15, H107="BP",H107="SCR"),"NT",I107) -> 0
E108: 107 | J108: =IF(OR(H108=5,H108=10, H108=15, H108="BP",H108="SCR"),"NT",I108) -> 0
E109: 108 | J109: =IF(OR(H109=5,H109=10, H109=15, H109="BP",H109="SCR"),"NT",I109) -> 0
E110: 109 | J110: =IF(OR(H110=5,H110=10, H110=15, H110="BP",H110="SCR"),"NT",I110) -> 0
E111: 110 | J111: =IF(OR(H111=5,H111=10, H111=15, H111="BP",H111="SCR"),"NT",I111) -> 0
E112: 111 | J112: =IF(OR(H112=5,H112=10, H112=15, H112="BP",H112="SCR"),"NT",I112) -> 0
E113: 112 | J113: =IF(OR(H113=5,H113=10, H113=15, H113="BP",H113="SCR"),"NT",I113) -> 0
E114: 113 | J114: =IF(OR(H114=5,H114=10, H114=15, H114="BP",H114="SCR"),"NT",I114) -> 0
E115: 114 | J115: =IF(OR(H115=5,H115=10, H115=15, H115="BP",H115="SCR"),"NT",I115) -> 0
E116: 115 | J116: =IF(OR(H116=5,H116=10, H116=15, H116="BP",H116="SCR"),"NT",I116) -> 0
E117: 116 | J117: =IF(OR(H117=5,H117=10, H117=15, H117="BP",H117="SCR"),"NT",I117) -> 0
E118: 117 | J118: =IF(OR(H118=5,H118=10, H118=15, H118="BP",H118="SCR"),"NT",I118) -> 0
E119: 118 | J119: =IF(OR(H119=5,H119=10, H119=15, H119="BP",H119="SCR"),"NT",I119) -> 0
E120: 119 | J120: =IF(OR(H120=5,H120=10, H120=15, H120="BP",H120="SCR"),"NT",I120) -> 0
E121: 120 | J121: =IF(OR(H121=5,H121=10, H121=15, H121="BP",H121="SCR"),"NT",I121) -> 0
E122: 121 | J122: =IF(OR(H122=5,H122=10, H122=15, H122="BP",H122="SCR"),"NT",I122) -> 0
E123: 122 | J123: =IF(OR(H123=5,H123=10, H123=15, H123="BP",H123="SCR"),"NT",I123) -> 0
E124: 123 | J124: =IF(OR(H124=5,H124=10, H124=15, H124="BP",H124="SCR"),"NT",I124) -> 0
E125: 124 | J125: =IF(OR(H125=5,H125=10, H125=15, H125="BP",H125="SCR"),"NT",I125) -> 0
E126: 125 | J126: =IF(OR(H126=5,H126=10, H126=15, H126="BP",H126="SCR"),"NT",I126) -> 0
E127: 126 | J127: =IF(OR(H127=5,H127=10, H127=15, H127="BP",H127="SCR"),"NT",I127) -> 0
E128: 127 | J128: =IF(OR(H128=5,H128=10, H128=15, H128="BP",H128="SCR"),"NT",I128) -> 0
E129: 128 | J129: =IF(OR(H129=5,H129=10, H129=15, H129="BP",H129="SCR"),"NT",I129) -> 0
E130: 129 | J130: =IF(OR(H130=5,H130=10, H130=15, H130="BP",H130="SCR"),"NT",I130) -> 0
E131: 130 | J131: =IF(OR(H131=5,H131=10, H131=15, H131="BP",H131="SCR"),"NT",I131) -> 0
E132: 131 | J132: =IF(OR(H132=5,H132=10, H132=15, H132="BP",H132="SCR"),"NT",I132) -> 0
E133: 132 | J133: =IF(OR(H133=5,H133=10, H133=15, H133="BP",H133="SCR"),"NT",I133) -> 0
E134: 133 | J134: =IF(OR(H134=5,H134=10, H134=15, H134="BP",H134="SCR"),"NT",I134) -> 0
E135: 134 | J135: =IF(OR(H135=5,H135=10, H135=15, H135="BP",H135="SCR"),"NT",I135) -> 0
E136: 135 | J136: =IF(OR(H136=5,H136=10, H136=15, H136="BP",H136="SCR"),"NT",I136) -> 0
E137: 136 | J137: =IF(OR(H137=5,H137=10, H137=15, H137="BP",H137="SCR"),"NT",I137) -> 0
E138: 137 | J138: =IF(OR(H138=5,H138=10, H138=15, H138="BP",H138="SCR"),"NT",I138) -> 0
E139: 138 | J139: =IF(OR(H139=5,H139=10, H139=15, H139="BP",H139="SCR"),"NT",I139) -> 0
E140: 139 | J140: =IF(OR(H140=5,H140=10, H140=15, H140="BP",H140="SCR"),"NT",I140) -> 0
E141: 140 | J141: =IF(OR(H141=5,H141=10, H141=15, H141="BP",H141="SCR"),"NT",I141) -> 0
E142: 141 | J142: =IF(OR(H142=5,H142=10, H142=15, H142="BP",H142="SCR"),"NT",I142) -> 0
E143: 142 | J143: =IF(OR(H143=5,H143=10, H143=15, H143="BP",H143="SCR"),"NT",I143) -> 0
E144: 143 | J144: =IF(OR(H144=5,H144=10, H144=15, H144="BP",H144="SCR"),"NT",I144) -> 0
E145: 144 | J145: =IF(OR(H145=5,H145=10, H145=15, H145="BP",H145="SCR"),"NT",I145) -> 0
E146: 145 | J146: =IF(OR(H146=5,H146=10, H146=15, H146="BP",H146="SCR"),"NT",I146) -> 0
E147: 146 | J147: =IF(OR(H147=5,H147=10, H147=15, H147="BP",H147="SCR"),"NT",I147) -> 0
E148: 147 | J148: =IF(OR(H148=5,H148=10, H148=15, H148="BP",H148="SCR"),"NT",I148) -> 0
E149: 148 | J149: =IF(OR(H149=5,H149=10, H149=15, H149="BP",H149="SCR"),"NT",I149) -> 0
E150: 149 | J150: =IF(OR(H150=5,H150=10, H150=15, H150="BP",H150="SCR"),"NT",I150) -> 0
E151: 150 | J151: =IF(OR(H151=5,H151=10, H151=15, H151="BP",H151="SCR"),"NT",I151) -> 0
E152: 151 | J152: =IF(OR(H152=5,H152=10, H152=15, H152="BP",H152="SCR"),"NT",I152) -> 0
E153: 152 | J153: =IF(OR(H153=5,H153=10, H153=15, H153="BP",H153="SCR"),"NT",I153) -> 0
E154: 153 | J154: =IF(OR(H154=5,H154=10, H154=15, H154="BP",H154="SCR"),"NT",I154) -> 0
E155: 154 | J155: =IF(OR(H155=5,H155=10, H155=15, H155="BP",H155="SCR"),"NT",I155) -> 0
E156: 155 | J156: =IF(OR(H156=5,H156=10, H156=15, H156="BP",H156="SCR"),"NT",I156) -> 0
E157: 156 | J157: =IF(OR(H157=5,H157=10, H157=15, H157="BP",H157="SCR"),"NT",I157) -> 0
E158: 157 | J158: =IF(OR(H158=5,H158=10, H158=15, H158="BP",H158="SCR"),"NT",I158) -> 0
E159: 158 | J159: =IF(OR(H159=5,H159=10, H159=15, H159="BP",H159="SCR"),"NT",I159) -> 0
E160: 159 | J160: =IF(OR(H160=5,H160=10, H160=15, H160="BP",H160="SCR"),"NT",I160) -> 0
E161: 160 | J161: =IF(OR(H161=5,H161=10, H161=15, H161="BP",H161="SCR"),"NT",I161) -> 0
E162: 161 | J162: =IF(OR(H162=5,H162=10, H162=15, H162="BP",H162="SCR"),"NT",I162) -> 0
E163: 162 | J163: =IF(OR(H163=5,H163=10, H163=15, H163="BP",H163="SCR"),"NT",I163) -> 0
E164: 163 | J164: =IF(OR(H164=5,H164=10, H164=15, H164="BP",H164="SCR"),"NT",I164) -> 0
E165: 164 | J165: =IF(OR(H165=5,H165=10, H165=15, H165="BP",H165="SCR"),"NT",I165) -> 0
E166: 165 | J166: =IF(OR(H166=5,H166=10, H166=15, H166="BP",H166="SCR"),"NT",I166) -> 0
E167: 166 | J167: =IF(OR(H167=5,H167=10, H167=15, H167="BP",H167="SCR"),"NT",I167) -> 0
E168: 167 | J168: =IF(OR(H168=5,H168=10, H168=15, H168="BP",H168="SCR"),"NT",I168) -> 0
E169: 168 | J169: =IF(OR(H169=5,H169=10, H169=15, H169="BP",H169="SCR"),"NT",I169) -> 0
E170: 169 | J170: =IF(OR(H170=5,H170=10, H170=15, H170="BP",H170="SCR"),"NT",I170) -> 0
E171: 170 | J171: =IF(OR(H171=5,H171=10, H171=15, H171="BP",H171="SCR"),"NT",I171) -> 0
E172: 171 | J172: =IF(OR(H172=5,H172=10, H172=15, H172="BP",H172="SCR"),"NT",I172) -> 0
E173: 172 | J173: =IF(OR(H173=5,H173=10, H173=15, H173="BP",H173="SCR"),"NT",I173) -> 0
E174: 173 | J174: =IF(OR(H174=5,H174=10, H174=15, H174="BP",H174="SCR"),"NT",I174) -> 0
E175: 174 | J175: =IF(OR(H175=5,H175=10, H175=15, H175="BP",H175="SCR"),"NT",I175) -> 0
E176: 175 | J176: =IF(OR(H176=5,H176=10, H176=15, H176="BP",H176="SCR"),"NT",I176) -> 0
E177: 176 | J177: =IF(OR(H177=5,H177=10, H177=15, H177="BP",H177="SCR"),"NT",I177) -> 0
E178: 177 | J178: =IF(OR(H178=5,H178=10, H178=15, H178="BP",H178="SCR"),"NT",I178) -> 0
E179: 178 | J179: =IF(OR(H179=5,H179=10, H179=15, H179="BP",H179="SCR"),"NT",I179) -> 0
E180: 179 | J180: =IF(OR(H180=5,H180=10, H180=15, H180="BP",H180="SCR"),"NT",I180) -> 0
E181: 180 | J181: =IF(OR(H181=5,H181=10, H181=15, H181="BP",H181="SCR"),"NT",I181) -> 0
E182: 181 | J182: =IF(OR(H182=5,H182=10, H182=15, H182="BP",H182="SCR"),"NT",I182) -> 0
E183: 182 | J183: =IF(OR(H183=5,H183=10, H183=15, H183="BP",H183="SCR"),"NT",I183) -> 0
E184: 183 | J184: =IF(OR(H184=5,H184=10, H184=15, H184="BP",H184="SCR"),"NT",I184) -> 0
E185: 184 | J185: =IF(OR(H185=5,H185=10, H185=15, H185="BP",H185="SCR"),"NT",I185) -> 0
E186: 185 | J186: =IF(OR(H186=5,H186=10, H186=15, H186="BP",H186="SCR"),"NT",I186) -> 0
E187: 186 | J187: =IF(OR(H187=5,H187=10, H187=15, H187="BP",H187="SCR"),"NT",I187) -> 0
E188: 187 | J188: =IF(OR(H188=5,H188=10, H188=15, H188="BP",H188="SCR"),"NT",I188) -> 0
E189: 188 | J189: =IF(OR(H189=5,H189=10, H189=15, H189="BP",H189="SCR"),"NT",I189) -> 0
E190: 189 | J190: =IF(OR(H190=5,H190=10, H190=15, H190="BP",H190="SCR"),"NT",I190) -> 0
E191: 190 | J191: =IF(OR(H191=5,H191=10, H191=15, H191="BP",H191="SCR"),"NT",I191) -> 0
E192: 191 | J192: =IF(OR(H192=5,H192=10, H192=15, H192="BP",H192="SCR"),"NT",I192) -> 0
E193: 192 | J193: =IF(OR(H193=5,H193=10, H193=15, H193="BP",H193="SCR"),"NT",I193) -> 0
E194: 193 | J194: =IF(OR(H194=5,H194=10, H194=15, H194="BP",H194="SCR"),"NT",I194) -> 0
E195: 194 | J195: =IF(OR(H195=5,H195=10, H195=15, H195="BP",H195="SCR"),"NT",I195) -> 0
E196: 195 | J196: =IF(OR(H196=5,H196=10, H196=15, H196="BP",H196="SCR"),"NT",I196) -> 0
E197: 196 | J197: =IF(OR(H197=5,H197=10, H197=15, H197="BP",H197="SCR"),"NT",I197) -> 0
E198: 197 | J198: =IF(OR(H198=5,H198=10, H198=15, H198="BP",H198="SCR"),"NT",I198) -> 0
E199: 198 | J199: =IF(OR(H199=5,H199=10, H199=15, H199="BP",H199="SCR"),"NT",I199) -> 0
E200: 199 | J200: =IF(OR(H200=5,H200=10, H200=15, H200="BP",H200="SCR"),"NT",I200) -> 0
... 101 more rows

Sheet Youth
A1: Futurity | B1: Der | C1: Youth | D1: BBR | E1: Draw | F1: Rider Name | G1: Horse Name | H1: Pen | I1: Time | J1: Placing | K1: Money Earned
E2: 1 | F2: Micah Wallace | G2: Zima | I2: 16.168 | J2: 1D 1st | K2: 118
E3: 2 | F3: Savannah Dore | G3: SR Jess So Special | I3: 16.193
E4: 3 | F4: Leddy Hill | G4: Cashs Lil Dollie | I4: 16.517
E5: 4 | F5: Savannah Dore | G5: The Great Gatsby | I5: 16.622
E6: 5 | F6: Stormi Branch | G6: Demon | I6: 16.789 | J6: 2D 1st | K6: 101
E7: 6 | F7: Avery Childers | G7: Circle Y Doc | I7: 17.042
E8: 7 | F8: Taylor Hice | G8: Mack Daddy | I8: 17.218 | J8: 3D 1st | K8: 67
E9: 8 | F9: Hadley Durfey | G9: One Smooth Kelly | I9: 17.316
E10: 9 | F10: Cooper Peek | G10: Dolly | I10: 17.373
E11: 10 | F11: Jayde Peters | G11: Katy Done Did It | I11: 19.233 | J11: 4D 1st | K11: 50
E12: 11 | F12: Lillian Doplika | I12: 21.07
E13: 12 | F13: Savannah Dore | G13: Smokin Hot Lady Cat | I13: nt16.576
E14: 13
E15: 14
E16: 15
E17: 16
E18: 17
E19: 18
E20: 19
E21: 20
E22: 21
E23: 22
E24: 23
E25: 24
E26: 25
E27: 26
E28: 27
E29: 28
E30: 29
E31: 30
E32: 31
E33: 32
E34: 33
E35: 34
E36: 35
E37: 36
E38: 37
E39: 38
E40: 39
E41: 40
E42: 41
E43: 42
E44: 43
E45: 44
E46: 45
E47: 46
E48: 47
E49: 48
E50: 49
E51: 50
E52: 51
E53: 52
E54: 53
E55: 54
E56: 55
E57: 56
E58: 57
E59: 58
E60: 59
E61: 60
E62: 61
E63: 62
E64: 63
E65: 64
E66: 65
E67: 66
E68: 67
E69: 68
E70: 69
E71: 70
E72: 71
E73: 72
E74: 73
E75: 74
E76: 75
E77: 76
E78: 77
E79: 78
E80: 79
E81: 80
E82: 81
E83: 82
E84: 83
E85: 84
E86: 85
E87: 86
E88: 87
E89: 88
E90: 89
E91: 90
E92: 91
E93: 92
E94: 93
E95: 94
E96: 95
E97: 96
E98: 97
E99: 98
E100: 99
E101: 100
E102: 101
E103: 102
E104: 103
E105: 104
E106: 105
E107: 106
E108: 107
E109: 108
E110: 109
E111: 110
E112: 111
E113: 112
E114: 113
E115: 114
E116: 115
E117: 116
E118: 117
E119: 118
E120: 119
E121: 120
E122: 121
E123: 122
E124: 123
E125: 124
E126: 125
E127: 126
E128: 127
E129: 128
E130: 129
E131: 130
E132: 131
E133: 132
E134: 133
E135: 134
E136: 135
E137: 136
E138: 137
E139: 138
E140: 139
E141: 140
E142: 141
E143: 142
E144: 143
E145: 144
E146: 145
E147: 146
E148: 147
E149: 148
E150: 149
E151: 150
E152: 151
E153: 152
E154: 153
E155: 154
E156: 155
E157: 156
E158: 157
E159: 158
E160: 159
E161: 160
E162: 161
E163: 162
E164: 163
E165: 164
E166: 165
E167: 166
E168: 167
E169: 168
E170: 169
E171: 170
E172: 171
E173: 172
E174: 173
E175: 174
E176: 175
E177: 176
E178: 177
E179: 178
E180: 179
E181: 180
E182: 181
E183: 182
E184: 183
E185: 184
E186: 185
E187: 186
E188: 187
E189: 188
E190: 189
E191: 190
E192: 191
E193: 192
E194: 193
E195: 194
E196: 195
E197: 196
E198: 197
E199: 198
E200: 199
... 101 more rows

Sheet Derby
A1: Futurity | B1: Derby | C1: Age Inct. | D1: BBR | E1: Draw | F1: Rider Name | G1: Horse Name | H1: Time | I1: Final Time | J1: Placing | K1: Money Earned
E2: 1 | F2: Stephanie Fryar | G2: Some Streakin French | I2: 15.886 | J2: 1st | K2: 260
E3: 2 | F3: Kelsey Hayden | G3: Buhbye | I3: 15.963 | J3: 2nd | K3: 156
E4: 3 | F4: Shelley Holman | G4: Wood B Fun | I4: 16.036 | J4: 3rd | K4: 104
E5: 4 | F5: Kara Large | G5: RSL FirstroyalEddie | I5: 16.05
E6: 5 | F6: Kassidy McKee | G6: Real EZ Fame | I6: 16.187
E7: 6 | F7: Phillip Kenyon | G7: MakeitaMojito | I7: 16.295
E8: 7 | F8: Wenda Johnson | G8: Macgyver Moonflash | I8: nt15.569
E9: 8 | F9: SheaLynn McConnell | G9: Smooth N Heavenly | I9: nt15.873
E10: 9 | F10: Lauren Whitmire | G10: Dash Down Anytime | I10: nt16.447
E11: 10 | F11: Nisa Berry | G11: A Kings Famous Fling | I11: nt16.699
E12: 11 | F12: Lauren Whitmire | G12: WR Famous Maverick | I12: nt16.774
E13: 13 | F13: Sarah Peters | G13: Rockin My Fame | I13: nt16.924
E14: 14
E15: 15
E16: 16
E17: 17
E18: 18
E19: 19
E20: 20
E21: 21
E22: 22
E23: 23
E24: 24 | I24: =IF(OR(#REF!=5,#REF!=10,#REF!= 15,#REF!= "BP",#REF!="SCR"),"NT",H24) -> 
E25: 25 | I25: =IF(OR(#REF!=5,#REF!=10,#REF!= 15,#REF!= "BP",#REF!="SCR"),"NT",H25) -> 
E26: 26 | I26: =IF(OR(#REF!=5,#REF!=10,#REF!= 15,#REF!= "BP",#REF!="SCR"),"NT",H26) -> 
E27: 27 | I27: =IF(OR(#REF!=5,#REF!=10,#REF!= 15,#REF!= "BP",#REF!="SCR"),"NT",H27) -> 
E28: 28 | I28: =IF(OR(#REF!=5,#REF!=10,#REF!= 15,#REF!= "BP",#REF!="SCR"),"NT",H28) -> 
E29: 29 | I29: =IF(OR(#REF!=5,#REF!=10,#REF!= 15,#REF!= "BP",#REF!="SCR"),"NT",H29) -> 
E30: 30 | I30: =IF(OR(#REF!=5,#REF!=10,#REF!= 15,#REF!= "BP",#REF!="SCR"),"NT",H30) -> 
E31: 31 | I31: =IF(OR(#REF!=5,#REF!=10,#REF!= 15,#REF!= "BP",#REF!="SCR"),"NT",H31) -> 
E32: 32 | I32: =IF(OR(#REF!=5,#REF!=10,#REF!= 15,#REF!= "BP",#REF!="SCR"),"NT",H32) -> 
E33: 33 | I33: =IF(OR(#REF!=5,#REF!=10,#REF!= 15,#REF!= "BP",#REF!="SCR"),"NT",H33) -> 
E34: 34 | I34: =IF(OR(#REF!=5,#REF!=10,#REF!= 15,#REF!= "BP",#REF!="SCR"),"NT",H34) -> 
E35: 35 | I35: =IF(OR(#REF!=5,#REF!=10,#REF!= 15,#REF!= "BP",#REF!="SCR"),"NT",H35) -> 
E36: 36 | I36: =IF(OR(#REF!=5,#REF!=10,#REF!= 15,#REF!= "BP",#REF!="SCR"),"NT",H36) -> 
E37: 37 | I37: =IF(OR(#REF!=5,#REF!=10,#REF!= 15,#REF!= "BP",#REF!="SCR"),"NT",H37) -> 
E38: 38 | I38: =IF(OR(#REF!=5,#REF!=10,#REF!= 15,#REF!= "BP",#REF!="SCR"),"NT",H38) -> 
E39: 39 | I39: =IF(OR(#REF!=5,#REF!=10,#REF!= 15,#REF!= "BP",#REF!="SCR"),"NT",H39) -> 
E40: 40 | I40: =IF(OR(#REF!=5,#REF!=10,#REF!= 15,#REF!= "BP",#REF!="SCR"),"NT",H40) -> 
E41: 41 | I41: =IF(OR(#REF!=5,#REF!=10,#REF!= 15,#REF!= "BP",#REF!="SCR"),"NT",H41) -> 
E42: 42 | I42: =IF(OR(#REF!=5,#REF!=10,#REF!= 15,#REF!= "BP",#REF!="SCR"),"NT",H42) -> 
E43: 43 | I43: =IF(OR(#REF!=5,#REF!=10,#REF!= 15,#REF!= "BP",#REF!="SCR"),"NT",H43) -> 
E44: 44 | I44: =IF(OR(#REF!=5,#REF!=10,#REF!= 15,#REF!= "BP",#REF!="SCR"),"NT",H44) -> 
E45: 45 | I45: =IF(OR(#REF!=5,#REF!=10,#REF!= 15,#REF!= "BP",#REF!="SCR"),"NT",H45) -> 
E46: 46 | I46: =IF(OR(#REF!=5,#REF!=10,#REF!= 15,#REF!= "BP",#REF!="SCR"),"NT",H46) -> 
E47: 47 | I47: =IF(OR(#REF!=5,#REF!=10,#REF!= 15,#REF!= "BP",#REF!="SCR"),"NT",H47) -> 
E48: 48 | I48: =IF(OR(#REF!=5,#REF!=10,#REF!= 15,#REF!= "BP",#REF!="SCR"),"NT",H48) -> 
E49: 49 | I49: =IF(OR(#REF!=5,#REF!=10,#REF!= 15,#REF!= "BP",#REF!="SCR"),"NT",H49) -> 
E50: 50 | I50: =IF(OR(#REF!=5,#REF!=10,#REF!= 15,#REF!= "BP",#REF!="SCR"),"NT",H50) -> 
E51: 51 | I51: =IF(OR(#REF!=5,#REF!=10,#REF!= 15,#REF!= "BP",#REF!="SCR"),"NT",H51) -> 
E52: 52 | I52: =IF(OR(#REF!=5,#REF!=10,#REF!= 15,#REF!= "BP",#REF!="SCR"),"NT",H52) -> 
E53: 53 | I53: =IF(OR(#REF!=5,#REF!=10,#REF!= 15,#REF!= "BP",#REF!="SCR"),"NT",H53) -> 
E54: 54 | I54: =IF(OR(#REF!=5,#REF!=10,#REF!= 15,#REF!= "BP",#REF!="SCR"),"NT",H54) -> 
E55: 55 | I55: =IF(OR(#REF!=5,#REF!=10,#REF!= 15,#REF!= "BP",#REF!="SCR"),"NT",H55) -> 
E56: 56 | I56: =IF(OR(#REF!=5,#REF!=10,#REF!= 15,#REF!= "BP",#REF!="SCR"),"NT",H56) -> 
E57: 57 | I57: =IF(OR(#REF!=5,#REF!=10,#REF!= 15,#REF!= "BP",#REF!="SCR"),"NT",H57) -> 
E58: 58 | I58: =IF(OR(#REF!=5,#REF!=10,#REF!= 15,#REF!= "BP",#REF!="SCR"),"NT",H58) -> 
E59: 59 | I59: =IF(OR(#REF!=5,#REF!=10,#REF!= 15,#REF!= "BP",#REF!="SCR"),"NT",H59) -> 
E60: 60 | I60: =IF(OR(#REF!=5,#REF!=10,#REF!= 15,#REF!= "BP",#REF!="SCR"),"NT",H60) -> 
E61: 61 | I61: =IF(OR(#REF!=5,#REF!=10,#REF!= 15,#REF!= "BP",#REF!="SCR"),"NT",H61) -> 
E62: 62 | I62: =IF(OR(#REF!=5,#REF!=10,#REF!= 15,#REF!= "BP",#REF!="SCR"),"NT",H62) -> 
E63: 63 | I63: =IF(OR(#REF!=5,#REF!=10,#REF!= 15,#REF!= "BP",#REF!="SCR"),"NT",H63) -> 
E64: 64 | I64: =IF(OR(#REF!=5,#REF!=10,#REF!= 15,#REF!= "BP",#REF!="SCR"),"NT",H64) -> 
E65: 65 | I65: =IF(OR(#REF!=5,#REF!=10,#REF!= 15,#REF!= "BP",#REF!="SCR"),"NT",H65) -> 
E66: 66 | I66: =IF(OR(#REF!=5,#REF!=10,#REF!= 15,#REF!= "BP",#REF!="SCR"),"NT",H66) -> 
E67: 67 | I67: =IF(OR(#REF!=5,#REF!=10,#REF!= 15,#REF!= "BP",#REF!="SCR"),"NT",H67) -> 
E68: 68 | I68: =IF(OR(#REF!=5,#REF!=10,#REF!= 15,#REF!= "BP",#REF!="SCR"),"NT",H68) -> 
E69: 69 | I69: =IF(OR(#REF!=5,#REF!=10,#REF!= 15,#REF!= "BP",#REF!="SCR"),"NT",H69) -> 
E70: 70 | I70: =IF(OR(#REF!=5,#REF!=10,#REF!= 15,#REF!= "BP",#REF!="SCR"),"NT",H70) -> 
E71: 71 | I71: =IF(OR(#REF!=5,#REF!=10,#REF!= 15,#REF!= "BP",#REF!="SCR"),"NT",H71) -> 
E72: 72 | I72: =IF(OR(#REF!=5,#REF!=10,#REF!= 15,#REF!= "BP",#REF!="SCR"),"NT",H72) -> 
E73: 73 | I73: =IF(OR(#REF!=5,#REF!=10,#REF!= 15,#REF!= "BP",#REF!="SCR"),"NT",H73) -> 
E74: 74 | I74: =IF(OR(#REF!=5,#REF!=10,#REF!= 15,#REF!= "BP",#REF!="SCR"),"NT",H74) -> 
E75: 75 | I75: =IF(OR(#REF!=5,#REF!=10,#REF!= 15,#REF!= "BP",#REF!="SCR"),"NT",H75) -> 
E76: 76 | I76: =IF(OR(#REF!=5,#REF!=10,#REF!= 15,#REF!= "BP",#REF!="SCR"),"NT",H76) -> 
E77: 77 | I77: =IF(OR(#REF!=5,#REF!=10,#REF!= 15,#REF!= "BP",#REF!="SCR"),"NT",H77) -> 
E78: 78 | I78: =IF(OR(#REF!=5,#REF!=10,#REF!= 15,#REF!= "BP",#REF!="SCR"),"NT",H78) -> 
E79: 79 | I79: =IF(OR(#REF!=5,#REF!=10,#REF!= 15,#REF!= "BP",#REF!="SCR"),"NT",H79) -> 
E80: 80 | I80: =IF(OR(#REF!=5,#REF!=10,#REF!= 15,#REF!= "BP",#REF!="SCR"),"NT",H80) -> 
E81: 81 | I81: =IF(OR(#REF!=5,#REF!=10,#REF!= 15,#REF!= "BP",#REF!="SCR"),"NT",H81) -> 
E82: 82 | I82: =IF(OR(#REF!=5,#REF!=10,#REF!= 15,#REF!= "BP",#REF!="SCR"),"NT",H82) -> 
E83: 83 | I83: =IF(OR(#REF!=5,#REF!=10,#REF!= 15,#REF!= "BP",#REF!="SCR"),"NT",H83) -> 
E84: 84 | I84: =IF(OR(#REF!=5,#REF!=10,#REF!= 15,#REF!= "BP",#REF!="SCR"),"NT",H84) -> 
E85: 85 | I85: =IF(OR(#REF!=5,#REF!=10,#REF!= 15,#REF!= "BP",#REF!="SCR"),"NT",H85) -> 
E86: 86 | I86: =IF(OR(#REF!=5,#REF!=10,#REF!= 15,#REF!= "BP",#REF!="SCR"),"NT",H86) -> 
E87: 87 | I87: =IF(OR(#REF!=5,#REF!=10,#REF!= 15,#REF!= "BP",#REF!="SCR"),"NT",H87) -> 
E88: 88 | I88: =IF(OR(#REF!=5,#REF!=10,#REF!= 15,#REF!= "BP",#REF!="SCR"),"NT",H88) -> 
E89: 89 | I89: =IF(OR(#REF!=5,#REF!=10,#REF!= 15,#REF!= "BP",#REF!="SCR"),"NT",H89) -> 
E90: 90 | I90: =IF(OR(#REF!=5,#REF!=10,#REF!= 15,#REF!= "BP",#REF!="SCR"),"NT",H90) -> 
E91: 91 | I91: =IF(OR(#REF!=5,#REF!=10,#REF!= 15,#REF!= "BP",#REF!="SCR"),"NT",H91) -> 
E92: 92 | I92: =IF(OR(#REF!=5,#REF!=10,#REF!= 15,#REF!= "BP",#REF!="SCR"),"NT",H92) -> 
E93: 93 | I93: =IF(OR(#REF!=5,#REF!=10,#REF!= 15,#REF!= "BP",#REF!="SCR"),"NT",H93) -> 
E94: 94 | I94: =IF(OR(#REF!=5,#REF!=10,#REF!= 15,#REF!= "BP",#REF!="SCR"),"NT",H94) -> 
E95: 95 | I95: =IF(OR(#REF!=5,#REF!=10,#REF!= 15,#REF!= "BP",#REF!="SCR"),"NT",H95) -> 
E96: 96 | I96: =IF(OR(#REF!=5,#REF!=10,#REF!= 15,#REF!= "BP",#REF!="SCR"),"NT",H96) -> 
E97: 97 | I97: =IF(OR(#REF!=5,#REF!=10,#REF!= 15,#REF!= "BP",#REF!="SCR"),"NT",H97) -> 
E98: 98 | I98: =IF(OR(#REF!=5,#REF!=10,#REF!= 15,#REF!= "BP",#REF!="SCR"),"NT",H98) -> 
E99: 99 | I99: =IF(OR(#REF!=5,#REF!=10,#REF!= 15,#REF!= "BP",#REF!="SCR"),"NT",H99) -> 
E100: 100 | I100: =IF(OR(#REF!=5,#REF!=10,#REF!= 15,#REF!= "BP",#REF!="SCR"),"NT",H100) -> 
E101: 101 | I101: =IF(OR(#REF!=5,#REF!=10,#REF!= 15,#REF!= "BP",#REF!="SCR"),"NT",H101) -> 
E102: 102 | I102: =IF(OR(#REF!=5,#REF!=10,#REF!= 15,#REF!= "BP",#REF!="SCR"),"NT",H102) -> 
E103: 103 | I103: =IF(OR(#REF!=5,#REF!=10,#REF!= 15,#REF!= "BP",#REF!="SCR"),"NT",H103) -> 
E104: 104 | I104: =IF(OR(#REF!=5,#REF!=10,#REF!= 15,#REF!= "BP",#REF!="SCR"),"NT",H104) -> 
E105: 105 | I105: =IF(OR(#REF!=5,#REF!=10,#REF!= 15,#REF!= "BP",#REF!="SCR"),"NT",H105) -> 
E106: 106 | I106: =IF(OR(#REF!=5,#REF!=10,#REF!= 15,#REF!= "BP",#REF!="SCR"),"NT",H106) -> 
E107: 107 | I107: =IF(OR(#REF!=5,#REF!=10,#REF!= 15,#REF!= "BP",#REF!="SCR"),"NT",H107) -> 
E108: 108 | I108: =IF(OR(#REF!=5,#REF!=10,#REF!= 15,#REF!= "BP",#REF!="SCR"),"NT",H108) -> 
E109: 109 | I109: =IF(OR(#REF!=5,#REF!=10,#REF!= 15,#REF!= "BP",#REF!="SCR"),"NT",H109) -> 
E110: 110 | I110: =IF(OR(#REF!=5,#REF!=10,#REF!= 15,#REF!= "BP",#REF!="SCR"),"NT",H110) -> 
E111: 111 | I111: =IF(OR(#REF!=5,#REF!=10,#REF!= 15,#REF!= "BP",#REF!="SCR"),"NT",H111) -> 
E112: 112 | I112: =IF(OR(#REF!=5,#REF!=10,#REF!= 15,#REF!= "BP",#REF!="SCR"),"NT",H112) -> 
E113: 113 | I113: =IF(OR(#REF!=5,#REF!=10,#REF!= 15,#REF!= "BP",#REF!="SCR"),"NT",H113) -> 
E114: 114 | I114: =IF(OR(#REF!=5,#REF!=10,#REF!= 15,#REF!= "BP",#REF!="SCR"),"NT",H114) -> 
E115: 115 | I115: =IF(OR(#REF!=5,#REF!=10,#REF!= 15,#REF!= "BP",#REF!="SCR"),"NT",H115) -> 
E116: 116 | I116: =IF(OR(#REF!=5,#REF!=10,#REF!= 15,#REF!= "BP",#REF!="SCR"),"NT",H116) -> 
E117: 117 | I117: =IF(OR(#REF!=5,#REF!=10,#REF!= 15,#REF!= "BP",#REF!="SCR"),"NT",H117) -> 
E118: 118 | I118: =IF(OR(#REF!=5,#REF!=10,#REF!= 15,#REF!= "BP",#REF!="SCR"),"NT",H118) -> 
E119: 119 | I119: =IF(OR(#REF!=5,#REF!=10,#REF!= 15,#REF!= "BP",#REF!="SCR"),"NT",H119) -> 
E120: 120 | I120: =IF(OR(#REF!=5,#REF!=10,#REF!= 15,#REF!= "BP",#REF!="SCR"),"NT",H120) -> 
E121: 121 | I121: =IF(OR(#REF!=5,#REF!=10,#REF!= 15,#REF!= "BP",#REF!="SCR"),"NT",H121) -> 
E122: 122 | I122: =IF(OR(#REF!=5,#REF!=10,#REF!= 15,#REF!= "BP",#REF!="SCR"),"NT",H122) -> 
E123: 123 | I123: =IF(OR(#REF!=5,#REF!=10,#REF!= 15,#REF!= "BP",#REF!="SCR"),"NT",H123) -> 
E124: 124 | I124: =IF(OR(#REF!=5,#REF!=10,#REF!= 15,#REF!= "BP",#REF!="SCR"),"NT",H124) -> 
E125: 125 | I125: =IF(OR(#REF!=5,#REF!=10,#REF!= 15,#REF!= "BP",#REF!="SCR"),"NT",H125) -> 
E126: 126 | I126: =IF(OR(#REF!=5,#REF!=10,#REF!= 15,#REF!= "BP",#REF!="SCR"),"NT",H126) -> 
E127: 127 | I127: =IF(OR(#REF!=5,#REF!=10,#REF!= 15,#REF!= "BP",#REF!="SCR"),"NT",H127) -> 
E128: 128 | I128: =IF(OR(#REF!=5,#REF!=10,#REF!= 15,#REF!= "BP",#REF!="SCR"),"NT",H128) -> 
E129: 129 | I129: =IF(OR(#REF!=5,#REF!=10,#REF!= 15,#REF!= "BP",#REF!="SCR"),"NT",H129) -> 
E130: 130 | I130: =IF(OR(#REF!=5,#REF!=10,#REF!= 15,#REF!= "BP",#REF!="SCR"),"NT",H130) -> 
E131: 131 | I131: =IF(OR(#REF!=5,#REF!=10,#REF!= 15,#REF!= "BP",#REF!="SCR"),"NT",H131) -> 
E132: 132 | I132: =IF(OR(#REF!=5,#REF!=10,#REF!= 15,#REF!= "BP",#REF!="SCR"),"NT",H132) -> 
E133: 133 | I133: =IF(OR(#REF!=5,#REF!=10,#REF!= 15,#REF!= "BP",#REF!="SCR"),"NT",H133) -> 
E134: 134 | I134: =IF(OR(#REF!=5,#REF!=10,#REF!= 15,#REF!= "BP",#REF!="SCR"),"NT",H134) -> 
E135: 135 | I135: =IF(OR(#REF!=5,#REF!=10,#REF!= 15,#REF!= "BP",#REF!="SCR"),"NT",H135) -> 
E136: 136 | I136: =IF(OR(#REF!=5,#REF!=10,#REF!= 15,#REF!= "BP",#REF!="SCR"),"NT",H136) -> 
E137: 137 | I137: =IF(OR(#REF!=5,#REF!=10,#REF!= 15,#REF!= "BP",#REF!="SCR"),"NT",H137) -> 
E138: 138 | I138: =IF(OR(#REF!=5,#REF!=10,#REF!= 15,#REF!= "BP",#REF!="SCR"),"NT",H138) -> 
E139: 139 | I139: =IF(OR(#REF!=5,#REF!=10,#REF!= 15,#REF!= "BP",#REF!="SCR"),"NT",H139) -> 
E140: 140 | I140: =IF(OR(#REF!=5,#REF!=10,#REF!= 15,#REF!= "BP",#REF!="SCR"),"NT",H140) -> 
E141: 141 | I141: =IF(OR(#REF!=5,#REF!=10,#REF!= 15,#REF!= "BP",#REF!="SCR"),"NT",H141) -> 
E142: 142 | I142: =IF(OR(#REF!=5,#REF!=10,#REF!= 15,#REF!= "BP",#REF!="SCR"),"NT",H142) -> 
E143: 143 | I143: =IF(OR(#REF!=5,#REF!=10,#REF!= 15,#REF!= "BP",#REF!="SCR"),"NT",H143) -> 
E144: 144 | I144: =IF(OR(#REF!=5,#REF!=10,#REF!= 15,#REF!= "BP",#REF!="SCR"),"NT",H144) -> 
E145: 145 | I145: =IF(OR(#REF!=5,#REF!=10,#REF!= 15,#REF!= "BP",#REF!="SCR"),"NT",H145) -> 
E146: 146 | I146: =IF(OR(#REF!=5,#REF!=10,#REF!= 15,#REF!= "BP",#REF!="SCR"),"NT",H146) -> 
E147: 147 | I147: =IF(OR(#REF!=5,#REF!=10,#REF!= 15,#REF!= "BP",#REF!="SCR"),"NT",H147) -> 
E148: 148 | I148: =IF(OR(#REF!=5,#REF!=10,#REF!= 15,#REF!= "BP",#REF!="SCR"),"NT",H148) -> 
E149: 149 | I149: =IF(OR(#REF!=5,#REF!=10,#REF!= 15,#REF!= "BP",#REF!="SCR"),"NT",H149) -> 
E150: 150 | I150: =IF(OR(#REF!=5,#REF!=10,#REF!= 15,#REF!= "BP",#REF!="SCR"),"NT",H150) -> 
E151: 151 | I151: =IF(OR(#REF!=5,#REF!=10,#REF!= 15,#REF!= "BP",#REF!="SCR"),"NT",H151) -> 
E152: 152 | I152: =IF(OR(#REF!=5,#REF!=10,#REF!= 15,#REF!= "BP",#REF!="SCR"),"NT",H152) -> 
E153: 153 | I153: =IF(OR(#REF!=5,#REF!=10,#REF!= 15,#REF!= "BP",#REF!="SCR"),"NT",H153) -> 
E154: 154 | I154: =IF(OR(#REF!=5,#REF!=10,#REF!= 15,#REF!= "BP",#REF!="SCR"),"NT",H154) -> 
E155: 155 | I155: =IF(OR(#REF!=5,#REF!=10,#REF!= 15,#REF!= "BP",#REF!="SCR"),"NT",H155) -> 
E156: 156 | I156: =IF(OR(#REF!=5,#REF!=10,#REF!= 15,#REF!= "BP",#REF!="SCR"),"NT",H156) -> 
E157: 157 | I157: =IF(OR(#REF!=5,#REF!=10,#REF!= 15,#REF!= "BP",#REF!="SCR"),"NT",H157) -> 
E158: 158 | I158: =IF(OR(#REF!=5,#REF!=10,#REF!= 15,#REF!= "BP",#REF!="SCR"),"NT",H158) -> 
E159: 159 | I159: =IF(OR(#REF!=5,#REF!=10,#REF!= 15,#REF!= "BP",#REF!="SCR"),"NT",H159) -> 
E160: 160 | I160: =IF(OR(#REF!=5,#REF!=10,#REF!= 15,#REF!= "BP",#REF!="SCR"),"NT",H160) -> 
E161: 161 | I161: =IF(OR(#REF!=5,#REF!=10,#REF!= 15,#REF!= "BP",#REF!="SCR"),"NT",H161) -> 
E162: 162 | I162: =IF(OR(#REF!=5,#REF!=10,#REF!= 15,#REF!= "BP",#REF!="SCR"),"NT",H162) -> 
E163: 163 | I163: =IF(OR(#REF!=5,#REF!=10,#REF!= 15,#REF!= "BP",#REF!="SCR"),"NT",H163) -> 
E164: 164 | I164: =IF(OR(#REF!=5,#REF!=10,#REF!= 15,#REF!= "BP",#REF!="SCR"),"NT",H164) -> 
E165: 165 | I165: =IF(OR(#REF!=5,#REF!=10,#REF!= 15,#REF!= "BP",#REF!="SCR"),"NT",H165) -> 
E166: 166 | I166: =IF(OR(#REF!=5,#REF!=10,#REF!= 15,#REF!= "BP",#REF!="SCR"),"NT",H166) -> 
E167: 167 | I167: =IF(OR(#REF!=5,#REF!=10,#REF!= 15,#REF!= "BP",#REF!="SCR"),"NT",H167) -> 
E168: 168 | I168: =IF(OR(#REF!=5,#REF!=10,#REF!= 15,#REF!= "BP",#REF!="SCR"),"NT",H168) -> 
E169: 169 | I169: =IF(OR(#REF!=5,#REF!=10,#REF!= 15,#REF!= "BP",#REF!="SCR"),"NT",H169) -> 
E170: 170 | I170: =IF(OR(#REF!=5,#REF!=10,#REF!= 15,#REF!= "BP",#REF!="SCR"),"NT",H170) -> 
E171: 171 | I171: =IF(OR(#REF!=5,#REF!=10,#REF!= 15,#REF!= "BP",#REF!="SCR"),"NT",H171) -> 
E172: 172 | I172: =IF(OR(#REF!=5,#REF!=10,#REF!= 15,#REF!= "BP",#REF!="SCR"),"NT",H172) -> 
E173: 173 | I173: =IF(OR(#REF!=5,#REF!=10,#REF!= 15,#REF!= "BP",#REF!="SCR"),"NT",H173) -> 
E174: 174 | I174: =IF(OR(#REF!=5,#REF!=10,#REF!= 15,#REF!= "BP",#REF!="SCR"),"NT",H174) -> 
E175: 175 | I175: =IF(OR(#REF!=5,#REF!=10,#REF!= 15,#REF!= "BP",#REF!="SCR"),"NT",H175) -> 
E176: 176 | I176: =IF(OR(#REF!=5,#REF!=10,#REF!= 15,#REF!= "BP",#REF!="SCR"),"NT",H176) -> 
E177: 177 | I177: =IF(OR(#REF!=5,#REF!=10,#REF!= 15,#REF!= "BP",#REF!="SCR"),"NT",H177) -> 
E178: 178 | I178: =IF(OR(#REF!=5,#REF!=10,#REF!= 15,#REF!= "BP",#REF!="SCR"),"NT",H178) -> 
E179: 179 | I179: =IF(OR(#REF!=5,#REF!=10,#REF!= 15,#REF!= "BP",#REF!="SCR"),"NT",H179) -> 
E180: 180 | I180: =IF(OR(#REF!=5,#REF!=10,#REF!= 15,#REF!= "BP",#REF!="SCR"),"NT",H180) -> 
E181: 181 | I181: =IF(OR(#REF!=5,#REF!=10,#REF!= 15,#REF!= "BP",#REF!="SCR"),"NT",H181) -> 
E182: 182 | I182: =IF(OR(#REF!=5,#REF!=10,#REF!= 15,#REF!= "BP",#REF!="SCR"),"NT",H182) -> 
E183: 183 | I183: =IF(OR(#REF!=5,#REF!=10,#REF!= 15,#REF!= "BP",#REF!="SCR"),"NT",H183) -> 
E184: 184 | I184: =IF(OR(#REF!=5,#REF!=10,#REF!= 15,#REF!= "BP",#REF!="SCR"),"NT",H184) -> 
E185: 185 | I185: =IF(OR(#REF!=5,#REF!=10,#REF!= 15,#REF!= "BP",#REF!="SCR"),"NT",H185) -> 
E186: 186 | I186: =IF(OR(#REF!=5,#REF!=10,#REF!= 15,#REF!= "BP",#REF!="SCR"),"NT",H186) -> 
E187: 187 | I187: =IF(OR(#REF!=5,#REF!=10,#REF!= 15,#REF!= "BP",#REF!="SCR"),"NT",H187) -> 
E188: 188 | I188: =IF(OR(#REF!=5,#REF!=10,#REF!= 15,#REF!= "BP",#REF!="SCR"),"NT",H188) -> 
E189: 189 | I189: =IF(OR(#REF!=5,#REF!=10,#REF!= 15,#REF!= "BP",#REF!="SCR"),"NT",H189) -> 
E190: 190 | I190: =IF(OR(#REF!=5,#REF!=10,#REF!= 15,#REF!= "BP",#REF!="SCR"),"NT",H190) -> 
E191: 191 | I191: =IF(OR(#REF!=5,#REF!=10,#REF!= 15,#REF!= "BP",#REF!="SCR"),"NT",H191) -> 
E192: 192 | I192: =IF(OR(#REF!=5,#REF!=10,#REF!= 15,#REF!= "BP",#REF!="SCR"),"NT",H192) -> 
E193: 193 | I193: =IF(OR(#REF!=5,#REF!=10,#REF!= 15,#REF!= "BP",#REF!="SCR"),"NT",H193) -> 
E194: 194 | I194: =IF(OR(#REF!=5,#REF!=10,#REF!= 15,#REF!= "BP",#REF!="SCR"),"NT",H194) -> 
E195: 195 | I195: =IF(OR(#REF!=5,#REF!=10,#REF!= 15,#REF!= "BP",#REF!="SCR"),"NT",H195) -> 
E196: 196 | I196: =IF(OR(#REF!=5,#REF!=10,#REF!= 15,#REF!= "BP",#REF!="SCR"),"NT",H196) -> 
E197: 197 | I197: =IF(OR(#REF!=5,#REF!=10,#REF!= 15,#REF!= "BP",#REF!="SCR"),"NT",H197) -> 
E198: 198 | I198: =IF(OR(#REF!=5,#REF!=10,#REF!= 15,#REF!= "BP",#REF!="SCR"),"NT",H198) -> 
E199: 199 | I199: =IF(OR(#REF!=5,#REF!=10,#REF!= 15,#REF!= "BP",#REF!="SCR"),"NT",H199) -> 
E200: 200 | I200: =IF(OR(#REF!=5,#REF!=10,#REF!= 15,#REF!= "BP",#REF!="SCR"),"NT",H200) -> 
... 100 more rows

Sheet Highstakes
A1: HS | B1: Der | C1: Age Inct. | D1: BBR | E1: Draw | F1: Rider Name | G1: Horse Name | H1: c/o | I1: Time | J1: Final Time | K1: Placing | L1: Money Earned
E2: 1 | F2: Shelley Holman | G2: Red Hot N Burnin | I2: 15.535 | K2: 1st | L2: 440
E3: 2 | F3: Kylee Scribner | G3: Firewater Cartel | I3: 15.623 | K3: 2nd | L3: 264
E4: 3 | F4: Jimmie Smith | G4: Lever Action | I4: 15.782 | K4: 3rd | L4: 176
E5: 4 | F5: Cranna Roberts | G5: Ronnie | I5: 15.869
E6: 5 | F6: Kelsey Hayden | G6: Buhbye | I6: 15.963
E7: 6 | F7: Jimmie Smith | G7: Marthas Bullion | I7: 16.072
E8: 7 | F8: Lauren Whitmire | G8: Fame Rox | I8: 16.187
E9: 8 | F9: Jennifer Kalafatic | G9: Rockin The Guns | I9: 16.2
E10: 9 | F10: Hallie Hanssen | G10: Tres Movidas | I10: nt15.784
E11: 10 | F11: Jennifer Kalafatic | G11: CM Spotlight | I11: nt16.385
E12: 11 | F12: Lauren Whitmire | G12: Dash Down Anytime | I12: nt16.447
E13: 12
E14: 13
E15: 14
E16: 15
E17: 16
E18: 17
E19: 18
E20: 19
E21: 20
E22: 21
E23: 22
E24: 23
E25: 24
E26: 25
E27: 26
E28: 27
E29: 28
E30: 29
E31: 30
E32: 31
E33: 32
E34: 33
E35: 34
E36: 35
E37: 36
E38: 37
E39: 38
E40: 39 | J40: =IF(OR(H40=5,H40=10, H40=15, H40="BP",H40="SCR"),"NT",I40) -> 0
E41: 40 | J41: 0
E42: 41 | J42: 0
E43: 42 | J43: 0
E44: 43 | J44: 0
E45: 44 | J45: 0
E46: 45 | J46: 0
E47: 46 | J47: 0
E48: 47 | J48: 0
E49: 48 | J49: 0
E50: 49 | J50: 0
E51: 50 | J51: 0
E52: 51 | J52: 0
E53: 52 | J53: 0
E54: 53 | J54: 0
E55: 54 | J55: 0
E56: 55 | J56: 0
E57: 56 | J57: 0
E58: 57 | J58: 0
E59: 58 | J59: 0
E60: 59 | J60: 0
E61: 60 | J61: 0
E62: 61 | J62: 0
E63: 62 | J63: 0
E64: 63 | J64: 0
E65: 64 | J65: 0
E66: 65 | J66: 0
E67: 66 | J67: 0
E68: 67 | J68: 0
E69: 68 | J69: 0
E70: 69 | J70: 0
E71: 70 | J71: 0
E72: 71 | J72: 0
E73: 72 | J73: 0
E74: 73 | J74: 0
E75: 74 | J75: 0
E76: 75 | J76: 0
E77: 76 | J77: 0
E78: 77 | J78: 0
E79: 78 | J79: 0
E80: 79 | J80: 0
E81: 80 | J81: 0
E82: 81 | J82: 0
E83: 82 | J83: 0
E84: 83 | J84: 0
E85: 84 | J85: 0
E86: 85 | J86: 0
E87: 86 | J87: 0
E88: 87 | J88: 0
E89: 88 | J89: 0
E90: 89 | J90: 0
E91: 90 | J91: 0
E92: 91 | J92: 0
E93: 92 | J93: 0
E94: 93 | J94: 0
E95: 94 | J95: 0
E96: 95 | J96: 0
E97: 96 | J97: 0
E98: 97 | J98: 0
E99: 98 | J99: 0
E100: 99 | J100: 0
E101: 100 | J101: 0
E102: 101 | J102: 0
E103: 102 | J103: 0
E104: 103 | J104: =IF(OR(H104=5,H104=10, H104=15, H104="BP",H104="SCR"),"NT",I104) -> 0
E105: 104 | J105: 0
E106: 105 | J106: 0
E107: 106 | J107: 0
E108: 107 | J108: 0
E109: 108 | J109: 0
E110: 109 | J110: 0
E111: 110 | J111: 0
E112: 111 | J112: 0
E113: 112 | J113: 0
E114: 113 | J114: 0
E115: 114 | J115: 0
E116: 115 | J116: 0
E117: 116 | J117: 0
E118: 117 | J118: 0
E119: 118 | J119: 0
E120: 119 | J120: 0
E121: 120 | J121: 0
E122: 121 | J122: 0
E123: 122 | J123: 0
E124: 123 | J124: 0
E125: 124 | J125: 0
E126: 125 | J126: 0
E127: 126 | J127: 0
E128: 127 | J128: 0
E129: 128 | J129: 0
E130: 129 | J130: 0
E131: 130 | J131: 0
E132: 131 | J132: 0
E133: 132 | J133: 0
E134: 133 | J134: 0
E135: 134 | J135: 0
E136: 135 | J136: 0
E137: 136 | J137: 0
E138: 137 | J138: 0
E139: 138 | J139: 0
E140: 139 | J140: 0
E141: 140 | J141: 0
E142: 141 | J142: 0
E143: 142 | J143: 0
E144: 143 | J144: 0
E145: 144 | J145: 0
E146: 145 | J146: 0
E147: 146 | J147: 0
E148: 147 | J148: 0
E149: 148 | J149: 0
E150: 149 | J150: 0
E151: 150 | J151: 0
E152: 151 | J152: 0
E153: 152 | J153: 0
E154: 153 | J154: 0
E155: 154 | J155: 0
E156: 155 | J156: 0
E157: 156 | J157: 0
E158: 157 | J158: 0
E159: 158 | J159: 0
E160: 159 | J160: 0
E161: 160 | J161: 0
E162: 161 | J162: 0
E163: 162 | J163: 0
E164: 163 | J164: 0
E165: 164 | J165: 0
E166: 165 | J166: 0
E167: 166 | J167: 0
E168: 167 | J168: =IF(OR(H168=5,H168=10, H168=15, H168="BP",H168="SCR"),"NT",I168) -> 0
E169: 168 | J169: 0
E170: 169 | J170: 0
E171: 170 | J171: 0
E172: 171 | J172: 0
E173: 172 | J173: 0
E174: 173 | J174: 0
E175: 174 | J175: 0
E176: 175 | J176: 0
E177: 176 | J177: 0
E178: 177 | J178: 0
E179: 178 | J179: 0
E180: 179 | J180: 0
E181: 180 | J181: 0
E182: 181 | J182: 0
E183: 182 | J183: 0
E184: 183 | J184: 0
E185: 184 | J185: 0
E186: 185 | J186: 0
E187: 186 | J187: 0
E188: 187 | J188: 0
E189: 188 | J189: 0
E190: 189 | J190: 0
E191: 190 | J191: 0
E192: 191 | J192: 0
E193: 192 | J193: 0
E194: 193 | J194: 0
E195: 194 | J195: 0
E196: 195 | J196: 0
E197: 196 | J197: 0
E198: 197 | J198: 0
E199: 198 | J199: 0
E200: 199 | J200: 0
... 101 more rows

Sheet Futurity
A1: Futurity | B1: Der | C1: Age Inct. | D1: BBR | E1: Draw | I1: Time | K1: Place | L1: Money
E2: 1 | F2: Kylee Scribner | G2: Firewater Cartel | I2: 15.623 | K2: 1D 1st | L2: 269
E3: 2 | F3: Stevi Hillman | G3: DTF Texas Moon | I3: 15.83 | K3: 1D 2nd | L3: 179
E4: 3 | F4: Jennifer Kalafatic | G4: Rockin The Guns | I4: 16.2 | K4: 2D 1st | L4: 115
E5: 4 | F5: Jolene Jones | G5: Peppys Streakof Fame | I5: 16.228 | K5: 2D 2nd | L5: 77
E6: 5 | F6: Dawn Link | G6: Dominnator | I6: 16.351
E7: 6 | F7: Hallie Hanssen | G7: Jesswatchmestreak | I7: 16.439
E8: 7 | F8: Stephanie Fryar | G8: Cant Stop The Feeling | I8: 16.64
E9: 8 | F9: Julie Knox | G9: Talented Streaker | I9: 16.785
E10: 9 | F10: Sarah Rau | G10: MV Famous Margarita | I10: 16.881
E11: 10 | F11: Tiffany Durham | G11: Midge Ridge | I11: 16.941
E12: 11 | F12: Jennifer Cullen | G12: Chasin Annies Fame | I12: 17.978
E13: 12 | F13: Randi Roberts | G13: Boom Slicka Boom | I13: 18.086
E14: 13 | F14: Shelley Holman | G14: Phrozen | I14: broken
E15: 14 | F15: Hallie Hanssen | G15: Blazin Matilda | I15: nt16.492
E16: 15 | F16: Stephanie Fryar | G16: Can I Get a Hallelujah | I16: nt16.502
E17: 16 | F17: Molly Childers | G17: Dash Ta Special | I17: nt20.284
E18: 17
E19: 18
E20: 19
E21: 20
E22: 21
E23: 22
E24: 23
E25: 24
E26: 25
E27: 26
E28: 27
E29: 28
E30: 29
E31: 30
E32: 31
E33: 32
E34: 33
E35: 34
E36: 35
E37: 36
E38: 37 | J38: =IF(OR(H38=5,H38=10, H38=15, H38="BP",H38="SCR"),"NT",I38) -> 0
E39: 38 | J39: 0
E40: 39 | J40: 0
E41: 40 | J41: 0
E42: 41 | J42: 0
E43: 42 | J43: 0
E44: 43 | J44: 0
E45: 44 | J45: 0
E46: 45 | J46: 0
E47: 46 | J47: 0
E48: 47 | J48: 0
E49: 48 | J49: 0
E50: 49 | J50: 0
E51: 50 | J51: 0
E52: 51 | J52: 0
E53: 52 | J53: 0
E54: 53 | J54: 0
E55: 54 | J55: 0
E56: 55 | J56: 0
E57: 56 | J57: 0
E58: 57 | J58: 0
E59: 58 | J59: 0
E60: 59 | J60: 0
E61: 60 | J61: 0
E62: 61 | J62: 0
E63: 62 | J63: 0
E64: 63 | J64: 0
E65: 64 | J65: 0
E66: 65 | J66: 0
E67: 66 | J67: 0
E68: 67 | J68: 0
E69: 68 | J69: 0
E70: 69 | J70: 0
E71: 70 | J71: 0
E72: 71 | J72: 0
E73: 72 | J73: 0
E74: 73 | J74: 0
E75: 74 | J75: 0
E76: 75 | J76: 0
E77: 76 | J77: 0
E78: 77 | J78: 0
E79: 78 | J79: 0
E80: 79 | J80: 0
E81: 80 | J81: 0
E82: 81 | J82: 0
E83: 82 | J83: 0
E84: 83 | J84: 0
E85: 84 | J85: 0
E86: 85 | J86: 0
E87: 86 | J87: 0
E88: 87 | J88: 0
E89: 88 | J89: 0
E90: 89 | J90: 0
E91: 90 | J91: 0
E92: 91 | J92: 0
E93: 92 | J93: 0
E94: 93 | J94: 0
E95: 94 | J95: 0
E96: 95 | J96: =IF(OR(H96=5,H96=10, H96=15, H96="BP",H96="SCR"),"NT",I96) -> 0
E97: 96 | J97: 0
E98: 97 | J98: 0
E99: 98 | J99: 0
E100: 99 | J100: 0
E101: 100 | J101: 0
E102: 101 | J102: 0
E103: 102 | J103: 0
E104: 103 | J104: 0
E105: 104 | J105: 0
E106: 105 | J106: 0
E107: 106 | J107: 0
E108: 107 | J108: 0
E109: 108 | J109: 0
E110: 109 | J110: 0
E111: 110 | J111: 0
E112: 111 | J112: 0
E113: 112 | J113: 0
E114: 113 | J114: 0
E115: 114 | J115: 0
E116: 115 | J116: 0
E117: 116 | J117: 0
E118: 117 | J118: 0
E119: 118 | J119: 0
E120: 119 | J120: 0
E121: 120 | J121: 0
E122: 121 | J122: 0
E123: 122 | J123: 0
E124: 123 | J124: 0
E125: 124 | J125: 0
E126: 125 | J126: 0
E127: 126 | J127: 0
E128: 127 | J128: 0
E129: 128 | J129: 0
E130: 129 | J130: 0
E131: 130 | J131: 0
E132: 131 | J132: 0
E133: 132 | J133: 0
E134: 133 | J134: 0
E135: 134 | J135: 0
E136: 135 | J136: 0
E137: 136 | J137: 0
E138: 137 | J138: 0
E139: 138 | J139: 0
E140: 139 | J140: 0
E141: 140 | J141: 0
E142: 141 | J142: 0
E143: 142 | J143: 0
E144: 143 | J144: 0
E145: 144 | J145: 0
E146: 145 | J146: 0
E147: 146 | J147: 0
E148: 147 | J148: 0
E149: 148 | J149: 0
E150: 149 | J150: 0
E151: 150 | J151: 0
E152: 151 | J152: 0
E153: 152 | J153: 0
E154: 153 | J154: 0
E155: 154 | J155: 0
E156: 155 | J156: 0
E157: 156 | J157: 0
E158: 157 | J158: 0
E159: 158 | J159: 0
E160: 159 | J160: =IF(OR(H160=5,H160=10, H160=15, H160="BP",H160="SCR"),"NT",I160) -> 0
E161: 160 | J161: 0
E162: 161 | J162: 0
E163: 162 | J163: 0
E164: 163 | J164: 0
E165: 164 | J165: 0
E166: 165 | J166: 0
E167: 166 | J167: 0
E168: 167 | J168: 0
E169: 168 | J169: 0
E170: 169 | J170: 0
E171: 170 | J171: 0
E172: 171 | J172: 0
E173: 172 | J173: 0
E174: 173 | J174: 0
E175: 174 | J175: 0
E176: 175 | J176: 0
E177: 176 | J177: 0
E178: 177 | J178: 0
E179: 178 | J179: 0
E180: 179 | J180: 0
E181: 180 | J181: 0
E182: 181 | J182: 0
E183: 182 | J183: 0
E184: 183 | J184: 0
E185: 184 | J185: 0
E186: 185 | J186: 0
E187: 186 | J187: 0
E188: 187 | J188: 0
E189: 188 | J189: 0
E190: 189 | J190: 0
E191: 190 | J191: 0
E192: 191 | J192: 0
E193: 192 | J193: 0
E194: 193 | J194: 0
E195: 194 | J195: 0
E196: 195 | J196: 0
E197: 196 | J197: 0
E198: 197 | J198: 0
E199: 198 | J199: 0
E200: 199 | J200: 0
... 101 more rows

Sheet 12 & Under (hidden)
A1: Futurity | B1: Der | C1: Age Inct. | D1: R/O | E1: Draw | F1: Rider Name | G1: Horse Name | H1: Time | I1: Final Time | J1: Placing | K1: Money Earned
E33: 32
E34: 33
E35: 34
E36: 35
E37: 36
E38: 37
E39: 38
E40: 39
E41: 40
E42: 41
E43: 42
E44: 43
E45: 44
E46: 45
E47: 46
E48: 47
E49: 48
E50: 49
E51: 50
E52: 51
E53: 52
E54: 53
E55: 54
E56: 55
E57: 56
E58: 57
E59: 58
E60: 59
E61: 60
E62: 61
E63: 62
E64: 63
E65: 64
E66: 65
E67: 66
E68: 67
E69: 68
E70: 69
E71: 70
E72: 71
E73: 72
E74: 73
E75: 74
E76: 75
E77: 76
E78: 77
E79: 78
E80: 79
E81: 80
E82: 81
E83: 82
E84: 83
E85: 84
E86: 85
E87: 86
E88: 87
E89: 88
E90: 89
E91: 90
E92: 91
E93: 92
E94: 93
E95: 94
E96: 95
E97: 96
E98: 97
E99: 98
E100: 99
E101: 100
E102: 101
E103: 102
E104: 103
E105: 104
E106: 105
E107: 106
E108: 107
E109: 108
E110: 109
E111: 110
E112: 111
E113: 112
E114: 113
E115: 114
E116: 115
E117: 116
E118: 117
E119: 118
E120: 119
E121: 120
E122: 121
E123: 122
E124: 123
E125: 124
E126: 125
E127: 126
E128: 127
E129: 128
E130: 129
E131: 130
E132: 131
E133: 132
E134: 133
E135: 134
E136: 135
E137: 136
E138: 137
E139: 138
E140: 139
E141: 140
E142: 141
E143: 142
E144: 143
E145: 144
E146: 145
E147: 146
E148: 147
E149: 148
E150: 149
E151: 150
E152: 151
E153: 152
E154: 153
E155: 154
E156: 155
E157: 156
E158: 157
E159: 158
E160: 159
E161: 160
E162: 161
E163: 162
E164: 163
E165: 164
E166: 165
E167: 166
E168: 167
E169: 168
E170: 169
E171: 170
E172: 171
E173: 172
E174: 173
E175: 174
E176: 175
E177: 176
E178: 177
E179: 178
E180: 179
E181: 180
E182: 181
E183: 182
E184: 183
E185: 184
E186: 185
E187: 186
E188: 187
E189: 188
E190: 189
E191: 190
E192: 191
E193: 192
E194: 193
E195: 194
E196: 195
E197: 196
E198: 197
E199: 198
E200: 199
E201: 200
E202: 201
E203: 202
E204: 203
E205: 204
E206: 205
E207: 206
E208: 207
E209: 208
E210: 209
E211: 210
E212: 211
E213: 212
E214: 213
E215: 214
E216: 215
E217: 216
E218: 217
E219: 218
E220: 219
E221: 220
E222: 221
E223: 222
E224: 223
E225: 224
E226: 225
E227: 226
E228: 227
E229: 228
E230: 229
E231: 230
... 70 more rows

Sheet Future Champs
A1: Draw | B1: Rider Name | C1: Horse Name | D1: Time | E1: Placing | F1: Money Earned
A2: 5 | B2: Ruth Ann Hutchison | C2: Daffy | D2: 18.932 | E2: 1st
A3: 1 | B3: Chaney Akin | C3: Sunny | D3: 21.692 | E3: 2nd
A4: 6 | B4: Chaney Akin | C4: Hero | D4: 23.18 | E4: 3rd
A5: 4 | B5: Breelyn Black | C5: Poptart | D5: 34.843 | E5: 4th
A6: 2 | B6: Sophie Roberts | C6: Rainbowdash | D6: 64.208 | E6: 5th
A7: 3 | B7: Bryson Rawson | D7: broken | E7: 6th
A8: 7
A9: 8
A10: 9
A11: 10
A12: 11
A13: 12
A14: 13
A15: 14
A16: 15
A17: 16
A18: 17
A19: 18
A20: 19
A21: 20

Sheet Future Champs-Saturday (hidden)
A1: Draw | B1: Rider Name | C1: Horse Name | D1: Pen | E1: Time | F1: Final Time | G1: Placing | H1: Money Earned
A2: 1 | B2: Bella Blaylock
A3: 2 | B3: Adley Hardin
A4: 3 | B4: Ava Smith | C4: Dude
A5: 4 | B5: Kyndall Pedone | C5: Thumper
A6: 5 | B6: Maclaine DeGroot | C6: Monkey
A7: 6
A8: 7
A9: 8
A10: 9
A11: 10
A12: 11
A13: 12
A14: 13
A15: 14
A16: 15
A17: 16
A18: 17 | F18: =IF(OR(D18=5,D18=10, D18=15, D18="BP",D18="SCR"),"NT",E18) -> 0
A19: 18 | F19: =IF(OR(D19=5,D19=10, D19=15, D19="BP",D19="SCR"),"NT",E19) -> 0
A20: 19 | F20: =IF(OR(D20=5,D20=10, D20=15, D20="BP",D20="SCR"),"NT",E20) -> 0
A21: 20 | F21: =IF(OR(D21=5,D21=10, D21=15, D21="BP",D21="SCR"),"NT",E21) -> 0

Sheet Average (hidden)
A1: Parker County Arena
A2: Open
A3: 4 Yr Fut | B3: 5 Yr Fut | C3: Der | D3: Age Inct. | E3: Am | F3: Carry | G3: T/C | H3: F/F | I3: Mem | J3: Nom | K3: Av | L3: BBR | M3: WPRA | N3: Draw | O3: Owner Name | P3: Rider Name | Q3: Horse Name | R3: Pen | S3: Time 1 | T3: Final Time 1 | U3: Pen | V3: Time 2 | W3: Final Time 2 | X3: Total Time | Y3: Average Time | Z3: Placing | AA3: Money Earned | AC3: D Placing | AE3: Split
N4: 1 | T4: =IF(OR(R4=5,R4=10, R4=15, R4="BP",R4="SCR"),"NT",S4) -> 0 | W4: =IF(OR(U4=5,U4=10, U4=15, U4="BP",U4="SCR"),"NT",V4) -> 0 | X4: =(T4+W4) -> 0 | Y4: =(T4+W4)/2 -> 0 | AC4: 1D
N5: 2 | T5: 0 | W5: 0 | X5: 0 | Y5: 0 | AC5: 2D | AD5: =$AD$4+$AE$5 -> 0.5 | AE5: 0.5
N6: 3 | T6: 0 | W6: 0 | X6: 0 | Y6: 0 | AC6: 3D | AD6: =$AD$5+$AE$6 -> 1 | AE6: 0.5
N7: 4 | T7: 0 | W7: 0 | X7: 0 | Y7: 0 | AC7: 4D | AD7: =$AD$6+$AE$7 -> 1.5 | AE7: 0.5
N8: 5 | T8: 0 | W8: 0 | X8: 0 | Y8: 0 | AC8: 5D | AD8: =$AD$7+$AE$8 -> 2 | AE8: 0.5
N9: 6 | T9: 0 | W9: 0 | X9: 0 | Y9: 0
N10: 7 | T10: 0 | W10: 0 | X10: 0 | Y10: 0 | AC10: # Entered
N11: 8 | T11: 0 | W11: 0 | X11: 0 | Y11: 0 | AC11: =COUNTA(P4:P503) -> 0
N12: 9 | T12: 0 | W12: 0 | X12: 0 | Y12: 0
N13: 10 | T13: 0 | W13: 0 | X13: 0 | Y13: 0
N14: 11 | T14: 0 | W14: 0 | X14: 0 | Y14: 0
N15: 12 | T15: 0 | W15: 0 | X15: 0 | Y15: 0
N16: 13 | T16: 0 | W16: 0 | X16: 0 | Y16: 0
N17: 14 | T17: =IF(OR(R17=5,R17=10, R17=15, R17="BP",R17="SCR"),"NT",S17) -> 0 | W17: =IF(OR(U17=5,U17=10, U17=15, U17="BP",U17="SCR"),"NT",V17) -> 0 | X17: =(T17+W17) -> 0 | Y17: =(T17+W17)/2 -> 0
N18: 15 | T18: 0 | W18: 0 | X18: 0 | Y18: 0
N19: 16 | T19: 0 | W19: 0 | X19: 0 | Y19: 0
N20: 17 | T20: 0 | W20: 0 | X20: 0 | Y20: 0
N21: 18 | T21: 0 | W21: 0 | X21: 0 | Y21: 0
N22: 19 | T22: 0 | W22: 0 | X22: 0 | Y22: 0
N23: 20 | T23: 0 | W23: 0 | X23: 0 | Y23: 0
N24: 21 | T24: 0 | W24: 0 | X24: 0 | Y24: 0
N25: 22 | T25: 0 | W25: 0 | X25: 0 | Y25: 0
N26: 23 | T26: 0 | W26: 0 | X26: 0 | Y26: 0
N27: 24 | T27: 0 | W27: 0 | X27: 0 | Y27: 0
N28: 25 | T28: 0 | W28: 0 | X28: 0 | Y28: 0
N29: 26 | T29: 0 | W29: 0 | X29: 0 | Y29: 0
N30: 27 | T30: 0 | W30: 0 | X30: 0 | Y30: 0
N31: 28 | T31: 0 | W31: 0 | X31: 0 | Y31: 0
N32: 29 | T32: 0 | W32: 0 | X32: 0 | Y32: 0
N33: 30 | T33: 0 | W33: 0 | X33: 0 | Y33: 0
N34: 31 | T34: 0 | W34: 0 | X34: 0 | Y34: 0
N35: 32 | T35: 0 | W35: 0 | X35: 0 | Y35: 0
N36: 33 | T36: 0 | W36: 0 | X36: 0 | Y36: 0
N37: 34 | T37: 0 | W37: 0 | X37: 0 | Y37: 0
N38: 35 | T38: 0 | W38: 0 | X38: 0 | Y38: 0
N39: 36 | T39: 0 | W39: 0 | X39: 0 | Y39: 0
N40: 37 | T40: 0 | W40: 0 | X40: 0 | Y40: 0
N41: 38 | T41: 0 | W41: 0 | X41: 0 | Y41: 0
N42: 39 | T42: 0 | W42: 0 | X42: 0 | Y42: 0
N43: 40 | T43: 0 | W43: 0 | X43: 0 | Y43: 0
N44: 41 | T44: 0 | W44: 0 | X44: 0 | Y44: 0
N45: 42 | T45: 0 | W45: 0 | X45: 0 | Y45: 0
N46: 43 | T46: 0 | W46: 0 | X46: 0 | Y46: 0
N47: 44 | T47: 0 | W47: 0 | X47: 0 | Y47: 0
N48: 45 | T48: 0 | W48: 0 | X48: 0 | Y48: 0
N49: 46 | T49: 0 | W49: 0 | X49: 0 | Y49: 0
N50: 47 | T50: 0 | W50: 0 | X50: 0 | Y50: 0
N51: 48 | T51: 0 | W51: 0 | X51: 0 | Y51: 0
N52: 49 | T52: 0 | W52: 0 | X52: 0 | Y52: 0
N53: 50 | T53: 0 | W53: 0 | X53: 0 | Y53: 0
N54: 51 | T54: 0 | W54: 0 | X54: 0 | Y54: 0
N55: 52 | T55: 0 | W55: 0 | X55: 0 | Y55: 0
N56: 53 | T56: 0 | W56: 0 | X56: 0 | Y56: 0
N57: 54 | T57: 0 | W57: 0 | X57: 0 | Y57: 0
N58: 55 | T58: 0 | W58: 0 | X58: 0 | Y58: 0
N59: 56 | T59: 0 | W59: 0 | X59: 0 | Y59: 0
N60: 57 | T60: 0 | W60: 0 | X60: 0 | Y60: 0
N61: 58 | T61: 0 | W61: 0 | X61: 0 | Y61: 0
N62: 59 | T62: 0 | W62: 0 | X62: 0 | Y62: 0
N63: 60 | T63: 0 | W63: 0 | X63: 0 | Y63: 0
N64: 61 | T64: 0 | W64: 0 | X64: 0 | Y64: 0
N65: 62 | T65: 0 | W65: 0 | X65: 0 | Y65: 0
N66: 63 | T66: 0 | W66: 0 | X66: 0 | Y66: 0
N67: 64 | T67: 0 | W67: 0 | X67: 0 | Y67: 0
N68: 65 | T68: 0 | W68: 0 | X68: 0 | Y68: 0
N69: 66 | T69: =IF(OR(R69=5,R69=10, R69=15, R69="BP",R69="SCR"),"NT",S69) -> 0 | W69: =IF(OR(U69=5,U69=10, U69=15, U69="BP",U69="SCR"),"NT",V69) -> 0 | X69: =(T69+W69) -> 0 | Y69: =(T69+W69)/2 -> 0
N70: 67 | T70: 0 | W70: 0 | X70: 0 | Y70: 0
N71: 68 | T71: 0 | W71: 0 | X71: 0 | Y71: 0
N72: 69 | T72: 0 | W72: 0 | X72: 0 | Y72: 0
N73: 70 | T73: 0 | W73: 0 | X73: 0 | Y73: 0
N74: 71 | T74: 0 | W74: 0 | X74: 0 | Y74: 0
N75: 72 | T75: 0 | W75: 0 | X75: 0 | Y75: 0
N76: 73 | T76: 0 | W76: 0 | X76: 0 | Y76: 0
N77: 74 | T77: 0 | W77: 0 | X77: 0 | Y77: 0
N78: 75 | T78: 0 | W78: 0 | X78: 0 | Y78: 0
N79: 76 | T79: 0 | W79: 0 | X79: 0 | Y79: 0
N80: 77 | T80: 0 | W80: 0 | X80: 0 | Y80: 0
N81: 78 | T81: 0 | W81: 0 | X81: 0 | Y81: 0
N82: 79 | T82: 0 | W82: 0 | X82: 0 | Y82: 0
N83: 80 | T83: 0 | W83: 0 | X83: 0 | Y83: 0
N84: 81 | T84: 0 | W84: 0 | X84: 0 | Y84: 0
N85: 82 | T85: 0 | W85: 0 | X85: 0 | Y85: 0
N86: 83 | T86: 0 | W86: 0 | X86: 0 | Y86: 0
N87: 84 | T87: 0 | W87: 0 | X87: 0 | Y87: 0
N88: 85 | T88: 0 | W88: 0 | X88: 0 | Y88: 0
N89: 86 | T89: 0 | W89: 0 | X89: 0 | Y89: 0
N90: 87 | T90: 0 | W90: 0 | X90: 0 | Y90: 0
N91: 88 | T91: 0 | W91: 0 | X91: 0 | Y91: 0
N92: 89 | T92: 0 | W92: 0 | X92: 0 | Y92: 0
N93: 90 | T93: 0 | W93: 0 | X93: 0 | Y93: 0
N94: 91 | T94: 0 | W94: 0 | X94: 0 | Y94: 0
N95: 92 | T95: 0 | W95: 0 | X95: 0 | Y95: 0
N96: 93 | T96: 0 | W96: 0 | X96: 0 | Y96: 0
N97: 94 | T97: 0 | W97: 0 | X97: 0 | Y97: 0
N98: 95 | T98: 0 | W98: 0 | X98: 0 | Y98: 0
N99: 96 | T99: 0 | W99: 0 | X99: 0 | Y99: 0
N100: 97 | T100: 0 | W100: 0 | X100: 0 | Y100: 0
N101: 98 | T101: 0 | W101: 0 | X101: 0 | Y101: 0
N102: 99 | T102: 0 | W102: 0 | X102: 0 | Y102: 0
N103: 100 | T103: 0 | W103: 0 | X103: 0 | Y103: 0
N104: 101 | T104: 0 | W104: 0 | X104: 0 | Y104: 0
N105: 102 | T105: 0 | W105: 0 | X105: 0 | Y105: 0
N106: 103 | T106: 0 | W106: 0 | X106: 0 | Y106: 0
N107: 104 | T107: 0 | W107: 0 | X107: 0 | Y107: 0
N108: 105 | T108: 0 | W108: 0 | X108: 0 | Y108: 0
N109: 106 | T109: 0 | W109: 0 | X109: 0 | Y109: 0
N110: 107 | T110: 0 | W110: 0 | X110: 0 | Y110: 0
N111: 108 | T111: 0 | W111: 0 | X111: 0 | Y111: 0
N112: 109 | T112: 0 | W112: 0 | X112: 0 | Y112: 0
N113: 110 | T113: 0 | W113: 0 | X113: 0 | Y113: 0
N114: 111 | T114: 0 | W114: 0 | X114: 0 | Y114: 0
N115: 112 | T115: 0 | W115: 0 | X115: 0 | Y115: 0
N116: 113 | T116: 0 | W116: 0 | X116: 0 | Y116: 0
N117: 114 | T117: 0 | W117: 0 | X117: 0 | Y117: 0
N118: 115 | T118: 0 | W118: 0 | X118: 0 | Y118: 0
N119: 116 | T119: 0 | W119: 0 | X119: 0 | Y119: 0
N120: 117 | T120: 0 | W120: 0 | X120: 0 | Y120: 0
N121: 118 | T121: 0 | W121: 0 | X121: 0 | Y121: 0
N122: 119 | T122: 0 | W122: 0 | X122: 0 | Y122: 0
N123: 120 | T123: 0 | W123: 0 | X123: 0 | Y123: 0
N124: 121 | T124: 0 | W124: 0 | X124: 0 | Y124: 0
N125: 122 | T125: 0 | W125: 0 | X125: 0 | Y125: 0
N126: 123 | T126: 0 | W126: 0 | X126: 0 | Y126: 0
N127: 124 | T127: 0 | W127: 0 | X127: 0 | Y127: 0
N128: 125 | T128: 0 | W128: 0 | X128: 0 | Y128: 0
N129: 126 | T129: 0 | W129: 0 | X129: 0 | Y129: 0
N130: 127 | T130: 0 | W130: 0 | X130: 0 | Y130: 0
N131: 128 | T131: 0 | W131: 0 | X131: 0 | Y131: 0
N132: 129 | T132: 0 | W132: 0 | X132: 0 | Y132: 0
N133: 130 | T133: =IF(OR(R133=5,R133=10, R133=15, R133="BP",R133="SCR"),"NT",S133) -> 0 | W133: =IF(OR(U133=5,U133=10, U133=15, U133="BP",U133="SCR"),"NT",V133) -> 0 | X133: =(T133+W133) -> 0 | Y133: =(T133+W133)/2 -> 0
N134: 131 | T134: 0 | W134: 0 | X134: 0 | Y134: 0
N135: 132 | T135: 0 | W135: 0 | X135: 0 | Y135: 0
N136: 133 | T136: 0 | W136: 0 | X136: 0 | Y136: 0
N137: 134 | T137: 0 | W137: 0 | X137: 0 | Y137: 0
N138: 135 | T138: 0 | W138: 0 | X138: 0 | Y138: 0
N139: 136 | T139: 0 | W139: 0 | X139: 0 | Y139: 0
N140: 137 | T140: 0 | W140: 0 | X140: 0 | Y140: 0
N141: 138 | T141: 0 | W141: 0 | X141: 0 | Y141: 0
N142: 139 | T142: 0 | W142: 0 | X142: 0 | Y142: 0
N143: 140 | T143: 0 | W143: 0 | X143: 0 | Y143: 0
N144: 141 | T144: 0 | W144: 0 | X144: 0 | Y144: 0
N145: 142 | T145: 0 | W145: 0 | X145: 0 | Y145: 0
N146: 143 | T146: 0 | W146: 0 | X146: 0 | Y146: 0
N147: 144 | T147: 0 | W147: 0 | X147: 0 | Y147: 0
N148: 145 | T148: 0 | W148: 0 | X148: 0 | Y148: 0
N149: 146 | T149: 0 | W149: 0 | X149: 0 | Y149: 0
N150: 147 | T150: 0 | W150: 0 | X150: 0 | Y150: 0
N151: 148 | T151: 0 | W151: 0 | X151: 0 | Y151: 0
N152: 149 | T152: 0 | W152: 0 | X152: 0 | Y152: 0
N153: 150 | T153: 0 | W153: 0 | X153: 0 | Y153: 0
N154: 151 | T154: 0 | W154: 0 | X154: 0 | Y154: 0
N155: 152 | T155: 0 | W155: 0 | X155: 0 | Y155: 0
N156: 153 | T156: 0 | W156: 0 | X156: 0 | Y156: 0
N157: 154 | T157: 0 | W157: 0 | X157: 0 | Y157: 0
N158: 155 | T158: 0 | W158: 0 | X158: 0 | Y158: 0
N159: 156 | T159: 0 | W159: 0 | X159: 0 | Y159: 0
N160: 157 | T160: 0 | W160: 0 | X160: 0 | Y160: 0
N161: 158 | T161: 0 | W161: 0 | X161: 0 | Y161: 0
N162: 159 | T162: 0 | W162: 0 | X162: 0 | Y162: 0
N163: 160 | T163: 0 | W163: 0 | X163: 0 | Y163: 0
N164: 161 | T164: 0 | W164: 0 | X164: 0 | Y164: 0
N165: 162 | T165: 0 | W165: 0 | X165: 0 | Y165: 0
N166: 163 | T166: 0 | W166: 0 | X166: 0 | Y166: 0
N167: 164 | T167: 0 | W167: 0 | X167: 0 | Y167: 0
N168: 165 | T168: 0 | W168: 0 | X168: 0 | Y168: 0
N169: 166 | T169: 0 | W169: 0 | X169: 0 | Y169: 0
N170: 167 | T170: 0 | W170: 0 | X170: 0 | Y170: 0
N171: 168 | T171: 0 | W171: 0 | X171: 0 | Y171: 0
N172: 169 | T172: 0 | W172: 0 | X172: 0 | Y172: 0
N173: 170 | T173: 0 | W173: 0 | X173: 0 | Y173: 0
N174: 171 | T174: 0 | W174: 0 | X174: 0 | Y174: 0
N175: 172 | T175: 0 | W175: 0 | X175: 0 | Y175: 0
N176: 173 | T176: 0 | W176: 0 | X176: 0 | Y176: 0
N177: 174 | T177: 0 | W177: 0 | X177: 0 | Y177: 0
N178: 175 | T178: 0 | W178: 0 | X178: 0 | Y178: 0
N179: 176 | T179: 0 | W179: 0 | X179: 0 | Y179: 0
N180: 177 | T180: 0 | W180: 0 | X180: 0 | Y180: 0
N181: 178 | T181: 0 | W181: 0 | X181: 0 | Y181: 0
N182: 179 | T182: 0 | W182: 0 | X182: 0 | Y182: 0
N183: 180 | T183: 0 | W183: 0 | X183: 0 | Y183: 0
N184: 181 | T184: 0 | W184: 0 | X184: 0 | Y184: 0
N185: 182 | T185: 0 | W185: 0 | X185: 0 | Y185: 0
N186: 183 | T186: 0 | W186: 0 | X186: 0 | Y186: 0
N187: 184 | T187: 0 | W187: 0 | X187: 0 | Y187: 0
N188: 185 | T188: 0 | W188: 0 | X188: 0 | Y188: 0
N189: 186 | T189: 0 | W189: 0 | X189: 0 | Y189: 0
N190: 187 | T190: 0 | W190: 0 | X190: 0 | Y190: 0
N191: 188 | T191: 0 | W191: 0 | X191: 0 | Y191: 0
N192: 189 | T192: 0 | W192: 0 | X192: 0 | Y192: 0
N193: 190 | T193: 0 | W193: 0 | X193: 0 | Y193: 0
N194: 191 | T194: 0 | W194: 0 | X194: 0 | Y194: 0
N195: 192 | T195: 0 | W195: 0 | X195: 0 | Y195: 0
N196: 193 | T196: 0 | W196: 0 | X196: 0 | Y196: 0
N197: 194 | T197: =IF(OR(R197=5,R197=10, R197=15, R197="BP",R197="SCR"),"NT",S197) -> 0 | W197: =IF(OR(U197=5,U197=10, U197=15, U197="BP",U197="SCR"),"NT",V197) -> 0 | X197: =(T197+W197) -> 0 | Y197: =(T197+W197)/2 -> 0
N198: 195 | T198: 0 | W198: 0 | X198: 0 | Y198: 0
N199: 196 | T199: 0 | W199: 0 | X199: 0 | Y199: 0
N200: 197 | T200: 0 | W200: 0 | X200: 0 | Y200: 0
... 303 more rows

Sheet BFA 2D Payout (hidden)
A1: BFA 2D Payout
A2: Entry Fee | B2: # Entries | C2: % Payback | D2: Added $ | E2: Total Payout | F2: Each Go
A3: 25 | B3: 19 | C3: 0.8 | D3: 200 | E3: =(A3*$C$3)*B3+D3 -> 580 | F3: 0.3
F4: =$E$3*$F$3 -> 174
A5: $5,000-7,500 Pays 5 Places 4 to 1D 1 to 2D
A6: Placings | B6: 1D | D6: 2D
A7: 1st | B7: =($F$4*$C$7) -> 57.42 | C7: 0.33 | D7: =$F$4*$E$7 -> 12.18 | E7: 0.07
A8: 2nd | B8: =$F$4*$C$8 -> 46.98 | C8: 0.27
A9: 3rd | B9: =$F$4*$C$9 -> 34.8 | C9: 0.2
A10: 4th | B10: =$F$4*$C$10 -> 22.62 | C10: 0.13
A11: Totals | B11: =SUM(B7:B10) -> 161.82 | D11: =SUM(D7:D10) -> 12.18 | E11: =(C7+C8+C9+C10+E7+E8) -> 1
A12: =B11+D11 -> 174
A13: $7,501 - 10,000 Pays 6 Places 4 to 1D, 2 to 2D
A14: Placings | B14: 1D | D14: 2D
A15: 1st | B15: =$F$4*$C$15 -> 50.46 | C15: 0.29 | D15: =$F$4*$E$15 -> 15.66 | E15: 0.09
A16: 2nd | B16: =+$F$4*$C$16 -> 41.76 | C16: 0.24 | D16: =F4*E16 -> 8.7 | E16: 0.05
A17: 3rd | B17: =$F$4*$C$17 -> 33.06 | C17: 0.19
A18: 4th | B18: =$F$4*$C$18 -> 24.36 | C18: 0.14
A19: Totals | B19: =SUM(B15:B18) -> 149.64 | D19: =D16+D15 -> 24.36 | E19: =SUM(C15+C16+C17+C18+E15+E16) -> 1
A20: =D19+B19 -> 174
A21: $10,001 - $15,000 Payes 8 Places 5 to 1D, 3 to 2D
A22: Placings | B22: 1D | D22: 2D
A23: 1st | B23: =F4*C23 -> 41.76 | C23: 0.24 | D23: =F4*E23 -> 12.18 | E23: 0.07
A24: 2nd | B24: =F4*C24 -> 34.8 | C24: 0.2 | D24: =F4*E24 -> 8.7 | E24: 0.05
A25: 3rd | B25: =F4*C25 -> 29.58 | C25: 0.17 | D25: =F4*E25 -> 6.96 | E25: 0.04
A26: 4th | B26: =F4*C26 -> 22.62 | C26: 0.13
A27: 5th | B27: =F4*C27 -> 17.4 | C27: 0.1
A28: Totals | B28: =SUM(B23:B27) -> 146.16 | D28: =SUM(D23:D27) -> 27.84 | E28: =C23+C24+C25+C26+C27+E23+E24+E25 -> 1
A29: =B28+D28 -> 174
A30: $15,001 - $25,000 Payes 11 Places 7 to 1D, 4 to 2D
A31: Placings | B31: 1D | D31: 2D
A32: 1st | B32: =$F$4*C32 -> 36.54 | C32: 0.21 | D32: =$F$4*E32 -> 8.7 | E32: 0.05
A33: 2nd | B33: =$F$4*C33 -> 31.32 | C33: 0.18 | D33: =$F$4*E33 -> 6.96 | E33: 0.04
A34: 3rd | B34: 26.1 | C34: 0.15 | D34: 5.22 | E34: 0.03
A35: 4th | B35: 19.14 | C35: 0.11 | D35: 3.48 | E35: 0.02
A36: 5th | B36: 13.92 | C36: 0.08
A37: 6th | B37: 12.18 | C37: 0.07
A38: 7th | B38: 10.44 | C38: 0.06
A39: Totals | B39: =SUM(B32:B38) -> 149.64 | D39: =SUM(D32:D38) -> 24.36 | E39: =C32+C33+C34+C35+C36+C37+C38+E32+E33+E34+E35 -> 1
A40: =SUM(B39+D39) -> 174
A41: $25,001 - $35,000 Payes 12 Places 8 to 1D, 4 to 2D
A42: Placings | B42: 1D | D42: 2D
A43: 1st | B43: =$F$4*C43 -> 33.06 | C43: 0.19 | D43: =$F$4*E43 -> 8.7 | E43: 0.05
A44: 2nd | B44: =$F$4*C44 -> 26.1 | C44: 0.15 | D44: =$F$4*E44 -> 6.96 | E44: 0.04
A45: 3rd | B45: 20.88 | C45: 0.12 | D45: 5.22 | E45: 0.03
A46: 4th | B46: 17.4 | C46: 0.1 | D46: 3.48 | E46: 0.02
A47: 5th | B47: 15.66 | C47: 0.09
A48: 6th | B48: 13.92 | C48: 0.08
A49: 7th | B49: 12.18 | C49: 0.07
A50: 8th | B50: 10.44 | C50: 0.06
A51: Totals | B51: =SUM(B43:B50) -> 149.64 | D51: =SUM(D43:D46) -> 24.36 | E51: =C43+C44+C45+C46+C47+C48+C49+C50+E43+E44+E45+E46 -> 1
A52: =D51+B51 -> 174

Sheet 2D Payout (hidden)
A1: 2D Payout
A2: Entry Fee | B2: # Entries | C2: % Payback | D2: Added $ | E2: Total Payout
A3: 50 | B3: 35 | C3: 0.8 | D3: 0 | E3: =(A3*$C$3)*B3+D3 -> 1400
A5: % in each D | B5: 0.6 | C5: 0.4 | D5: Total % = | E5: =SUM(B5:C5) -> 1
B6: 1D | C6: 2D
B7: =(($A$3*$B$3*$C$3*$B$5)+($D$3*$B$5)) -> 840 | C7: =(($A$3*$B$3*$C$3*$C$5)+($D$3*$C$5)) -> 560
A8: Totals | B8: =SUM(B7) -> 840 | C8: =SUM(C7) -> 560 | D8: =SUM(B8:C8) -> 1400
A10: For 1-7 riders 1 place
A11: Placings | B11: 1D | C11: 2D
A12: 1st | B12: =$B$7*$E$12 -> 840 | C12: =$C$7*$E$5 -> 560 | D12: è | E12: 1
A13: Totals | B13: =SUM(B12:B12) -> 840 | C13: =SUM(C12:C12) -> 560 | D13: =SUM(B13:C13) -> 1400 | E13: =SUM(E12) -> 1
A15: For 8-11 riders 2 places
A16: Placings | B16: 1D | C16: 2D
A17: 1st | B17: =$B$7*$E$17 -> 504 | C17: =$C$7*$E$17 -> 336 | D17: è | E17: 0.6
A18: 2nd | B18: =$B$7*$E$18 -> 336 | C18: =$C$7*$E$18 -> 224 | D18: è | E18: 0.4
A19: Totals | B19: =SUM(B17:B18) -> 840 | C19: =SUM(C17:C18) -> 560 | D19: =SUM(B19:C19) -> 1400 | E19: =SUM(E17:E18) -> 1
A21: For 12-15 riders 3 places
A22: Placings | B22: 1D | C22: 2D
A23: 1st | B23: =$B$7*$E$23 -> 420 | C23: =$C$7*$E$23 -> 280 | D23: è | E23: 0.5
A24: 2nd | B24: =$B$7*$E$24 -> 252 | C24: =$C$7*$E$24 -> 168 | D24: è | E24: 0.3
A25: 3rd | B25: =$B$7*$E$25 -> 168 | C25: =$C$7*$E$25 -> 112 | D25: è | E25: 0.2
A26: Totals | B26: =SUM(B23:B25) -> 840 | C26: =SUM(C23:C25) -> 560 | D26: =SUM(B26:C26) -> 1400 | E26: =SUM(E23:E25) -> 1
A28: For 16-19 riders 4 places
A29: Placings | B29: 1D | C29: 2D
A30: 1st | B30: =$B$7*$E$30 -> 336 | C30: =$C$7*$E$30 -> 224 | D30: è | E30: 0.4
A31: 2nd | B31: =$B$7*$E$31 -> 252 | C31: =$C$7*$E$31 -> 168 | D31: è | E31: 0.3
A32: 3rd | B32: =$B$7*$E$32 -> 168 | C32: =$C$7*$E$32 -> 112 | D32: è | E32: 0.2
A33: 4th | B33: =$B$7*$E$33 -> 84 | C33: =$C$7*$E$33 -> 56 | D33: è | E33: 0.1
A34: Totals | B34: =SUM(B30:B33) -> 840 | C34: =SUM(C30:C33) -> 560 | D34: =SUM(B34:C34) -> 1400 | E34: =SUM(E30:E33) -> 1
A36: For 20-23 riders 5 places
A37: Placings | B37: 1D | C37: 2D
A38: 1st | B38: =$B$7*$E$38 -> 252 | C38: =$C$7*$E$38 -> 168 | D38: è | E38: 0.3
A39: 2nd | B39: =$B$7*$E$39 -> 210 | C39: =$C$7*$E$39 -> 140 | D39: è | E39: 0.25
A40: 3rd | B40: =$B$7*$E$40 -> 168 | C40: =$C$7*$E$40 -> 112 | D40: è | E40: 0.2
A41: 4th | B41: =$B$7*$E$41 -> 126 | C41: =$C$7*$E$41 -> 84 | D41: è | E41: 0.15
A42: 5th | B42: =$B$7*$E$42 -> 84 | C42: =$C$7*$E$42 -> 56 | D42: è | E42: 0.1
A43: Totals | B43: =SUM(B38:B42) -> 840 | C43: =SUM(C38:C42) -> 560 | D43: =SUM(B43:C43) -> 1400 | E43: =SUM(E38:E42) -> 1
A45: For 24-27 riders 6 places
A46: Placings | B46: 1D | C46: 2D
A47: 1st | B47: =$B$7*$E$47 -> 210 | C47: =$C$7*$E$47 -> 140 | D47: è | E47: 0.25
A48: 2nd | B48: =$B$7*$E$48 -> 168 | C48: =$C$7*$E$48 -> 112 | D48: è | E48: 0.2
A49: 3rd | B49: =$B$7*$E$49 -> 151.2 | C49: =$C$7*$E$49 -> 100.8 | D49: è | E49: 0.18
A50: 4th | B50: =$B$7*$E$50 -> 126 | C50: =$C$7*$E$50 -> 84 | D50: è | E50: 0.15
A51: 5th | B51: =$B$7*$E$51 -> 100.8 | C51: =$C$7*$E$51 -> 67.2 | D51: è | E51: 0.12
A52: 6th | B52: =$B$7*$E$52 -> 84 | C52: =$C$7*$E$52 -> 56 | D52: è | E52: 0.1
A53: Totals | B53: =SUM(B47:B52) -> 840 | C53: =SUM(C47:C52) -> 560 | D53: =SUM(B53:C53) -> 1400 | E53: =SUM(E47:E52) -> 1
A55: For 28-31 riders 7 places
A56: Placings | B56: 1D | C56: 2D
A57: 1st | B57: =$B$7*$E$57 -> 184.8 | C57: =$C$7*$E$57 -> 123.2 | D57: è | E57: 0.22
A58: 2nd | B58: =$B$7*$E$58 -> 151.2 | C58: =$C$7*$E$58 -> 100.8 | D58: è | E58: 0.18
A59: 3rd | B59: =$B$7*$E$59 -> 134.4 | C59: =$C$7*$E$59 -> 89.6 | D59: è | E59: 0.16
A60: 4th | B60: =$B$7*$E$60 -> 117.6 | C60: =$C$7*$E$60 -> 78.4 | D60: è | E60: 0.14
A61: 5th | B61: =$B$7*$E$61 -> 100.8 | C61: =$C$7*$E$61 -> 67.2 | D61: è | E61: 0.12
A62: 6th | B62: =$B$7*$E$62 -> 84 | C62: =$C$7*$E$62 -> 56 | D62: è | E62: 0.1
A63: 7th | B63: =$B$7*$E$63 -> 67.2 | C63: =$C$7*$E$63 -> 44.8 | D63: è | E63: 0.08
A64: Totals | B64: =SUM(B57:B63) -> 840 | C64: =SUM(C57:C63) -> 560 | D64: =SUM(B64:C64) -> 1400 | E64: =SUM(E57:E63) -> 1
A66: For 32 or more riders 8 places
A67: Placings | B67: 1D | C67: 2D
A68: 1st | B68: =$B$7*$E$68 -> 193.2 | C68: =$C$7*$E$68 -> 128.8 | D68: è | E68: 0.23
A69: 2nd | B69: =$B$7*$E$69 -> 168 | C69: =$C$7*$E$69 -> 112 | D69: è | E69: 0.2
A70: 3rd | B70: =$B$7*$E$70 -> 142.8 | C70: =$C$7*$E$70 -> 95.2 | D70: è | E70: 0.17
A71: 4th | B71: =$B$7*$E$71 -> 117.6 | C71: =$C$7*$E$71 -> 78.4 | D71: è | E71: 0.14
A72: 5th | B72: =$B$7*$E$72 -> 92.4 | C72: =$C$7*$E$72 -> 61.6 | D72: è | E72: 0.11
A73: 6th | B73: =$B$7*$E$73 -> 67.2 | C73: =$C$7*$E$73 -> 44.8 | D73: è | E73: 0.08
A74: 7th | B74: =$B$7*$E$74 -> 42 | C74: =$C$7*$E$74 -> 28 | D74: è | E74: 0.05
A75: 8th | B75: =$B$7*$E$75 -> 16.8 | C75: =$C$7*$E$75 -> 11.2 | D75: è | E75: 0.02
A76: Totals | B76: =SUM(B68:B75) -> 840 | C76: =SUM(C68:C75) -> 560 | D76: =SUM(B76:C76) -> 1400 | E76: =SUM(E68:E75) -> 1

Sheet 3D Payout (hidden)
A1: 3D Payout
A2: Entry Fee | B2: # Entries | C2: % Payback | D2: $ From Entry | E2: Added $ | F2: Total Payout
A3: 10 | B3: 3 | C3: 0.8 | D3: =$A$3*$C$3*$B$3 -> 24 | F3: =$D$3+$E$3 -> 24
A5: % in each D | B5: 0.5 | C5: 0.3 | D5: 0.2 | E5: Total % = | F5: =SUM(B5:D5) -> 1
B6: 1D | C6: 2D | D6: 3D
B7: =(($A$3*$B$3*$C$3*$B$5)+($E$3*$B$5)) -> 12 | C7: =(($A$3*$B$3*$C$3*$C$5)+($E$3*$C$5)) -> 7.2 | D7: =(($A$3*$B$3*$C$3*$D$5)+($E$3*$D$5)) -> 4.8
A8: Totals | B8: =SUM(B7) -> 12 | C8: =SUM(C7) -> 7.2 | D8: 4.8 | E8: =SUM(B8:D8) -> 24
A10: For 1-10 riders 1 place
A11: Placings | B11: 1D | C11: 2D | D11: 3D
A12: 1st | B12: =$B$7*$F$12 -> 12 | C12: =$C$7*$F$12 -> 7.2 | D12: =$D$7*$F$12 -> 4.8 | E12: è | F12: 1
A13: Totals | B13: =SUM(B12:B12) -> 12 | C13: =SUM(C12:C12) -> 7.2 | D13: =SUM(D12:D12) -> 4.8 | E13: =SUM(B13:D13) -> 24 | F13: =SUM(F12) -> 1
A15: For 11-15 riders 2 places
A16: Placings | B16: 1D | C16: 2D | D16: 3D
A17: 1st | B17: =$B$7*$F$17 -> 7.2 | C17: =$C$7*$F$17 -> 4.32 | D17: =$D$7*$F$17 -> 2.88 | E17: è | F17: 0.6
A18: 2nd | B18: =$B$7*$F$18 -> 4.8 | C18: =$C$7*$F$18 -> 2.88 | D18: =$D$7*$F$18 -> 1.92 | E18: è | F18: 0.4
A19: Totals | B19: =SUM(B17:B18) -> 12 | C19: =SUM(C17:C18) -> 7.2 | D19: =SUM(D17:D18) -> 4.8 | E19: =SUM(B19:D19) -> 24 | F19: =SUM(F17:F18) -> 1
A21: For 16-30 riders 3 places
A22: Placings | B22: 1D | C22: 2D | D22: 3D
A23: 1st | B23: =$B$7*$F$23 -> 6 | C23: =$C$7*$F$23 -> 3.6 | D23: =$D$7*$F$23 -> 2.4 | E23: è | F23: 0.5
A24: 2nd | B24: =$B$7*$F$24 -> 3.6 | C24: =$C$7*$F$24 -> 2.16 | D24: =$D$7*$F$24 -> 1.44 | E24: è | F24: 0.3
A25: 3rd | B25: =$B$7*$F$25 -> 2.4 | C25: =$C$7*$F$25 -> 1.44 | D25: =$D$7*$F$25 -> 0.96 | E25: è | F25: 0.2
A26: Totals | B26: =SUM(B23:B25) -> 12 | C26: =SUM(C23:C25) -> 7.2 | D26: =SUM(D22:D25) -> 4.8 | E26: =SUM(B26:D26) -> 24 | F26: =SUM(F23:F25) -> 1
A28: For 31-60 riders 4 places
A29: Placings | B29: 1D | C29: 2D | D29: 3D
A30: 1st | B30: =$B$7*$F$30 -> 5.04 | C30: =$C$7*$F$30 -> 3.024 | D30: =$D$7*$F$30 -> 2.016 | E30: è | F30: 0.42
A31: 2nd | B31: =$B$7*$F$31 -> 3.48 | C31: =$C$7*$F$31 -> 2.088 | D31: =$D$7*$F$31 -> 1.392 | E31: è | F31: 0.29
A32: 3rd | B32: =$B$7*$F$32 -> 2.28 | C32: =$C$7*$F$32 -> 1.368 | D32: =$D$7*$F$32 -> 0.912 | E32: è | F32: 0.19
A33: 4th | B33: =$B$7*$F$33 -> 1.2 | C33: =$C$7*$F$33 -> 0.72 | D33: =$D$7*$F$33 -> 0.48 | E33: è | F33: 0.1
A34: Totals | B34: =SUM(B30:B33) -> 12 | C34: =SUM(C30:C33) -> 7.2 | D34: =SUM(D30:D33) -> 4.8 | E34: =SUM(B34:D34) -> 24 | F34: =SUM(F30:F33) -> 1
A36: For 61-90 riders 5 places
A37: Placings | B37: 1D | C37: 2D | D37: 3D
A38: 1st | B38: =$B$7*$F$38 -> 4.56 | C38: =$C$7*$F$38 -> 2.736 | D38: =$D$7*$F$38 -> 1.824 | E38: è | F38: 0.38
A39: 2nd | B39: =$B$7*$F$39 -> 3.36 | C39: =$C$7*$F$39 -> 2.016 | D39: =$D$7*$F$39 -> 1.344 | E39: è | F39: 0.28
A40: 3rd | B40: =$B$7*$F$40 -> 2.16 | C40: =$C$7*$F$40 -> 1.296 | D40: =$D$7*$F$40 -> 0.864 | E40: è | F40: 0.18
A41: 4th | B41: =$B$7*$F$41 -> 1.2 | C41: =$C$7*$F$41 -> 0.72 | D41: =$D$7*$F$41 -> 0.48 | E41: è | F41: 0.1
A42: 5th | B42: =$B$7*$F$42 -> 0.72 | C42: =$C$7*$F$42 -> 0.432 | D42: =$D$7*$F$42 -> 0.288 | E42: è | F42: 0.06
A43: Totals | B43: =SUM(B38:B42) -> 12 | C43: =SUM(C38:C42) -> 7.2 | D43: =SUM(D38:D42) -> 4.8 | E43: =SUM(B43:D43) -> 24 | F43: =SUM(F38:F42) -> 1
A45: For 91-120 riders 6 places
A46: Placings | B46: 1D | C46: 2D | D46: 3D
A47: 1st | B47: =$B$7*$F$47 -> 4.32 | C47: =$C$7*$F$47 -> 2.592 | D47: =$D$7*$F$47 -> 1.728 | E47: è | F47: 0.36
A48: 2nd | B48: =$B$7*$F$48 -> 3.12 | C48: =$C$7*$F$48 -> 1.872 | D48: =$D$7*$F$48 -> 1.248 | E48: è | F48: 0.26
A49: 3rd | B49: =$B$7*$F$49 -> 1.92 | C49: =$C$7*$F$49 -> 1.152 | D49: =$D$7*$F$49 -> 0.768 | E49: è | F49: 0.16
A50: 4th | B50: =$B$7*$F$50 -> 1.2 | C50: =$C$7*$F$50 -> 0.72 | D50: =$D$7*$F$50 -> 0.48 | E50: è | F50: 0.1
A51: 5th | B51: =$B$7*$F$51 -> 0.84 | C51: =$C$7*$F$51 -> 0.504 | D51: =$D$7*$F$51 -> 0.336 | E51: è | F51: 0.07
A52: 6th | B52: =$B$7*$F$52 -> 0.6 | C52: =$C$7*$F$52 -> 0.36 | D52: =$D$7*$F$52 -> 0.24 | E52: è | F52: 0.05
A53: Totals | B53: =SUM(B47:B52) -> 12 | C53: =SUM(C47:C52) -> 7.2 | D53: =SUM(D47:D52) -> 4.8 | E53: =SUM(B53:D53) -> 24 | F53: =SUM(F47:F52) -> 1
A55: For 121-200 riders 7 places
A56: Placings | B56: 1D | C56: 2D | D56: 3D
A57: 1st | B57: =$B$7*$F$57 -> 3.12 | C57: =$C$7*$F$57 -> 1.872 | D57: =$D$7*$F$57 -> 1.248 | E57: è | F57: 0.26
A58: 2nd | B58: =$B$7*$F$58 -> 2.4 | C58: =$C$7*$F$58 -> 1.44 | D58: =$D$7*$F$58 -> 0.96 | E58: è | F58: 0.2
A59: 3rd | B59: =$B$7*$F$59 -> 1.8 | C59: =$C$7*$F$59 -> 1.08 | D59: =$D$7*$F$59 -> 0.72 | E59: è | F59: 0.15
A60: 4th | B60: =$B$7*$F$60 -> 1.44 | C60: =$C$7*$F$60 -> 0.864 | D60: =$D$7*$F$60 -> 0.576 | E60: è | F60: 0.12
A61: 5th | B61: =$B$7*$F$61 -> 1.2 | C61: =$C$7*$F$61 -> 0.72 | D61: =$D$7*$F$61 -> 0.48 | E61: è | F61: 0.1
A62: 6th | B62: =$B$7*$F$62 -> 1.08 | C62: =$C$7*$F$62 -> 0.648 | D62: =$D$7*$F$62 -> 0.432 | E62: è | F62: 0.09
A63: 7th | B63: =$B$7*$F$63 -> 0.96 | C63: =$C$7*$F$63 -> 0.576 | D63: =$D$7*$F$63 -> 0.384 | E63: è | F63: 0.08
A64: Totals | B64: =SUM(B57:B63) -> 12 | C64: =SUM(C57:C63) -> 7.2 | D64: =SUM(D57:D63) -> 4.8 | E64: =SUM(B64:D64) -> 24 | F64: =SUM(F57:F63) -> 1
A66: For 201 or more riders 8 places
A67: Placings | B67: 1D | C67: 2D | D67: 3D
A68: 1st | B68: =$B$7*0.24 -> 2.88 | C68: =$C$7*0.24 -> 1.728 | D68: =$D$7*0.24 -> 1.152 | E68: è | F68: 0.24
A69: 2nd | B69: =$B$7*0.18 -> 2.16 | C69: =$C$7*0.18 -> 1.296 | D69: =$D$7*0.18 -> 0.864 | E69: è | F69: 0.18
A70: 3rd | B70: =$B$7*0.15 -> 1.8 | C70: =$C$7*0.15 -> 1.08 | D70: =$D$7*0.15 -> 0.72 | E70: è | F70: 0.15
A71: 4th | B71: =$B$7*0.12 -> 1.44 | C71: =$C$7*0.12 -> 0.864 | D71: =$D$7*0.12 -> 0.576 | E71: è | F71: 0.12
A72: 5th | B72: =$B$7*0.1 -> 1.2 | C72: =$C$7*0.1 -> 0.72 | D72: =$D$7*0.1 -> 0.48 | E72: è | F72: 0.1
A73: 6th | B73: =$B$7*0.08 -> 0.96 | C73: =$C$7*0.08 -> 0.576 | D73: =$D$7*0.08 -> 0.384 | E73: è | F73: 0.08
A74: 7th | B74: =$B$7*0.07 -> 0.84 | C74: =$C$7*0.07 -> 0.504 | D74: =$D$7*0.07 -> 0.336 | E74: è | F74: 0.07
A75: 8th | B75: =$B$7*0.06 -> 0.72 | C75: =$C$7*0.06 -> 0.432 | D75: =$D$7*0.06 -> 0.288 | E75: è | F75: 0.06
A76: Totals | B76: =SUM(B68:B75) -> 12 | C76: =SUM(C68:C75) -> 7.2 | D76: =SUM(D68:D75) -> 4.8 | E76: =SUM(B76:D76) -> 24 | F76: =SUM(F68:F75) -> 1

Sheet 4D Payout BBR (hidden)
A1: 4D Payout BBR
A2: Entry Fee | B2: # Entries | C2: % Payback | D2: $ From Entry | E2: Added $ | F2: Total Payout
A3: 40 | B3: 200 | C3: 0.8 | D3: =$A$3*$C$3*$B$3 -> 6400 | E3: 1100 | F3: =($A$3*$C$3)*$B$3+$E$3 -> 7500
A5: % in each D | B5: 0.35 | C5: 0.3 | D5: 0.2 | E5: 0.15 | F5: Total % Payout | G5: =SUM(B5:E5) -> 1
B6: 1D | C6: 2D | D6: 3D | E6: 4D
B7: =(($A$3*$B$3*$C$3*0.35)+($E$3/4)) -> 2515 | C7: =(($A$3*$B$3*$C$3*0.3)+($E$3/4)) -> 2195 | D7: =(($A$3*$B$3*$C$3*0.2)+($E$3/4)) -> 1555 | E7: =(($A$3*$B$3*$C$3*0.15)+($E$3/4)) -> 1235
A8: Totals | B8: =SUM(B7) -> 2515 | C8: =SUM(C7) -> 2195 | D8: 1555 | E8: 1235 | F8: =SUM(B8:E8) -> 7500
A10: For 1-16 riders 1 place
A11: Placings | B11: 1D | C11: 2D | D11: 3D | E11: 4D
A12: 1st | B12: =$B$7*$G$12 -> 2515 | C12: =$C$7*$G$12 -> 2195 | D12: =$D$7*$G$12 -> 1555 | E12: =$E$7*$G$12 -> 1235 | F12: è | G12: 1
A13: Totals | B13: =SUM(B12:B12) -> 2515 | C13: =SUM(C12:C12) -> 2195 | D13: =SUM(D12:D12) -> 1555 | E13: =SUM(E12:E12) -> 1235 | F13: =SUM(B13:E13) -> 7500 | G13: =SUM(G12) -> 1
A15: For 17-33 riders 2 places
A16: Placings | B16: 1D | C16: 2D | D16: 3D | E16: 4D
A17: 1st | B17: =$B$7*$G$17 -> 1509 | C17: =$C$7*$G$17 -> 1317 | D17: =$D$7*$G$17 -> 933 | E17: =$E$7*$G$17 -> 741 | F17: è | G17: 0.6
A18: 2nd | B18: =$B$7*$G$18 -> 1006 | C18: =$C$7*$G$18 -> 878 | D18: =$D$7*$G$18 -> 622 | E18: =$E$7*$G$18 -> 494 | F18: è | G18: 0.4
A19: Totals | B19: =SUM(B17:B18) -> 2515 | C19: =SUM(C17:C18) -> 2195 | D19: =SUM(D17:D18) -> 1555 | E19: =SUM(E17:E18) -> 1235 | F19: =SUM(B19:E19) -> 7500 | G19: =SUM(G17:G18) -> 1
A21: For 34-66 riders 3 places
A22: Placings | B22: 1D | C22: 2D | D22: 3D | E22: 4D
A23: 1st | B23: =$B$7*$G$23 -> 1257.5 | C23: =$C$7*$G$23 -> 1097.5 | D23: =$D$7*$G$23 -> 777.5 | E23: =$E$7*$G$23 -> 617.5 | F23: è | G23: 0.5
A24: 2nd | B24: =$B$7*$G$24 -> 754.5 | C24: =$C$7*$G$24 -> 658.5 | D24: =$D$7*$G$24 -> 466.5 | E24: =$E$7*$G$24 -> 370.5 | F24: è | G24: 0.3
A25: 3rd | B25: =$B$7*$G$25 -> 503 | C25: =$C$7*$G$25 -> 439 | D25: =$D$7*$G$25 -> 311 | E25: =$E$7*$G$25 -> 247 | F25: è | G25: 0.2
A26: Totals | B26: =SUM(B23:B25) -> 2515 | C26: =SUM(C23:C25) -> 2195 | D26: =SUM(D23:D25) -> 1555 | E26: =SUM(E23:E25) -> 1235 | F26: =SUM(B26:E26) -> 7500 | G26: =SUM(G23:G25) -> 1
A28: For 97-95 riders 4 places
A29: Placings | B29: 1D | C29: 2D | D29: 3D | E29: 4D
A30: 1st | B30: =$B$7*$G$30 -> 1006 | C30: =$C$7*$G$30 -> 878 | D30: =$D$7*$G$30 -> 622 | E30: =$E$7*$G$30 -> 494 | F30: è | G30: 0.4
A31: 2nd | B31: =$B$7*$G$31 -> 754.5 | C31: =$C$7*$G$31 -> 658.5 | D31: =$D$7*$G$31 -> 466.5 | E31: =$E$7*$G$31 -> 370.5 | F31: è | G31: 0.3
A32: 3rd | B32: =$B$7*$G$32 -> 503 | C32: =$C$7*$G$32 -> 439 | D32: =$D$7*$G$32 -> 311 | E32: =$E$7*$G$32 -> 247 | F32: è | G32: 0.2
A33: 4th | B33: =$B$7*$G$33 -> 251.5 | C33: =$C$7*$G$33 -> 219.5 | D33: =$D$7*$G$33 -> 155.5 | E33: =$E$7*$G$33 -> 123.5 | F33: è | G33: 0.1
A34: Totals | B34: =SUM(B30:B33) -> 2515 | C34: =SUM(C30:C33) -> 2195 | D34: =SUM(D30:D33) -> 1555 | E34: =SUM(E30:E33) -> 1235 | F34: =SUM(B34:E34) -> 7500 | G34: =SUM(G30:G33) -> 1
A36: For 96-133 riders 5 places
A37: Placings | B37: 1D | C37: 2D | D37: 3D | E37: 4D
A38: 1st | B38: =$B$7*$G$38 -> 829.95 | C38: =$C$7*$G$38 -> 724.35 | D38: =$D$7*G38 -> 513.15 | E38: =$E$7*$G$38 -> 407.55 | F38: è | G38: 0.33
A39: 2nd | B39: =$B$7*$G$39 -> 679.05 | C39: =$C$7*$G$39 -> 592.65 | D39: =$D$7*$G$39 -> 419.85 | E39: =$E$7*$G$39 -> 333.45 | F39: è | G39: 0.27
A40: 3rd | B40: =$B$7*$G$40 -> 503 | C40: =$C$7*$G$40 -> 439 | D40: =$D$7*$G$40 -> 311 | E40: =$E$7*$G$40 -> 247 | F40: è | G40: 0.2
A41: 4th | B41: =$B$7*$G$41 -> 326.95 | C41: =$C$7*$G$41 -> 285.35 | D41: =$D$7*$G$41 -> 202.15 | E41: =$E$7*$G$41 -> 160.55 | F41: è | G41: 0.13
A42: 5th | B42: =$B$7*$G$42 -> 176.05 | C42: =$C$7*$G$42 -> 153.65 | D42: =$D$7*$G$42 -> 108.85 | E42: =$E$7*$G$42 -> 86.45 | F42: è | G42: 0.07
A43: Totals | B43: =SUM(B38:B42) -> 2515 | C43: =SUM(C38:C42) -> 2195 | D43: =SUM(D38:D42) -> 1555 | E43: =SUM(E38:E42) -> 1235 | F43: =SUM(B43:E43) -> 7500 | G43: =SUM(G38:G42) -> 1
A45: For 134-166 riders 6 places
A46: Placings | B46: 1D | C46: 2D | D46: 3D | E46: 4D
A47: 1st | B47: =$B$7*$G$47 -> 729.35 | C47: =$C$7*$G$47 -> 636.55 | D47: =$D$7*$G$47 -> 450.95 | E47: =$E$7*$G$47 -> 358.15 | F47: è | G47: 0.29
A48: 2nd | B48: =$B$7*$G$48 -> 603.6 | C48: =$C$7*$G$48 -> 526.8 | D48: =$D$7*$G$48 -> 373.2 | E48: =$E$7*$G$48 -> 296.4 | F48: è | G48: 0.24
A49: 3rd | B49: =$B$7*$G$49 -> 477.85 | C49: =$C$7*$G$49 -> 417.05 | D49: =$D$7*$G$49 -> 295.45 | E49: =$E$7*$G$49 -> 234.65 | F49: è | G49: 0.19
A50: 4th | B50: =$B$7*$G$50 -> 352.1 | C50: =$C$7*$G$50 -> 307.3 | D50: =$D$7*$G$50 -> 217.7 | E50: =$E$7*$G$50 -> 172.9 | F50: è | G50: 0.14
A51: 5th | B51: =$B$7*$G$51 -> 226.35 | C51: =$C$7*$G$51 -> 197.55 | D51: =$D$7*$G$51 -> 139.95 | E51: =$E$7*$G$51 -> 111.15 | F51: è | G51: 0.09
A52: 6th | B52: =$B$7*$G$52 -> 125.75 | C52: =$C$7*$G$52 -> 109.75 | D52: =$D$7*$G$52 -> 77.75 | E52: =$E$7*$G$52 -> 61.75 | F52: è | G52: 0.05
A53: Totals | B53: =SUM(B47:B52) -> 2515 | C53: =SUM(C47:C52) -> 2195 | D53: =SUM(D47:D52) -> 1555 | E53: =SUM(E47:E52) -> 1235 | F53: =SUM(B53:E53) -> 7500 | G53: =SUM(G47:G52) -> 1
A55: For 167-222 riders 8 places
A56: Placings | B56: 1D | C56: 2D | D56: 3D | E56: 4D
A57: 1st | B57: =$B$7*$G$57 -> 603.6 | C57: =$C$7*$G$57 -> 526.8 | D57: =$D$7*$G$57 -> 373.2 | E57: =$E$7*$G$57 -> 296.4 | F57: è | G57: 0.24
A58: 2nd | B58: =$B$7*$G$58 -> 503 | C58: =$C$7*$G$58 -> 439 | D58: =$D$7*$G$58 -> 311 | E58: =$E$7*$G$58 -> 247 | F58: è | G58: 0.2
A59: 3rd | B59: =$B$7*$G$59 -> 427.55 | C59: =$C$7*$G$59 -> 373.15 | D59: =$D$7*$G$59 -> 264.35 | E59: =$E$7*$G$59 -> 209.95 | F59: è | G59: 0.17
A60: 4th | B60: =$B$7*$G$60 -> 326.95 | C60: =$C$7*$G$60 -> 285.35 | D60: =$D$7*$G$60 -> 202.15 | E60: =$E$7*$G$60 -> 160.55 | F60: è | G60: 0.13
A61: 5th | B61: =$B$7*$G$61 -> 251.5 | C61: =$C$7*$G$61 -> 219.5 | D61: =$D$7*$G$61 -> 155.5 | E61: =$E$7*$G$61 -> 123.5 | F61: è | G61: 0.1
A62: 6th | B62: =$B$7*$G$62 -> 176.05 | C62: =$C$7*$G$62 -> 153.65 | D62: =$D$7*$G$62 -> 108.85 | E62: =$E$7*$G$62 -> 86.45 | F62: è | G62: 0.07
A63: 7th | B63: =$B$7*$G$63 -> 125.75 | C63: =$C$7*$G$63 -> 109.75 | D63: =$D$7*$G$63 -> 77.75 | E63: =$E$7*$G$63 -> 61.75 | F63: è | G63: 0.05
A64: 8th | B64: =$B$7*$G$64 -> 100.6 | C64: =$C$7*$G$64 -> 87.8 | D64: =$D$7*$G$64 -> 62.2 | E64: =$E$7*$G$64 -> 49.4 | F64: è | G64: 0.04
A65: Totals | B65: =SUM(B57:B64) -> 2515 | C65: =SUM(C57:C64) -> 2195 | D65: =SUM(D57:D64) -> 1555 | E65: =SUM(E57:E64) -> 1235 | F65: =SUM(B65:E65) -> 7500 | G65: =SUM(G57:G64) -> 1
A67: For 223-333 riders 10 places
A68: Placings | B68: 1D | C68: 2D | D68: 3D | E68: 4D
A69: 1st | B69: =$B$7*$G$69 -> 528.15 | C69: =$C$7*$G$69 -> 460.95 | D69: =$D$7*$G$69 -> 326.55 | E69: =$E$7*$G$69 -> 259.35 | F69: è | G69: 0.21
A70: 2nd | B70: =$B$7*$G$70 -> 452.7 | C70: =$C$7*$G$70 -> 395.1 | D70: =$D$7*$G$70 -> 279.9 | E70: =$E$7*$G$70 -> 222.3 | F70: è | G70: 0.18
A71: 3rd | B71: =$B$7*$G$71 -> 377.25 | C71: =$C$7*$G$71 -> 329.25 | D71: =$D$7*$G$71 -> 233.25 | E71: =$E$7*$G$71 -> 185.25 | F71: è | G71: 0.15
A72: 4th | B72: =$B$7*$G$72 -> 301.8 | C72: =$C$7*$G$72 -> 263.4 | D72: =$D$7*$G$72 -> 186.6 | E72: =$E$7*$G$72 -> 148.2 | F72: è | G72: 0.12
A73: 5th | B73: =$B$7*$G$73 -> 226.35 | C73: =$C$7*$G$73 -> 197.55 | D73: =$D$7*$G$73 -> 139.95 | E73: =$E$7*$G$73 -> 111.15 | F73: è | G73: 0.09
A74: 6th | B74: =$B$7*$G$74 -> 176.05 | C74: =$C$7*$G$74 -> 153.65 | D74: =$D$7*$G$74 -> 108.85 | E74: =$E$7*$G$74 -> 86.45 | F74: è | G74: 0.07
A75: 7th | B75: =$B$7*$G$75 -> 150.9 | C75: =$C$7*$G$75 -> 131.7 | D75: =$D$7*$G$75 -> 93.3 | E75: =$E$7*$G$75 -> 74.1 | F75: è | G75: 0.06
A76: 8th | B76: =$B$7*$G$76 -> 125.75 | C76: =$C$7*$G$76 -> 109.75 | D76: =$D$7*$G$76 -> 77.75 | E76: =$E$7*$G$76 -> 61.75 | F76: è | G76: 0.05
A77: 9th | B77: =$B$7*$G$77 -> 100.6 | C77: =$C$7*$G$77 -> 87.8 | D77: =$D$7*$G$77 -> 62.2 | E77: =$E$7*$G$77 -> 49.4 | F77: è | G77: 0.04
A78: 10th | B78: =$B$7*$G$78 -> 75.45 | C78: =$C$7*$G$78 -> 65.85 | D78: =$D$7*$G$78 -> 46.65 | E78: =$E$7*$G$78 -> 37.05 | F78: è | G78: 0.03
A79: Totals | B79: =SUM(B69:B78) -> 2515 | C79: =SUM(C69:C78) -> 2195 | D79: =SUM(D69:D78) -> 1555 | E79: =SUM(E69:E78) -> 1235 | F79: =B79+C79+D79+E79 -> 7500 | G79: =SUM(G69:G78) -> 1
A81: For 334-500 riders 12 places
A82: Placings | B82: 1D | C82: 2D | D82: 3D | E82: 4D
A83: 1st | B83: =$B$7*$G$83 -> 477.85 | C83: =$C$7*$G$83 -> 417.05 | D83: =$D$7*$G$83 -> 295.45 | E83: =$E$7*$G$83 -> 234.65 | F83: è | G83: 0.19
A84: 2nd | B84: =$B$7*$G$84 -> 377.25 | C84: =$C$7*$G$84 -> 329.25 | D84: =$D$7*$G$84 -> 233.25 | E84: =$E$7*$G$84 -> 185.25 | F84: è | G84: 0.15
A85: 3rd | B85: =$B$7*$G$85 -> 301.8 | C85: =$C$7*$G$85 -> 263.4 | D85: =$D$7*$G$85 -> 186.6 | E85: =$E$7*$G$85 -> 148.2 | F85: è | G85: 0.12
A86: 4th | B86: =$B$7*$G$86 -> 251.5 | C86: =$C$7*$G$86 -> 219.5 | D86: =$D$7*$G$86 -> 155.5 | E86: =$E$7*$G$86 -> 123.5 | F86: è | G86: 0.1
A87: 5th | B87: =$B$7*$G$87 -> 226.35 | C87: =$C$7*$G$87 -> 197.55 | D87: =$D$7*$G$87 -> 139.95 | E87: =$E$7*$G$87 -> 111.15 | F87: è | G87: 0.09
A88: 6th | B88: =$B$7*$G$88 -> 201.2 | C88: =$C$7*$G$88 -> 175.6 | D88: =$D$7*$G$88 -> 124.4 | E88: =$E$7*$G$88 -> 98.8 | F88: è | G88: 0.08
A89: 7th | B89: =$B$7*$G$89 -> 176.05 | C89: =$C$7*$G$89 -> 153.65 | D89: =$D$7*$G$89 -> 108.85 | E89: =$E$7*$G$89 -> 86.45 | F89: è | G89: 0.07
A90: 8th | B90: =$B$7*$G$90 -> 150.9 | C90: =$C$7*$G$90 -> 131.7 | D90: =$D$7*$G$90 -> 93.3 | E90: =$E$7*$G$90 -> 74.1 | F90: è | G90: 0.06
A91: 9th | B91: =$B$7*$G$91 -> 125.75 | C91: =$C$7*$G$91 -> 109.75 | D91: =$D$7*$G$91 -> 77.75 | E91: =$E$7*$G$91 -> 61.75 | F91: è | G91: 0.05
A92: 10th | B92: =$B$7*$G$92 -> 100.6 | C92: =$C$7*$G$92 -> 87.8 | D92: =$D$7*$G$92 -> 62.2 | E92: =$E$7*$G$92 -> 49.4 | F92: è | G92: 0.04
A93: 11th | B93: =$B$7*$G$93 -> 75.45 | C93: =$C$7*$G$93 -> 65.85 | D93: =$D$7*$G$93 -> 46.65 | E93: =$E$7*$G$93 -> 37.05 | F93: è | G93: 0.03
A94: 12th | B94: =$B$7*$G$94 -> 50.3 | C94: =$C$7*$G$94 -> 43.9 | D94: =$D$7*$G$94 -> 31.1 | E94: =$E$7*$G$94 -> 24.7 | F94: è | G94: 0.02
A95: Totals | B95: =SUM(B83:B94) -> 2515 | C95: =SUM(C83:C94) -> 2195 | D95: 1555 | E95: 1235 | F95: =B95+C95+D95+E95 -> 7500 | G95: =SUM(G83:G94) -> 1
A97: For 501-750 riders 15 places
A98: Placings | B98: 1D | C98: 2D | D98: 3D | E98: 4D
A99: 1st | B99: =$B$7*$G$99 -> 452.7 | C99: =$C$7*$G$99 -> 395.1 | D99: =$D$7*$G$99 -> 279.9 | E99: =$E$7*$G$99 -> 222.3 | F99: è | G99: 0.18
A100: 2nd | B100: =$B$7*$G$100 -> 377.25 | C100: =$C$7*$G$100 -> 329.25 | D100: =$D$7*$G$100 -> 233.25 | E100: =$E$7*$G$100 -> 185.25 | F100: è | G100: 0.15
A101: 3rd | B101: =$B$7*$G$101 -> 301.8 | C101: =$C$7*$G$101 -> 263.4 | D101: =$D$7*$G$101 -> 186.6 | E101: =$E$7*$G$101 -> 148.2 | F101: è | G101: 0.12
A102: 4th | B102: =$B$7*$G$102 -> 251.5 | C102: =$C$7*$G$102 -> 219.5 | D102: =$D$7*$G$102 -> 155.5 | E102: =$E$7*$G$102 -> 123.5 | F102: è | G102: 0.1
A103: 5th | B103: =$B$7*$G$103 -> 213.775 | C103: =$C$7*$G$103 -> 186.575 | D103: =$D$7*$G$103 -> 132.175 | E103: =$E$7*$G$103 -> 104.975 | F103: è | G103: 0.085
A104: 6th | B104: =$B$7*$G$104 -> 176.05 | C104: =$C$7*$G$104 -> 153.65 | D104: =$D$7*$G$104 -> 108.85 | E104: =$E$7*$G$104 -> 86.45 | F104: è | G104: 0.07
A105: 7th | B105: =$B$7*$G$105 -> 150.9 | C105: =$C$7*$G$105 -> 131.7 | D105: =$D$7*$G$105 -> 93.3 | E105: =$E$7*$G$105 -> 74.1 | F105: è | G105: 0.06
A106: 8th | B106: =$B$7*$G$106 -> 125.75 | C106: =$C$7*$G$106 -> 109.75 | D106: =$D$7*$G$106 -> 77.75 | E106: =$E$7*$G$106 -> 61.75 | F106: è | G106: 0.05
A107: 9th | B107: =$B$7*$G$107 -> 106.8875 | C107: =$C$7*$G$107 -> 93.2875 | D107: =$D$7*$G$107 -> 66.0875 | E107: =$E$7*$G$107 -> 52.4875 | F107: è | G107: 0.0425
A108: 10th | B108: =$B$7*$G$108 -> 88.025 | C108: =$C$7*$G$108 -> 76.825 | D108: =$D$7*$G$108 -> 54.425 | E108: =$E$7*$G$108 -> 43.225 | F108: è | G108: 0.035
A109: 11th | B109: =$B$7*$G$109 -> 75.45 | C109: =$C$7*$G$109 -> 65.85 | D109: =$D$7*$G$109 -> 46.65 | E109: =$E$7*$G$109 -> 37.05 | F109: è | G109: 0.03
A110: 12th | B110: =$B$7*$G$110 -> 62.875 | C110: =$C$7*$G$110 -> 54.875 | D110: =$D$7*$G$110 -> 38.875 | E110: =$E$7*$G$110 -> 30.875 | F110: è | G110: 0.025
A111: 13th | B111: =$B$7*$G$111 -> 50.3 | C111: =$C$7*$G$111 -> 43.9 | D111: =$D$7*$G$111 -> 31.1 | E111: =$E$7*$G$111 -> 24.7 | F111: è | G111: 0.02
A112: 14th | B112: =$B$7*$G$112 -> 44.0125 | C112: =$C$7*$G$112 -> 38.4125 | D112: =$D$7*$G$112 -> 27.2125 | E112: =$E$7*$G$112 -> 21.6125 | F112: è | G112: 0.0175
A113: 15th | B113: =$B$7*$G$113 -> 37.725 | C113: =$C$7*$G$113 -> 32.925 | D113: =$D$7*$G$113 -> 23.325 | E113: =$E$7*$G$113 -> 18.525 | F113: è | G113: 0.015
A114: Totals | B114: =SUM(B99:B113) -> 2515 | C114: =SUM(C99:C113) -> 2195 | D114: 1555 | E114: 1235 | F114: =B114+C114+D114+E114 -> 7500 | G114: =SUM(G99:G113) -> 1
A116: For 751-1200 riders 20 places
A117: Placings | B117: 1D | C117: 2D | D117: 3D | E117: 4D
A118: 1st | B118: =$B$7*$G$118 -> 352.1 | C118: =$C$7*$G$118 -> 307.3 | D118: =$D$7*$G$118 -> 217.7 | E118: =$E$7*$G$118 -> 172.9 | F118: è | G118: 0.14
A119: 2nd | B119: =$B$7*$G$119 -> 276.65 | C119: =$C$7*$G$119 -> 241.45 | D119: =$D$7*$G$119 -> 171.05 | E119: =$E$7*$G$119 -> 135.85 | F119: è | G119: 0.11
A120: 3rd | B120: =$B$7*$G$120 -> 226.35 | C120: =$C$7*$G$120 -> 197.55 | D120: =$D$7*$G$120 -> 139.95 | E120: =$E$7*$G$120 -> 111.15 | F120: è | G120: 0.09
A121: 4th | B121: =$B$7*$G$121 -> 193.655 | C121: =$C$7*$G$121 -> 169.015 | D121: =$D$7*$G$121 -> 119.735 | E121: =$E$7*$G$121 -> 95.095 | F121: è | G121: 0.077
A122: 5th | B122: =$B$7*$G$122 -> 176.05 | C122: =$C$7*$G$122 -> 153.65 | D122: =$D$7*$G$122 -> 108.85 | E122: =$E$7*$G$122 -> 86.45 | F122: è | G122: 0.07
A123: 6th | B123: =$B$7*$G$123 -> 163.475 | C123: =$C$7*$G$123 -> 142.675 | D123: =$D$7*$G$123 -> 101.075 | E123: =$E$7*$G$123 -> 80.275 | F123: è | G123: 0.065
A124: 7th | B124: =$B$7*$G$124 -> 150.9 | C124: =$C$7*$G$124 -> 131.7 | D124: =$D$7*$G$124 -> 93.3 | E124: =$E$7*$G$124 -> 74.1 | F124: è | G124: 0.06
A125: 8th | B125: =$B$7*$G$125 -> 138.325 | C125: =$C$7*$G$125 -> 120.725 | D125: =$D$7*$G$125 -> 85.525 | E125: =$E$7*$G$125 -> 67.925 | F125: è | G125: 0.055
A126: 9th | B126: =$B$7*$G$126 -> 125.75 | C126: =$C$7*$G$126 -> 109.75 | D126: =$D$7*$G$126 -> 77.75 | E126: =$E$7*$G$126 -> 61.75 | F126: è | G126: 0.05
A127: 10th | B127: =$B$7*$G$127 -> 113.175 | C127: =$C$7*$G$127 -> 98.775 | D127: =$D$7*$G$127 -> 69.975 | E127: =$E$7*$G$127 -> 55.575 | F127: è | G127: 0.045
A128: 11th | B128: =$B$7*$G$128 -> 100.6 | C128: =$C$7*$G$128 -> 87.8 | D128: =$D$7*$G$128 -> 62.2 | E128: =$E$7*$G$128 -> 49.4 | F128: è | G128: 0.04
A129: 12th | B129: =$B$7*$G$129 -> 93.055 | C129: =$C$7*$G$129 -> 81.215 | D129: =$D$7*$G$129 -> 57.535 | E129: =$E$7*$G$129 -> 45.695 | F129: è | G129: 0.037
A130: 13th | B130: =$B$7*$G$130 -> 82.995 | C130: =$C$7*$G$130 -> 72.435 | D130: =$D$7*$G$130 -> 51.315 | E130: =$E$7*$G$130 -> 40.755 | F130: è | G130: 0.033
A131: 14th | B131: =$B$7*$G$131 -> 72.935 | C131: =$C$7*$G$131 -> 63.655 | D131: =$D$7*$G$131 -> 45.095 | E131: =$E$7*$G$131 -> 35.815 | F131: è | G131: 0.029
A132: 15th | B132: =$B$7*$G$132 -> 62.875 | C132: =$C$7*$G$132 -> 54.875 | D132: =$D$7*$G$132 -> 38.875 | E132: =$E$7*$G$132 -> 30.875 | F132: è | G132: 0.025
A133: 16th | B133: =$B$7*$G$133 -> 52.815 | C133: =$C$7*$G$133 -> 46.095 | D133: =$D$7*$G$133 -> 32.655 | E133: =$E$7*$G$133 -> 25.935 | F133: è | G133: 0.021
A134: 17th | B134: =$B$7*$G$134 -> 42.755 | C134: =$C$7*$G$134 -> 37.315 | D134: =$D$7*$G$134 -> 26.435 | E134: =$E$7*$G$134 -> 20.995 | F134: è | G134: 0.017
A135: 18th | B135: =$B$7*$G$135 -> 35.21 | C135: =$C$7*$G$135 -> 30.73 | D135: =$D$7*$G$135 -> 21.77 | E135: =$E$7*$G$135 -> 17.29 | F135: è | G135: 0.014
A136: 19th | B136: =$B$7*$G$136 -> 30.18 | C136: =$C$7*$G$136 -> 26.34 | D136: =$D$7*$G$136 -> 18.66 | E136: =$E$7*$G$136 -> 14.82 | F136: è | G136: 0.012
A137: 20th | B137: =$B$7*$G$137 -> 25.15 | C137: =$C$7*$G$137 -> 21.95 | D137: =$D$7*$G$137 -> 15.55 | E137: =$E$7*$G$137 -> 12.35 | F137: è | G137: 0.01
A138: Totals | B138: =SUM(B118:B137) -> 2515 | C138: =SUM(C118:C137) -> 2195 | D138: 1555 | E138: 1235 | F138: =B138+C138+D138+E138 -> 7500 | G138: =SUM(G118:G137) -> 1
A140: For 1201 or More riders 30 places
A141: Placings | B141: 1D | C141: 2D | D141: 3D | E141: 4D
A142: 1st | B142: =$B$7*$G$142 -> 301.8 | C142: =$C$7*$G$142 -> 263.4 | D142: =$D$7*$G$142 -> 186.6 | E142: =$E$7*$G$142 -> 148.2 | F142: è | G142: 0.12
A143: 2nd | B143: =$B$7*$G$143 -> 238.925 | C143: =$C$7*$G$143 -> 208.525 | D143: =$D$7*$G$143 -> 147.725 | E143: =$E$7*$G$143 -> 117.325 | F143: è | G143: 0.095
A144: 3rd | B144: =$B$7*$G$144 -> 183.595 | C144: =$C$7*$G$144 -> 160.235 | D144: =$D$7*$G$144 -> 113.515 | E144: =$E$7*$G$144 -> 90.155 | F144: è | G144: 0.073
A145: 4th | B145: =$B$7*$G$145 -> 155.93 | C145: =$C$7*$G$145 -> 136.09 | D145: =$D$7*$G$145 -> 96.41 | E145: =$E$7*$G$145 -> 76.57 | F145: è | G145: 0.062
A146: 5th | B146: =$B$7*$G$146 -> 125.75 | C146: =$C$7*$G$146 -> 109.75 | D146: =$D$7*$G$146 -> 77.75 | E146: =$E$7*$G$146 -> 61.75 | F146: è | G146: 0.05
A147: 6th | B147: =$B$7*$G$147 -> 113.175 | C147: =$C$7*$G$147 -> 98.775 | D147: =$D$7*$G$147 -> 69.975 | E147: =$E$7*$G$147 -> 55.575 | F147: è | G147: 0.045
A148: 7th | B148: =$B$7*$G$148 -> 108.145 | C148: =$C$7*$G$148 -> 94.385 | D148: =$D$7*$G$148 -> 66.865 | E148: =$E$7*$G$148 -> 53.105 | F148: è | G148: 0.043
A149: 8th | B149: =$B$7*$G$149 -> 100.6 | C149: =$C$7*$G$149 -> 87.8 | D149: =$D$7*$G$149 -> 62.2 | E149: =$E$7*$G$149 -> 49.4 | F149: è | G149: 0.04
A150: 9th | B150: =$B$7*$G$150 -> 93.055 | C150: =$C$7*$G$150 -> 81.215 | D150: =$D$7*$G$150 -> 57.535 | E150: =$E$7*$G$150 -> 45.695 | F150: è | G150: 0.037
A151: 10th | B151: =$B$7*$G$151 -> 88.025 | C151: =$C$7*$G$151 -> 76.825 | D151: =$D$7*$G$151 -> 54.425 | E151: =$E$7*$G$151 -> 43.225 | F151: è | G151: 0.035
A152: 11th | B152: =$B$7*$G$152 -> 82.995 | C152: =$C$7*$G$152 -> 72.435 | D152: =$D$7*$G$152 -> 51.315 | E152: =$E$7*$G$152 -> 40.755 | F152: è | G152: 0.033
A153: 12th | B153: =$B$7*$G$153 -> 77.965 | C153: =$C$7*$G$153 -> 68.045 | D153: =$D$7*$G$153 -> 48.205 | E153: =$E$7*$G$153 -> 38.285 | F153: è | G153: 0.031
A154: 13th | B154: =$B$7*$G$154 -> 72.935 | C154: =$C$7*$G$154 -> 63.655 | D154: =$D$7*$G$154 -> 45.095 | E154: =$E$7*$G$154 -> 35.815 | F154: è | G154: 0.029
A155: 14th | B155: =$B$7*$G$155 -> 67.905 | C155: =$C$7*$G$155 -> 59.265 | D155: =$D$7*$G$155 -> 41.985 | E155: =$E$7*$G$155 -> 33.345 | F155: è | G155: 0.027
A156: 15th | B156: =$B$7*$G$156 -> 62.875 | C156: =$C$7*$G$156 -> 54.875 | D156: =$D$7*$G$156 -> 38.875 | E156: =$E$7*$G$156 -> 30.875 | F156: è | G156: 0.025
A157: 16th | B157: =$B$7*$G$157 -> 60.36 | C157: =$C$7*$G$157 -> 52.68 | D157: =$D$7*$G$157 -> 37.32 | E157: =$E$7*$G$157 -> 29.64 | F157: è | G157: 0.024
A158: 17th | B158: =$B$7*$G$158 -> 57.845 | C158: =$C$7*$G$158 -> 50.485 | D158: =$D$7*$G$158 -> 35.765 | E158: =$E$7*$G$158 -> 28.405 | F158: è | G158: 0.023
A159: 18th | B159: =$B$7*$G$159 -> 55.33 | C159: =$C$7*$G$159 -> 48.29 | D159: =$D$7*$G$159 -> 34.21 | E159: =$E$7*$G$159 -> 27.17 | F159: è | G159: 0.022
A160: 19th | B160: =$B$7*$G$160 -> 52.815 | C160: =$C$7*$G$160 -> 46.095 | D160: =$D$7*$G$160 -> 32.655 | E160: =$E$7*$G$160 -> 25.935 | F160: è | G160: 0.021
A161: 20th | B161: =$B$7*$G$161 -> 50.3 | C161: =$C$7*$G$161 -> 43.9 | D161: =$D$7*$G$161 -> 31.1 | E161: =$E$7*$G$161 -> 24.7 | F161: è | G161: 0.02
A162: 21st | B162: =$B$7*$G$162 -> 47.785 | C162: =$C$7*$G$162 -> 41.705 | D162: =$D$7*$G$162 -> 29.545 | E162: =$E$7*$G$162 -> 23.465 | F162: è | G162: 0.019
A163: 22nd | B163: =$B$7*$G$163 -> 45.27 | C163: =$C$7*$G$163 -> 39.51 | D163: =$D$7*$G$163 -> 27.99 | E163: =$E$7*$G$163 -> 22.23 | F163: è | G163: 0.018
A164: 23rd | B164: =$B$7*$G$164 -> 42.755 | C164: =$C$7*$G$164 -> 37.315 | D164: =$D$7*$G$164 -> 26.435 | E164: =$E$7*$G$164 -> 20.995 | F164: è | G164: 0.017
A165: 24th | B165: =$B$7*$G$165 -> 40.24 | C165: =$C$7*$G$165 -> 35.12 | D165: =$D$7*$G$165 -> 24.88 | E165: =$E$7*$G$165 -> 19.76 | F165: è | G165: 0.016
A166: 25th | B166: =$B$7*$G$166 -> 37.725 | C166: =$C$7*$G$166 -> 32.925 | D166: =$D$7*$G$166 -> 23.325 | E166: =$E$7*$G$166 -> 18.525 | F166: è | G166: 0.015
A167: 26th | B167: =$B$7*$G$167 -> 35.21 | C167: =$C$7*$G$167 -> 30.73 | D167: =$D$7*$G$167 -> 21.77 | E167: =$E$7*$G$167 -> 17.29 | F167: è | G167: 0.014
A168: 27th | B168: =$B$7*$G$168 -> 32.695 | C168: =$C$7*$G$168 -> 28.535 | D168: =$D$7*$G$168 -> 20.215 | E168: =$E$7*$G$168 -> 16.055 | F168: è | G168: 0.013
A169: 28th | B169: =$B$7*$G$169 -> 30.18 | C169: =$C$7*$G$169 -> 26.34 | D169: =$D$7*$G$169 -> 18.66 | E169: =$E$7*$G$169 -> 14.82 | F169: è | G169: 0.012
A170: 29th | B170: =$B$7*$G$170 -> 27.665 | C170: =$C$7*$G$170 -> 24.145 | D170: =$D$7*$G$170 -> 17.105 | E170: =$E$7*$G$170 -> 13.585 | F170: è | G170: 0.011
A171: 30th | B171: =$B$7*$G$171 -> 25.15 | C171: =$C$7*$G$171 -> 21.95 | D171: =$D$7*$G$171 -> 15.55 | E171: =$E$7*$G$171 -> 12.35 | F171: è | G171: 0.01
A172: Totals | B172: =SUM(B142:B171) -> 2515 | C172: =SUM(C142:C171) -> 2195 | D172: =SUM(D142:D171) -> 1555 | E172: =SUM(E142:E171) -> 1235 | F172: =B172+C172+D172+E172 -> 7500 | G172: =SUM(G142:G171) -> 1

Sheet 5D Payout BBR
A1: 5D Payout BBR
A2: Entry Fee | B2: # Entries | C2: % Payback | D2: $ From Entry | E2: Added $ | F2: Total Payout | G2: Total $ Held
A3: 50 | B3: 325 | C3: 0.8 | D3: =$A$3*$C$3*$B$3 -> 13000 | E3: 2000 | F3: =($A$3*$C$3)*$B$3+$E$3 -> 15000 | G3: =$A$3*(100%-$C$3)*$B$3 -> 3250
A5: % in each D | B5: 0.3 | C5: 0.25 | D5: 0.2 | E5: 0.15 | F5: 0.1 | G5: Total % Payout | H5: =SUM(B5:F5) -> 1
B6: 1D | C6: 2D | D6: 3D | E6: 4D | F6: 5D
B7: =(($A$3*$B$3*$C$3*$B$5)+($E$3*$B$5)) -> 4500 | C7: =(($A$3*$B$3*$C$3*$C$5)+($E$3*$C$5)) -> 3750 | D7: =(($A$3*$B$3*$C$3*$D$5)+($E$3*$D$5)) -> 3000 | E7: =(($A$3*$B$3*$C$3*$E$5)+($E$3*$E$5)) -> 2250 | F7: =(($A$3*$B$3*$C$3*$F$5)+($E$3*$F$5)) -> 1500
A8: Totals | B8: =SUM(B7) -> 4500 | C8: =SUM(C7) -> 3750 | D8: 3000 | E8: 2250 | F8: 1500 | G8: =SUM(B8:F8) -> 15000
A10: For 1-25 riders 1 place
A11: Placings | B11: 1D | C11: 2D | D11: 3D | E11: 4D | F11: 5D
A12: 1st | B12: =$B$7*$H$12 -> 4500 | C12: =$C$7*$H$12 -> 3750 | D12: =$D$7*$H$12 -> 3000 | E12: =$E$7*$H$12 -> 2250 | F12: =$F$7*$H$12 -> 1500 | G12: è | H12: 1
A13: Totals | B13: =SUM(B12:B12) -> 4500 | C13: =SUM(C12:C12) -> 3750 | D13: =SUM(D12:D12) -> 3000 | E13: =SUM(E12:E12) -> 2250 | F13: =SUM(F12) -> 1500 | G13: =SUM(B13:F13) -> 15000 | H13: =SUM(H12) -> 1
A15: For 26-50 riders 2 places
A16: Placings | B16: 1D | C16: 2D | D16: 3D | E16: 4D | F16: 5D
A17: 1st | B17: =$B$7*$H$17 -> 2700 | C17: =$C$7*$H$17 -> 2250 | D17: =$D$7*$H$17 -> 1800 | E17: =$E$7*$H$17 -> 1350 | F17: =$F$7*$H$17 -> 900 | G17: è | H17: 0.6
A18: 2nd | B18: =$B$7*$H$18 -> 1800 | C18: =$C$7*$H$18 -> 1500 | D18: =$D$7*$H$18 -> 1200 | E18: =$E$7*$H$18 -> 900 | F18: =$F$7*$H$18 -> 600 | G18: è | H18: 0.4
A19: Totals | B19: =SUM(B17:B18) -> 4500 | C19: =SUM(C17:C18) -> 3750 | D19: =SUM(D17:D18) -> 3000 | E19: =SUM(E17:E18) -> 2250 | F19: =SUM(F17:F18) -> 1500 | G19: =SUM(B19:F19) -> 15000 | H19: =SUM(H17:H18) -> 1
A21: For 51-100 riders 3 places
A22: Placings | B22: 1D | C22: 2D | D22: 3D | E22: 4D | F22: 5D
A23: 1st | B23: =$B$7*$H$23 -> 2250 | C23: =$C$7*$H$23 -> 1875 | D23: =$D$7*$H$23 -> 1500 | E23: =$E$7*$H$23 -> 1125 | F23: =$F$7*$H$23 -> 750 | G23: è | H23: 0.5
A24: 2nd | B24: =$B$7*$H$24 -> 1350 | C24: =$C$7*$H$24 -> 1125 | D24: =$D$7*$H$24 -> 900 | E24: =$E$7*$H$24 -> 675 | F24: =$F$7*$H$24 -> 450 | G24: è | H24: 0.3
A25: 3rd | B25: =$B$7*$H$25 -> 900 | C25: =$C$7*$H$25 -> 750 | D25: =$D$7*$H$25 -> 600 | E25: =$E$7*$H$25 -> 450 | F25: =$F$7*$H$25 -> 300 | G25: è | H25: 0.2
A26: Totals | B26: =SUM(B23:B25) -> 4500 | C26: =SUM(C23:C25) -> 3750 | D26: =SUM(D23:D25) -> 3000 | E26: =SUM(E23:E25) -> 2250 | F26: =SUM(F23:F25) -> 1500 | G26: =SUM(B26:F26) -> 15000 | H26: =SUM(H23:H25) -> 1
A28: For 101-143 riders 4 places
A29: Placings | B29: 1D | C29: 2D | D29: 3D | E29: 4D | F29: 5D
A30: 1st | B30: =$B$7*$H$30 -> 1800 | C30: =$C$7*$H$30 -> 1500 | D30: =$D$7*$H$30 -> 1200 | E30: =$E$7*$H$30 -> 900 | F30: =$F$7*$H$30 -> 600 | G30: è | H30: 0.4
A31: 2nd | B31: =$B$7*$H$31 -> 1350 | C31: =$C$7*$H$31 -> 1125 | D31: =$D$7*$H$31 -> 900 | E31: =$E$7*$H$31 -> 675 | F31: =$F$7*$H$31 -> 450 | G31: è | H31: 0.3
A32: 3rd | B32: =$B$7*$H$32 -> 900 | C32: =$C$7*$H$32 -> 750 | D32: =$D$7*$H$32 -> 600 | E32: =$E$7*$H$32 -> 450 | F32: =$F$7*$H$32 -> 300 | G32: è | H32: 0.2
A33: 4th | B33: =$B$7*$H$33 -> 450 | C33: =$C$7*$H$33 -> 375 | D33: =$D$7*$H$33 -> 300 | E33: =$E$7*$H$33 -> 225 | F33: =$F$7*$H$33 -> 150 | G33: è | H33: 0.1
A34: Totals | B34: =SUM(B30:B33) -> 4500 | C34: =SUM(C30:C33) -> 3750 | D34: =SUM(D30:D33) -> 3000 | E34: =SUM(E30:E33) -> 2250 | F34: =SUM(F30:F33) -> 1500 | G34: =SUM(B34:F34) -> 15000 | H34: =SUM(H30:H33) -> 1
A36: For 144-200 riders 5 places
A37: Placings | B37: 1D | C37: 2D | D37: 3D | E37: 4D | F37: 5D
A38: 1st | B38: =$B$7*$H$38 -> 1485 | C38: =$C$7*$H$38 -> 1237.5 | D38: =$D$7*$H$38 -> 990 | E38: =$E$7*$H$38 -> 742.5 | F38: =$F$7*$H$38 -> 495 | G38: è | H38: 0.33
A39: 2nd | B39: =$B$7*$H$39 -> 1215 | C39: =$C$7*$H$39 -> 1012.5 | D39: =$D$7*$H$39 -> 810 | E39: =$E$7*$H$39 -> 607.5 | F39: =$F$7*$H$39 -> 405 | G39: è | H39: 0.27
A40: 3rd | B40: =$B$7*$H$40 -> 900 | C40: =$C$7*$H$40 -> 750 | D40: =$D$7*$H$40 -> 600 | E40: =$E$7*$H$40 -> 450 | F40: =$F$7*$H$40 -> 300 | G40: è | H40: 0.2
A41: 4th | B41: =$B$7*$H$41 -> 585 | C41: =$C$7*$H$41 -> 487.5 | D41: =$D$7*$H$41 -> 390 | E41: =$E$7*$H$41 -> 292.5 | F41: =$F$7*$H$41 -> 195 | G41: è | H41: 0.13
A42: 5th | B42: =$B$7*$H$42 -> 315 | C42: =$C$7*$H$42 -> 262.5 | D42: =$D$7*$H$42 -> 210 | E42: =$E$7*$H$42 -> 157.5 | F42: =$F$7*$H$42 -> 105 | G42: è | H42: 0.07
A43: Totals | B43: =SUM(B38:B42) -> 4500 | C43: =SUM(C38:C42) -> 3750 | D43: =SUM(D38:D42) -> 3000 | E43: =SUM(E38:E42) -> 2250 | F43: =SUM(F38:F42) -> 1500 | G43: =SUM(B43:F43) -> 15000 | H43: =SUM(H38:H42) -> 1
A45: For 201-250 riders 6 places
A46: Placings | B46: 1D | C46: 2D | D46: 3D | E46: 4D | F46: 5D
A47: 1st | B47: =$B$7*$H$47 -> 1305 | C47: =$C$7*$H$47 -> 1087.5 | D47: =$D$7*$H$47 -> 870 | E47: =$E$7*$H$47 -> 652.5 | F47: =$F$7*$H$47 -> 435 | G47: è | H47: 0.29
A48: 2nd | B48: =$B$7*$H$48 -> 1080 | C48: =$C$7*$H$48 -> 900 | D48: =$D$7*$H$48 -> 720 | E48: =$E$7*$H$48 -> 540 | F48: =$F$7*$H$48 -> 360 | G48: è | H48: 0.24
A49: 3rd | B49: =$B$7*$H$49 -> 855 | C49: =$C$7*$H$49 -> 712.5 | D49: =$D$7*$H$49 -> 570 | E49: =$E$7*$H$49 -> 427.5 | F49: =$F$7*$H$49 -> 285 | G49: è | H49: 0.19
A50: 4th | B50: =$B$7*$H$50 -> 630 | C50: =$C$7*$H$50 -> 525 | D50: =$D$7*$H$50 -> 420 | E50: =$E$7*$H$50 -> 315 | F50: =$F$7*$H$50 -> 210 | G50: è | H50: 0.14
A51: 5th | B51: =$B$7*$H$51 -> 405 | C51: =$C$7*$H$51 -> 337.5 | D51: =$D$7*$H$51 -> 270 | E51: =$E$7*$H$51 -> 202.5 | F51: =$F$7*$H$51 -> 135 | G51: è | H51: 0.09
A52: 6th | B52: =$B$7*$H$52 -> 225 | C52: =$C$7*$H$52 -> 187.5 | D52: =$D$7*$H$52 -> 150 | E52: =$E$7*$H$52 -> 112.5 | F52: =$F$7*$H$52 -> 75 | G52: è | H52: 0.05
A53: Totals | B53: =SUM(B47:B52) -> 4500 | C53: =SUM(C47:C52) -> 3750 | D53: =SUM(D47:D52) -> 3000 | E53: =SUM(E47:E52) -> 2250 | F53: =SUM(F47:F52) -> 1500 | G53: =SUM(B53:F53) -> 15000 | H53: =SUM(H47:H52) -> 1
A55: For 251-333 riders 8 places
A56: Placings | B56: 1D | C56: 2D | D56: 3D | E56: 4D | F56: 5D
A57: 1st | B57: =$B$7*$H$57 -> 1080 | C57: =$C$7*$H$57 -> 900 | D57: =$D$7*$H$57 -> 720 | E57: =$E$7*$H$57 -> 540 | F57: =$F$7*$H$57 -> 360 | G57: è | H57: 0.24
A58: 2nd | B58: =$B$7*$H$58 -> 900 | C58: =$C$7*$H$58 -> 750 | D58: =$D$7*$H$58 -> 600 | E58: =$E$7*$H$58 -> 450 | F58: =$F$7*$H$58 -> 300 | G58: è | H58: 0.2
A59: 3rd | B59: =$B$7*$H$59 -> 765 | C59: =$C$7*$H$59 -> 637.5 | D59: =$D$7*$H$59 -> 510 | E59: =$E$7*$H$59 -> 382.5 | F59: =$F$7*$H$59 -> 255 | G59: è | H59: 0.17
A60: 4th | B60: =$B$7*$H$60 -> 585 | C60: =$C$7*$H$60 -> 487.5 | D60: =$D$7*$H$60 -> 390 | E60: =$E$7*$H$60 -> 292.5 | F60: =$F$7*$H$60 -> 195 | G60: è | H60: 0.13
A61: 5th | B61: =$B$7*$H$61 -> 450 | C61: =$C$7*$H$61 -> 375 | D61: =$D$7*$H$61 -> 300 | E61: =$E$7*$H$61 -> 225 | F61: =$F$7*$H$61 -> 150 | G61: è | H61: 0.1
A62: 6th | B62: =$B$7*$H$62 -> 315 | C62: =$C$7*$H$62 -> 262.5 | D62: =$D$7*$H$62 -> 210 | E62: =$E$7*$H$62 -> 157.5 | F62: =$F$7*$H$62 -> 105 | G62: è | H62: 0.07
A63: 7th | B63: =$B$7*$H$63 -> 225 | C63: =$C$7*$H$63 -> 187.5 | D63: =$D$7*$H$63 -> 150 | E63: =$E$7*$H$63 -> 112.5 | F63: =$F$7*$H$63 -> 75 | G63: è | H63: 0.05
A64: 8th | B64: =$B$7*$H$64 -> 180 | C64: =$C$7*$H$64 -> 150 | D64: =$D$7*$H$64 -> 120 | E64: =$E$7*$H$64 -> 90 | F64: =$F$7*$H$64 -> 60 | G64: è | H64: 0.04
A65: Totals | B65: =SUM(B57:B64) -> 4500 | C65: =SUM(C57:C64) -> 3750 | D65: =SUM(D57:D64) -> 3000 | E65: =SUM(E57:E64) -> 2250 | F65: =SUM(F57:F64) -> 1500 | G65: =SUM(B65:F65) -> 15000 | H65: =SUM(H57:H64) -> 1
A67: For 334-500 riders 10 places
A68: Placings | B68: 1D | C68: 2D | D68: 3D | E68: 4D | F68: 5D
A69: 1st | B69: =$B$7*$H$69 -> 945 | C69: =$C$7*$H$69 -> 787.5 | D69: =$D$7*$H$69 -> 630 | E69: =$E$7*$H$69 -> 472.5 | F69: =$F$7*$H$69 -> 315 | G69: è | H69: 0.21
A70: 2nd | B70: =$B$7*$H$70 -> 810 | C70: =$C$7*$H$70 -> 675 | D70: =$D$7*$H$70 -> 540 | E70: =$E$7*$H$70 -> 405 | F70: =$F$7*$H$70 -> 270 | G70: è | H70: 0.18
A71: 3rd | B71: =$B$7*$H$71 -> 675 | C71: =$C$7*$H$71 -> 562.5 | D71: =$D$7*$H$71 -> 450 | E71: =$E$7*$H$71 -> 337.5 | F71: =$F$7*$H$71 -> 225 | G71: è | H71: 0.15
A72: 4th | B72: =$B$7*$H$72 -> 540 | C72: =$C$7*$H$72 -> 450 | D72: =$D$7*$H$72 -> 360 | E72: =$E$7*$H$72 -> 270 | F72: =$F$7*$H$72 -> 180 | G72: è | H72: 0.12
A73: 5th | B73: =$B$7*$H$73 -> 405 | C73: =$C$7*$H$73 -> 337.5 | D73: =$D$7*$H$73 -> 270 | E73: =$E$7*$H$73 -> 202.5 | F73: =$F$7*$H$73 -> 135 | G73: è | H73: 0.09
A74: 6th | B74: =$B$7*$H$74 -> 315 | C74: =$C$7*$H$74 -> 262.5 | D74: =$D$7*$H$74 -> 210 | E74: =$E$7*$H$74 -> 157.5 | F74: =$F$7*$H$74 -> 105 | G74: è | H74: 0.07
A75: 7th | B75: =$B$7*$H$75 -> 270 | C75: =$C$7*$H$75 -> 225 | D75: =$D$7*$H$75 -> 180 | E75: =$E$7*$H$75 -> 135 | F75: =$F$7*$H$75 -> 90 | G75: è | H75: 0.06
A76: 8th | B76: =$B$7*$H$76 -> 225 | C76: =$C$7*$H$76 -> 187.5 | D76: =$D$7*$H$76 -> 150 | E76: =$E$7*$H$76 -> 112.5 | F76: =$F$7*$H$76 -> 75 | G76: è | H76: 0.05
A77: 9th | B77: =$B$7*$H$77 -> 180 | C77: =$C$7*$H$77 -> 150 | D77: =$D$7*$H$77 -> 120 | E77: =$E$7*$H$77 -> 90 | F77: =$F$7*$H$77 -> 60 | G77: è | H77: 0.04
A78: 10th | B78: =$B$7*$H$78 -> 135 | C78: =$C$7*$H$78 -> 112.5 | D78: =$D$7*$H$78 -> 90 | E78: =$E$7*$H$78 -> 67.5 | F78: =$F$7*$H$78 -> 45 | G78: è | H78: 0.03
A79: Totals | B79: =SUM(B69:B78) -> 4500 | C79: =SUM(C69:C78) -> 3750 | D79: 3000 | E79: 2250 | F79: 1500 | G79: =SUM(B79:F79) -> 15000 | H79: =SUM(H69:H78) -> 1
A81: For 501-666 riders 12 places
A82: Placings | B82: 1D | C82: 2D | D82: 3D | E82: 4D | F82: 5D
A83: 1st | B83: =$B$7*$H$83 -> 855 | C83: =$C$7*$H$83 -> 712.5 | D83: =$D$7*$H$83 -> 570 | E83: =$E$7*$H$83 -> 427.5 | F83: =$F$7*$H$83 -> 285 | G83: è | H83: 0.19
A84: 2nd | B84: =$B$7*$H$84 -> 675 | C84: =$C$7*$H$84 -> 562.5 | D84: =$D$7*$H$84 -> 450 | E84: =$E$7*$H$84 -> 337.5 | F84: =$F$7*$H$84 -> 225 | G84: è | H84: 0.15
A85: 3rd | B85: =$B$7*$H$85 -> 540 | C85: =$C$7*$H$85 -> 450 | D85: =$D$7*$H$85 -> 360 | E85: =$E$7*$H$85 -> 270 | F85: =$F$7*$H$85 -> 180 | G85: è | H85: 0.12
A86: 4th | B86: =$B$7*$H$86 -> 450 | C86: =$C$7*$H$86 -> 375 | D86: =$D$7*$H$86 -> 300 | E86: =$E$7*$H$86 -> 225 | F86: =$F$7*$H$86 -> 150 | G86: è | H86: 0.1
A87: 5th | B87: =$B$7*$H$87 -> 405 | C87: =$C$7*$H$87 -> 337.5 | D87: =$D$7*$H$87 -> 270 | E87: =$E$7*$H$87 -> 202.5 | F87: =$F$7*$H$87 -> 135 | G87: è | H87: 0.09
A88: 6th | B88: =$B$7*$H$88 -> 360 | C88: =$C$7*$H$88 -> 300 | D88: =$D$7*$H$88 -> 240 | E88: =$E$7*$H$88 -> 180 | F88: =$F$7*$H$88 -> 120 | G88: è | H88: 0.08
A89: 7th | B89: =$B$7*$H$89 -> 315 | C89: =$C$7*$H$89 -> 262.5 | D89: =$D$7*$H$89 -> 210 | E89: =$E$7*$H$89 -> 157.5 | F89: =$F$7*$H$89 -> 105 | G89: è | H89: 0.07
A90: 8th | B90: =$B$7*$H$90 -> 270 | C90: =$C$7*$H$90 -> 225 | D90: =$D$7*$H$90 -> 180 | E90: =$E$7*$H$90 -> 135 | F90: =$F$7*$H$90 -> 90 | G90: è | H90: 0.06
A91: 9th | B91: =$B$7*$H$91 -> 225 | C91: =$C$7*$H$91 -> 187.5 | D91: =$D$7*$H$91 -> 150 | E91: =$E$7*$H$91 -> 112.5 | F91: =$F$7*$H$91 -> 75 | G91: è | H91: 0.05
A92: 10th | B92: =$B$7*$H$92 -> 180 | C92: =$C$7*$H$92 -> 150 | D92: =$D$7*$H$92 -> 120 | E92: =$E$7*$H$92 -> 90 | F92: =$F$7*$H$92 -> 60 | G92: è | H92: 0.04
A93: 11th | B93: =$B$7*$H$93 -> 135 | C93: =$C$7*$H$93 -> 112.5 | D93: =$D$7*$H$93 -> 90 | E93: =$E$7*$H$93 -> 67.5 | F93: =$F$7*$H$93 -> 45 | G93: è | H93: 0.03
A94: 12th | B94: =$B$7*$H$94 -> 90 | C94: =$C$7*$H$94 -> 75 | D94: =$D$7*$H$94 -> 60 | E94: =$E$7*$H$94 -> 45 | F94: =$F$7*$H$94 -> 30 | G94: è | H94: 0.02
A95: Totals | B95: =SUM(B83:B94) -> 4500 | C95: =SUM(C83:C94) -> 3750 | D95: =SUM(D83:D94) -> 3000 | E95: =SUM(E83:E94) -> 2250 | F95: =SUM(F83:F94) -> 1500 | G95: =SUM(B95:F95) -> 15000 | H95: =SUM(H83:H94) -> 1
A97: For 667-1000 riders 15 places
A98: Placings | B98: 1D | C98: 2D | D98: 3D | E98: 4D | F98: 5D
A99: 1st | B99: =$B$7*$H$99 -> 810 | C99: =$C$7*$H$99 -> 675 | D99: =$D$7*$H$99 -> 540 | E99: =$E$7*$H$99 -> 405 | F99: =$F$7*$H$99 -> 270 | G99: è | H99: 0.18
A100: 2nd | B100: =$B$7*$H$100 -> 675 | C100: =$C$7*$H$100 -> 562.5 | D100: =$D$7*$H$100 -> 450 | E100: =$E$7*$H$100 -> 337.5 | F100: =$F$7*$H$100 -> 225 | G100: è | H100: 0.15
A101: 3rd | B101: =$B$7*$H$101 -> 540 | C101: =$C$7*$H$101 -> 450 | D101: =$D$7*$H$101 -> 360 | E101: =$E$7*$H$101 -> 270 | F101: =$F$7*$H$101 -> 180 | G101: è | H101: 0.12
A102: 4th | B102: =$B$7*$H$102 -> 450 | C102: =$C$7*$H$102 -> 375 | D102: =$D$7*$H$102 -> 300 | E102: =$E$7*$H$102 -> 225 | F102: =$F$7*$H$102 -> 150 | G102: è | H102: 0.1
A103: 5th | B103: =$B$7*$H$103 -> 382.5 | C103: =$C$7*$H$103 -> 318.75 | D103: =$D$7*$H$103 -> 255 | E103: =$E$7*$H$103 -> 191.25 | F103: =$F$7*$H$103 -> 127.5 | G103: è | H103: 0.085
A104: 6th | B104: =$B$7*$H$104 -> 315 | C104: =$C$7*$H$104 -> 262.5 | D104: =$D$7*$H$104 -> 210 | E104: =$E$7*$H$104 -> 157.5 | F104: =$F$7*$H$104 -> 105 | G104: è | H104: 0.07
A105: 7th | B105: =$B$7*$H$105 -> 270 | C105: =$C$7*$H$105 -> 225 | D105: =$D$7*$H$105 -> 180 | E105: =$E$7*$H$105 -> 135 | F105: =$F$7*$H$105 -> 90 | G105: è | H105: 0.06
A106: 8th | B106: =$B$7*$H$106 -> 225 | C106: =$C$7*$H$106 -> 187.5 | D106: =$D$7*$H$106 -> 150 | E106: =$E$7*$H$106 -> 112.5 | F106: =$F$7*$H$106 -> 75 | G106: è | H106: 0.05
A107: 9th | B107: =$B$7*$H$107 -> 191.25 | C107: =$C$7*$H$107 -> 159.375 | D107: =$D$7*$H$107 -> 127.5 | E107: =$E$7*$H$107 -> 95.625 | F107: =$F$7*$H$107 -> 63.75 | G107: è | H107: 0.0425
A108: 10th | B108: =$B$7*$H$108 -> 157.5 | C108: =$C$7*$H$108 -> 131.25 | D108: =$D$7*$H$108 -> 105 | E108: =$E$7*$H$108 -> 78.75 | F108: =$F$7*$H$108 -> 52.5 | G108: è | H108: 0.035
A109: 11th | B109: =$B$7*$H$109 -> 135 | C109: =$C$7*$H$109 -> 112.5 | D109: =$D$7*$H$109 -> 90 | E109: =$E$7*$H$109 -> 67.5 | F109: =$F$7*$H$109 -> 45 | G109: è | H109: 0.03
A110: 12th | B110: =$B$7*$H$110 -> 112.5 | C110: =$C$7*$H$110 -> 93.75 | D110: =$D$7*$H$110 -> 75 | E110: =$E$7*$H$110 -> 56.25 | F110: =$F$7*$H$110 -> 37.5 | G110: è | H110: 0.025
A111: 13th | B111: =$B$7*$H$111 -> 90 | C111: =$C$7*$H$111 -> 75 | D111: =$D$7*$H$111 -> 60 | E111: =$E$7*$H$111 -> 45 | F111: =$F$7*$H$111 -> 30 | G111: è | H111: 0.02
A112: 14th | B112: =$B$7*$H$112 -> 78.75 | C112: =$C$7*$H$112 -> 65.625 | D112: =$D$7*$H$112 -> 52.5 | E112: =$E$7*$H$112 -> 39.375 | F112: =$F$7*$H$112 -> 26.25 | G112: è | H112: 0.0175
A113: 15th | B113: =$B$7*$H$113 -> 67.5 | C113: =$C$7*$H$113 -> 56.25 | D113: =$D$7*$H$113 -> 45 | E113: =$E$7*$H$113 -> 33.75 | F113: =$F$7*$H$113 -> 22.5 | G113: è | H113: 0.015
A114: Totals | B114: =SUM(B99:B113) -> 4500 | C114: =SUM(C99:C113) -> 3750 | D114: =SUM(D99:D113) -> 3000 | E114: =SUM(E99:E113) -> 2250 | F114: =SUM(F99:F113) -> 1500 | G114: =SUM(B114:F114) -> 15000 | H114: =SUM(H99:H113) -> 1
A116: For 1001-1500 riders 20 places
A117: Placings | B117: 1D | C117: 2D | D117: 3D | E117: 4D | F117: 5D
A118: 1st | B118: =$B$7*$H$118 -> 630 | C118: =$C$7*$H$118 -> 525 | D118: =$D$7*$H$118 -> 420 | E118: =$E$7*$H$118 -> 315 | F118: =$F$7*$H$118 -> 210 | G118: è | H118: 0.14
A119: 2nd | B119: =$B$7*$H$119 -> 495 | C119: =$C$7*$H$119 -> 412.5 | D119: =$D$7*$H$119 -> 330 | E119: =$E$7*$H$119 -> 247.5 | F119: =$F$7*$H$119 -> 165 | G119: è | H119: 0.11
A120: 3rd | B120: =$B$7*$H$120 -> 405 | C120: =$C$7*$H$120 -> 337.5 | D120: =$D$7*$H$120 -> 270 | E120: =$E$7*$H$120 -> 202.5 | F120: =$F$7*$H$120 -> 135 | G120: è | H120: 0.09
A121: 4th | B121: =$B$7*$H$121 -> 346.5 | C121: =$C$7*$H$121 -> 288.75 | D121: =$D$7*$H$121 -> 231 | E121: =$E$7*$H$121 -> 173.25 | F121: =$F$7*$H$121 -> 115.5 | G121: è | H121: 0.077
A122: 5th | B122: =$B$7*$H$122 -> 315 | C122: =$C$7*$H$122 -> 262.5 | D122: =$D$7*$H$122 -> 210 | E122: =$E$7*$H$122 -> 157.5 | F122: =$F$7*$H$122 -> 105 | G122: è | H122: 0.07
A123: 6th | B123: =$B$7*$H$123 -> 292.5 | C123: =$C$7*$H$123 -> 243.75 | D123: =$D$7*$H$123 -> 195 | E123: =$E$7*$H$123 -> 146.25 | F123: =$F$7*$H$123 -> 97.5 | G123: è | H123: 0.065
A124: 7th | B124: =$B$7*$H$124 -> 270 | C124: =$C$7*$H$124 -> 225 | D124: =$D$7*$H$124 -> 180 | E124: =$E$7*$H$124 -> 135 | F124: =$F$7*$H$124 -> 90 | G124: è | H124: 0.06
A125: 8th | B125: =$B$7*$H$125 -> 247.5 | C125: =$C$7*$H$125 -> 206.25 | D125: =$D$7*$H$125 -> 165 | E125: =$E$7*$H$125 -> 123.75 | F125: =$F$7*$H$125 -> 82.5 | G125: è | H125: 0.055
A126: 9th | B126: =$B$7*$H$126 -> 225 | C126: =$C$7*$H$126 -> 187.5 | D126: =$D$7*$H$126 -> 150 | E126: =$E$7*$H$126 -> 112.5 | F126: =$F$7*$H$126 -> 75 | G126: è | H126: 0.05
A127: 10th | B127: =$B$7*$H$127 -> 202.5 | C127: =$C$7*$H$127 -> 168.75 | D127: =$D$7*$H$127 -> 135 | E127: =$E$7*$H$127 -> 101.25 | F127: =$F$7*$H$127 -> 67.5 | G127: è | H127: 0.045
A128: 11th | B128: =$B$7*$H$128 -> 180 | C128: =$C$7*$H$128 -> 150 | D128: =$D$7*$H$128 -> 120 | E128: =$E$7*$H$128 -> 90 | F128: =$F$7*$H$128 -> 60 | G128: è | H128: 0.04
A129: 12th | B129: =$B$7*$H$129 -> 166.5 | C129: =$C$7*$H$129 -> 138.75 | D129: =$D$7*$H$129 -> 111 | E129: =$E$7*$H$129 -> 83.25 | F129: =$F$7*$H$129 -> 55.5 | G129: è | H129: 0.037
A130: 13th | B130: =$B$7*$H$130 -> 148.5 | C130: =$C$7*$H$130 -> 123.75 | D130: =$D$7*$H$130 -> 99 | E130: =$E$7*$H$130 -> 74.25 | F130: =$F$7*$H$130 -> 49.5 | G130: è | H130: 0.033
A131: 14th | B131: =$B$7*$H$131 -> 130.5 | C131: =$C$7*$H$131 -> 108.75 | D131: =$D$7*$H$131 -> 87 | E131: =$E$7*$H$131 -> 65.25 | F131: =$F$7*$H$131 -> 43.5 | G131: è | H131: 0.029
A132: 15th | B132: =$B$7*$H$132 -> 112.5 | C132: =$C$7*$H$132 -> 93.75 | D132: =$D$7*$H$132 -> 75 | E132: =$E$7*$H$132 -> 56.25 | F132: =$F$7*$H$132 -> 37.5 | G132: è | H132: 0.025
A133: 16th | B133: =$B$7*$H$133 -> 94.5 | C133: =$C$7*$H$133 -> 78.75 | D133: =$D$7*$H$133 -> 63 | E133: =$E$7*$H$133 -> 47.25 | F133: =$F$7*$H$133 -> 31.5 | G133: è | H133: 0.021
A134: 17th | B134: =$B$7*$H$134 -> 76.5 | C134: =$C$7*$H$134 -> 63.75 | D134: =$D$7*$H$134 -> 51 | E134: =$E$7*$H$134 -> 38.25 | F134: =$F$7*$H$134 -> 25.5 | G134: è | H134: 0.017
A135: 18th | B135: =$B$7*$H$135 -> 63 | C135: =$C$7*$H$135 -> 52.5 | D135: =$D$7*$H$135 -> 42 | E135: =$E$7*$H$135 -> 31.5 | F135: =$F$7*$H$135 -> 21 | G135: è | H135: 0.014
A136: 19th | B136: =$B$7*$H$136 -> 54 | C136: =$C$7*$H$136 -> 45 | D136: =$D$7*$H$136 -> 36 | E136: =$E$7*$H$136 -> 27 | F136: =$F$7*$H$136 -> 18 | G136: è | H136: 0.012
A137: 20th | B137: =$B$7*$H$137 -> 45 | C137: =$C$7*$H$137 -> 37.5 | D137: =$D$7*$H$137 -> 30 | E137: =$E$7*$H$137 -> 22.5 | F137: =$F$7*$H$137 -> 15 | G137: è | H137: 0.01
A138: Totals | B138: =SUM(B118:B137) -> 4500 | C138: =SUM(C118:C137) -> 3750 | D138: 3000 | E138: 2250 | F138: 1500 | G138: =SUM(B138:F138) -> 15000 | H138: =SUM(H118:H137) -> 1
A140: For 1501 or More riders 30 places
A141: Placings | B141: 1D | C141: 2D | D141: 3D | E141: 4D | F141: 5D
A142: 1st | B142: =$B$7*$H142 -> 540 | C142: =$C$7*$H142 -> 450 | D142: =$D$7*$H142 -> 360 | E142: =$E$7*$H142 -> 270 | F142: =$F$7*$H142 -> 180 | G142: è | H142: 0.12
A143: 2nd | B143: =$B$7*$H143 -> 427.5 | C143: 356.25 | D143: 285 | E143: 213.75 | F143: 142.5 | G143: è | H143: 0.095
A144: 3rd | B144: =$B$7*$H144 -> 328.5 | C144: 273.75 | D144: 219 | E144: 164.25 | F144: 109.5 | G144: è | H144: 0.073
A145: 4th | B145: =$B$7*$H145 -> 279 | C145: 232.5 | D145: 186 | E145: 139.5 | F145: 93 | G145: è | H145: 0.062
A146: 5th | B146: 225 | C146: 187.5 | D146: 150 | E146: 112.5 | F146: 75 | G146: è | H146: 0.05
A147: 6th | B147: 202.5 | C147: 168.75 | D147: 135 | E147: 101.25 | F147: 67.5 | G147: è | H147: 0.045
A148: 7th | B148: 193.5 | C148: 161.25 | D148: 129 | E148: 96.75 | F148: 64.5 | G148: è | H148: 0.043
A149: 8th | B149: 180 | C149: 150 | D149: 120 | E149: 90 | F149: 60 | G149: è | H149: 0.04
A150: 9th | B150: 166.5 | C150: 138.75 | D150: 111 | E150: 83.25 | F150: 55.5 | G150: è | H150: 0.037
A151: 10th | B151: 157.5 | C151: 131.25 | D151: 105 | E151: 78.75 | F151: 52.5 | G151: è | H151: 0.035
A152: 11th | B152: 148.5 | C152: 123.75 | D152: 99 | E152: 74.25 | F152: 49.5 | G152: è | H152: 0.033
A153: 12th | B153: 139.5 | C153: 116.25 | D153: 93 | E153: 69.75 | F153: 46.5 | G153: è | H153: 0.031
A154: 13th | B154: 130.5 | C154: 108.75 | D154: 87 | E154: 65.25 | F154: 43.5 | G154: è | H154: 0.029
A155: 14th | B155: 121.5 | C155: 101.25 | D155: 81 | E155: 60.75 | F155: 40.5 | G155: è | H155: 0.027
A156: 15th | B156: 112.5 | C156: 93.75 | D156: 75 | E156: 56.25 | F156: 37.5 | G156: è | H156: 0.025
A157: 16th | B157: 108 | C157: 90 | D157: 72 | E157: 54 | F157: 36 | G157: è | H157: 0.024
A158: 17th | B158: 103.5 | C158: 86.25 | D158: 69 | E158: 51.75 | F158: 34.5 | G158: è | H158: 0.023
A159: 18th | B159: 99 | C159: 82.5 | D159: 66 | E159: 49.5 | F159: 33 | G159: è | H159: 0.022
A160: 19th | B160: 94.5 | C160: 78.75 | D160: 63 | E160: 47.25 | F160: 31.5 | G160: è | H160: 0.021
A161: 20th | B161: 90 | C161: 75 | D161: 60 | E161: 45 | F161: 30 | G161: è | H161: 0.02
A162: 21st | B162: 85.5 | C162: 71.25 | D162: 57 | E162: 42.75 | F162: 28.5 | G162: è | H162: 0.019
A163: 22nd | B163: 81 | C163: 67.5 | D163: 54 | E163: 40.5 | F163: 27 | G163: è | H163: 0.018
A164: 23rd | B164: 76.5 | C164: 63.75 | D164: 51 | E164: 38.25 | F164: 25.5 | G164: è | H164: 0.017
A165: 24th | B165: 72 | C165: 60 | D165: 48 | E165: 36 | F165: 24 | G165: è | H165: 0.016
A166: 25th | B166: 67.5 | C166: 56.25 | D166: 45 | E166: 33.75 | F166: 22.5 | G166: è | H166: 0.015
A167: 26th | B167: 63 | C167: 52.5 | D167: 42 | E167: 31.5 | F167: 21 | G167: è | H167: 0.014
A168: 27th | B168: 58.5 | C168: 48.75 | D168: 39 | E168: 29.25 | F168: 19.5 | G168: è | H168: 0.013
A169: 28th | B169: 54 | C169: 45 | D169: 36 | E169: 27 | F169: 18 | G169: è | H169: 0.012
A170: 29th | B170: 49.5 | C170: 41.25 | D170: 33 | E170: 24.75 | F170: 16.5 | G170: è | H170: 0.011
A171: 30th | B171: 45 | C171: 37.5 | D171: 30 | E171: 22.5 | F171: 15 | G171: è | H171: 0.01
A172: Totals | B172: =SUM(B142:B171) -> 4500 | C172: =SUM(C142:C171) -> 3750 | D172: 3000 | E172: 2250 | F172: 1500 | G172: =SUM(B172:F172) -> 15000 | H172: =SUM(H142:H171) -> 1

Sheet DON'T TOUCH (hidden)
A2: Yes | C2: S | D2: 5 | E2: X
C3: A | D3: 10
C4: Y | D4: 15
C5: P | D5: BP
D6: SCR
